Organisation Name,Organisation Code,Unique Ref No,Effective Date,Directorate  where expenditure incurred,Supplier Name,Payment Date,Net Amount,Purpose of Spend,Procurement Classification (Higher Level),Procurement Classification (Lower Level),Capital/Revenue
Walsall Council,http://opendatacommunities.org/id/metropolitan-district-council/walsall,WC89-01,28/02/2018,Economy & Environment,21ST CENTURY PASSENGER SYSTEMS LTD,01/02/2018,"1,029.00",01001-OTHER CONSULTANTS FEES,CFR 1198 WALSALL TOWN CENTRE DEVELOPMENT OPPORTUNITY AREA INTERCHANGE,Capital,Capital
Walsall Council,http://opendatacommunities.org/id/metropolitan-district-council/walsall,WC89-02,28/02/2018,Childrens,247 CARS (WILLENHALL) LIMITED,01/02/2018,409.00,60500-GENERAL MATERIALS,PUPIL REFERAL UNIT EXCLUSIONS,Supplies & Services,Revenue
Walsall Council,http://opendatacommunities.org/id/metropolitan-district-council/walsall,WC89-03,28/02/2018,Childrens,247 CARS (WILLENHALL) LIMITED,01/02/2018,585.00,60500-GENERAL MATERIALS,PUPIL REFERAL UNIT EXCLUSIONS,Supplies & Services,Revenue
Walsall Council,http://opendatacommunities.org/id/metropolitan-district-council/walsall,WC89-04,28/02/2018,Childrens,247 CARS (WILLENHALL) LIMITED,06/02/2018,"2,170.00",52000-WITH DRIVER-HIRE OF VEHICLES,HOME TO SCHOOL TRANSPORT,Transport,Revenue
Walsall Council,http://opendatacommunities.org/id/metropolitan-district-council/walsall,WC89-05,28/02/2018,Childrens,5 CARE SERVICES LTD,13/02/2018,280.00,63000-PROFESSIONAL FEES AND SERVICES,DIRECTLY COMMISSIONED NURSING SERVICES,Supplies & Services,Revenue
Walsall Council,http://opendatacommunities.org/id/metropolitan-district-council/walsall,WC89-06,28/02/2018,Childrens,5 CARE SERVICES LTD,13/02/2018,"1,127.00",63000-PROFESSIONAL FEES AND SERVICES,DIRECTLY COMMISSIONED NURSING SERVICES,Supplies & Services,Revenue
Walsall Council,http://opendatacommunities.org/id/metropolitan-district-council/walsall,WC89-07,28/02/2018,Childrens,5 CARE SERVICES LTD,13/02/2018,"1,176.00",63000-PROFESSIONAL FEES AND SERVICES,DIRECTLY COMMISSIONED NURSING SERVICES,Supplies & Services,Revenue
Walsall Council,http://opendatacommunities.org/id/metropolitan-district-council/walsall,WC89-08,28/02/2018,Adult Social Care,5 CARE SERVICES LTD,13/02/2018,"1,231.52",73019-PSE'S-PRIV CONTRACTOR FEES,INTEGRATED DISCHARGE TEAM,Third Party Payments,Revenue
Walsall Council,http://opendatacommunities.org/id/metropolitan-district-council/walsall,WC89-09,28/02/2018,Childrens,5 CARE SERVICES LTD,13/02/2018,"1,813.00",63000-PROFESSIONAL FEES AND SERVICES,DIRECTLY COMMISSIONED NURSING SERVICES,Supplies & Services,Revenue
Walsall Council,http://opendatacommunities.org/id/metropolitan-district-council/walsall,WC89-10,28/02/2018,Adult Social Care,5 CARE SERVICES LTD,01/02/2018,"6,978.21",73372-DOMICILIARY CARE,OP PACKAGE/PLACEMENT COSTS,Third Party Payments,Revenue
Walsall Council,http://opendatacommunities.org/id/metropolitan-district-council/walsall,WC89-11,28/02/2018,Adult Social Care,5 CARE SERVICES LTD,21/02/2018,"39,996.69",73372-DOMICILIARY CARE,OP PACKAGE/PLACEMENT COSTS,Third Party Payments,Revenue
Walsall Council,http://opendatacommunities.org/id/metropolitan-district-council/walsall,WC89-12,28/02/2018,Resources and Transformation,A D T FIRE AND SECURITY PLC,12/02/2018,"-1,812.43",73002-SECURITY-PRIV CONTRACTOR FEES,CENTRALISED MAINTENANCE,Third Party Payments,Revenue
Walsall Council,http://opendatacommunities.org/id/metropolitan-district-council/walsall,WC89-13,28/02/2018,Resources and Transformation,A D T FIRE AND SECURITY PLC,19/02/2018,267.83,73002-SECURITY-PRIV CONTRACTOR FEES,CENTRALISED MAINTENANCE,Third Party Payments,Revenue
Walsall Council,http://opendatacommunities.org/id/metropolitan-district-council/walsall,WC89-14,28/02/2018,Resources and Transformation,A D T FIRE AND SECURITY PLC,01/02/2018,337.79,73002-SECURITY-PRIV CONTRACTOR FEES,CENTRALISED MAINTENANCE,Third Party Payments,Revenue
Walsall Council,http://opendatacommunities.org/id/metropolitan-district-council/walsall,WC89-15,28/02/2018,Resources and Transformation,A D T FIRE AND SECURITY PLC,21/02/2018,"1,188.80",73002-SECURITY-PRIV CONTRACTOR FEES,CENTRALISED MAINTENANCE,Third Party Payments,Revenue
Walsall Council,http://opendatacommunities.org/id/metropolitan-district-council/walsall,WC89-16,28/02/2018,Resources and Transformation,A D T FIRE AND SECURITY PLC,01/02/2018,"2,455.00",73002-SECURITY-PRIV CONTRACTOR FEES,CENTRALISED MAINTENANCE,Third Party Payments,Revenue
Walsall Council,http://opendatacommunities.org/id/metropolitan-district-council/walsall,WC89-17,28/02/2018,Economy & Environment,A F BLAKEMORE & SON LTD,07/02/2018,275.93,61018-DRINKS-PROVISIONS,OAK PARK,Supplies & Services,Revenue
Walsall Council,http://opendatacommunities.org/id/metropolitan-district-council/walsall,WC89-18,28/02/2018,Economy & Environment,A F BLAKEMORE & SON LTD,19/02/2018,282.90,61018-DRINKS-PROVISIONS,OAK PARK,Supplies & Services,Revenue
Walsall Council,http://opendatacommunities.org/id/metropolitan-district-council/walsall,WC89-19,28/02/2018,Economy & Environment,A F BLAKEMORE & SON LTD,15/02/2018,334.24,61018-DRINKS-PROVISIONS,OAK PARK,Supplies & Services,Revenue
Walsall Council,http://opendatacommunities.org/id/metropolitan-district-council/walsall,WC89-20,28/02/2018,Economy & Environment,A F BLAKEMORE & SON LTD,07/02/2018,349.07,61018-DRINKS-PROVISIONS,OAK PARK,Supplies & Services,Revenue
Walsall Council,http://opendatacommunities.org/id/metropolitan-district-council/walsall,WC89-21,28/02/2018,Economy & Environment,A F BLAKEMORE & SON LTD,12/02/2018,372.59,61002-DRY FOODS-PROVISIONS,BLOXWICH LEISURE CENTRE,Supplies & Services,Revenue
Walsall Council,http://opendatacommunities.org/id/metropolitan-district-council/walsall,WC89-22,28/02/2018,Economy & Environment,A F BLAKEMORE & SON LTD,16/02/2018,398.36,61018-DRINKS-PROVISIONS,OAK PARK,Supplies & Services,Revenue
Walsall Council,http://opendatacommunities.org/id/metropolitan-district-council/walsall,WC89-23,28/02/2018,Economy & Environment,A F BLAKEMORE & SON LTD,05/02/2018,403.64,61018-DRINKS-PROVISIONS,DARLASTON LEISURE CENTRE,Supplies & Services,Revenue
Walsall Council,http://opendatacommunities.org/id/metropolitan-district-council/walsall,WC89-24,28/02/2018,Adult Social Care,A F BLAKEMORE & SON LTD,15/02/2018,405.98,61016-FOOD AND BEVERAGES-PROVISIONS,GOSCOTE,Supplies & Services,Revenue
Walsall Council,http://opendatacommunities.org/id/metropolitan-district-council/walsall,WC89-25,28/02/2018,Adult Social Care,A F BLAKEMORE & SON LTD,22/02/2018,449.57,61016-FOOD AND BEVERAGES-PROVISIONS,GOSCOTE,Supplies & Services,Revenue
Walsall Council,http://opendatacommunities.org/id/metropolitan-district-council/walsall,WC89-26,28/02/2018,Economy & Environment,A F BLAKEMORE & SON LTD,05/02/2018,505.99,61008-CONFECTIONERY/SNACKS-PROVISIONS,DARLASTON LEISURE CENTRE,Supplies & Services,Revenue
Walsall Council,http://opendatacommunities.org/id/metropolitan-district-council/walsall,WC89-27,28/02/2018,Adult Social Care,A F BLAKEMORE & SON LTD,16/02/2018,542.01,61016-FOOD AND BEVERAGES-PROVISIONS,REABLEMENT TEAM - HOLLY BANK,Supplies & Services,Revenue
Walsall Council,http://opendatacommunities.org/id/metropolitan-district-council/walsall,WC89-28,28/02/2018,Economy & Environment,A F BLAKEMORE & SON LTD,19/02/2018,544.55,61018-DRINKS-PROVISIONS,OAK PARK,Supplies & Services,Revenue
Walsall Council,http://opendatacommunities.org/id/metropolitan-district-council/walsall,WC89-29,28/02/2018,Economy & Environment,A F BLAKEMORE & SON LTD,26/02/2018,593.02,61008-CONFECTIONERY/SNACKS-PROVISIONS,OAK PARK,Supplies & Services,Revenue
Walsall Council,http://opendatacommunities.org/id/metropolitan-district-council/walsall,WC89-30,28/02/2018,Economy & Environment,A F BLAKEMORE & SON LTD,07/02/2018,777.46,61008-CONFECTIONERY/SNACKS-PROVISIONS,OAK PARK,Supplies & Services,Revenue
Walsall Council,http://opendatacommunities.org/id/metropolitan-district-council/walsall,WC89-31,28/02/2018,Economy & Environment,A F BLAKEMORE & SON LTD,13/02/2018,902.79,61008-CONFECTIONERY/SNACKS-PROVISIONS,OAK PARK,Supplies & Services,Revenue
Walsall Council,http://opendatacommunities.org/id/metropolitan-district-council/walsall,WC89-32,28/02/2018,Economy & Environment,A F BLAKEMORE & SON LTD,12/02/2018,"1,364.65",61002-DRY FOODS-PROVISIONS,BLOXWICH LEISURE CENTRE,Supplies & Services,Revenue
Walsall Council,http://opendatacommunities.org/id/metropolitan-district-council/walsall,WC89-33,28/02/2018,Economy & Environment,A KARIMS CHUCKERY PHARMACY,06/02/2018,295.14,71007-CONTRIBUTION TO PCT,PUBLIC HEALTH BUSINESS SUPPORT,Third Party Payments,Revenue
Walsall Council,http://opendatacommunities.org/id/metropolitan-district-council/walsall,WC89-34,28/02/2018,Economy & Environment,A KARIMS CHUCKERY PHARMACY,02/02/2018,335.83,71007-CONTRIBUTION TO PCT,PUBLIC HEALTH BUSINESS SUPPORT,Third Party Payments,Revenue
Walsall Council,http://opendatacommunities.org/id/metropolitan-district-council/walsall,WC89-35,28/02/2018,Economy & Environment,A KARIMS CHUCKERY PHARMACY,06/02/2018,386.24,71007-CONTRIBUTION TO PCT,PUBLIC HEALTH BUSINESS SUPPORT,Third Party Payments,Revenue
Walsall Council,http://opendatacommunities.org/id/metropolitan-district-council/walsall,WC89-36,28/02/2018,Economy & Environment,A KARIMS CHUCKERY PHARMACY,12/02/2018,387.47,71007-CONTRIBUTION TO PCT,PUBLIC HEALTH BUSINESS SUPPORT,Third Party Payments,Revenue
Walsall Council,http://opendatacommunities.org/id/metropolitan-district-council/walsall,WC89-37,28/02/2018,Adult Social Care,A STAR SUPPORT SERVICES LIMITED,14/02/2018,"1,682.00",73374-SUPPORTED & OTHER ACCOMMODATION,LD PACKAGE/PLACEMENT COSTS,Third Party Payments,Revenue
Walsall Council,http://opendatacommunities.org/id/metropolitan-district-council/walsall,WC89-38,28/02/2018,Economy & Environment,A1 STAGE,06/02/2018,620.00,63000-PROFESSIONAL FEES AND SERVICES,FOREST ARTS CENTRE,Supplies & Services,Revenue
Walsall Council,http://opendatacommunities.org/id/metropolitan-district-council/walsall,WC89-39,28/02/2018,Childrens,REDACTED,05/02/2018,378.00,76422-DIRECT PAYMENTS TO SOCIAL SERVICES CLIENTS,FAMILY SUPPORT - DIRECT PAYMENTS,Transfer Payments,Revenue
Walsall Council,http://opendatacommunities.org/id/metropolitan-district-council/walsall,WC89-40,28/02/2018,Adult Social Care,ABBEY COURT NURSING & RESIDEN,13/02/2018,"1,697.08",73373-RESIDENTIAL & NURSING CARE PLACEMENTS,OP PACKAGE/PLACEMENT COSTS,Third Party Payments,Revenue
Walsall Council,http://opendatacommunities.org/id/metropolitan-district-council/walsall,WC89-41,28/02/2018,Adult Social Care,ABBEY COURT NURSING & RESIDEN,13/02/2018,"1,840.00",73373-RESIDENTIAL & NURSING CARE PLACEMENTS,OP PACKAGE/PLACEMENT COSTS,Third Party Payments,Revenue
Walsall Council,http://opendatacommunities.org/id/metropolitan-district-council/walsall,WC89-42,28/02/2018,Adult Social Care,ABBEY COURT NURSING & RESIDEN,13/02/2018,"1,937.08",73373-RESIDENTIAL & NURSING CARE PLACEMENTS,OP PACKAGE/PLACEMENT COSTS,Third Party Payments,Revenue
Walsall Council,http://opendatacommunities.org/id/metropolitan-district-council/walsall,WC89-43,28/02/2018,Adult Social Care,ABBEY COURT NURSING & RESIDEN,13/02/2018,"2,000.00",73373-RESIDENTIAL & NURSING CARE PLACEMENTS,OP PACKAGE/PLACEMENT COSTS,Third Party Payments,Revenue
Walsall Council,http://opendatacommunities.org/id/metropolitan-district-council/walsall,WC89-44,28/02/2018,Adult Social Care,ABBEY COURT NURSING & RESIDEN,13/02/2018,"3,417.14",73373-RESIDENTIAL & NURSING CARE PLACEMENTS,OP PACKAGE/PLACEMENT COSTS,Third Party Payments,Revenue
Walsall Council,http://opendatacommunities.org/id/metropolitan-district-council/walsall,WC89-45,28/02/2018,Adult Social Care,ABBEY HEALTHCARE HOMES LTD,27/02/2018,685.71,73373-RESIDENTIAL & NURSING CARE PLACEMENTS,OP PACKAGE/PLACEMENT COSTS,Third Party Payments,Revenue
Walsall Council,http://opendatacommunities.org/id/metropolitan-district-council/walsall,WC89-46,28/02/2018,Adult Social Care,ABBEY HEALTHCARE HOMES LTD,13/02/2018,"1,699.28",73373-RESIDENTIAL & NURSING CARE PLACEMENTS,PD PACKAGE/PLACEMENT COSTS,Third Party Payments,Revenue
Walsall Council,http://opendatacommunities.org/id/metropolitan-district-council/walsall,WC89-47,28/02/2018,Adult Social Care,ABBEY HEALTHCARE HOMES LTD,27/02/2018,"1,699.28",73373-RESIDENTIAL & NURSING CARE PLACEMENTS,PD PACKAGE/PLACEMENT COSTS,Third Party Payments,Revenue
Walsall Council,http://opendatacommunities.org/id/metropolitan-district-council/walsall,WC89-48,28/02/2018,Adult Social Care,ABBEY HEALTHCARE HOMES LTD,13/02/2018,"2,294.08",73373-RESIDENTIAL & NURSING CARE PLACEMENTS,PD PACKAGE/PLACEMENT COSTS,Third Party Payments,Revenue
Walsall Council,http://opendatacommunities.org/id/metropolitan-district-council/walsall,WC89-49,28/02/2018,Adult Social Care,ABBEY HEALTHCARE HOMES LTD,27/02/2018,"2,294.08",73373-RESIDENTIAL & NURSING CARE PLACEMENTS,PD PACKAGE/PLACEMENT COSTS,Third Party Payments,Revenue
Walsall Council,http://opendatacommunities.org/id/metropolitan-district-council/walsall,WC89-50,28/02/2018,Adult Social Care,ABBEY HEALTHCARE HOMES LTD,27/02/2018,"3,200.00",73373-RESIDENTIAL & NURSING CARE PLACEMENTS,OP PACKAGE/PLACEMENT COSTS,Third Party Payments,Revenue
Walsall Council,http://opendatacommunities.org/id/metropolitan-district-council/walsall,WC89-51,28/02/2018,Adult Social Care,ABBEY HEALTHCARE HOMES LTD,27/02/2018,"3,200.00",73373-RESIDENTIAL & NURSING CARE PLACEMENTS,OP PACKAGE/PLACEMENT COSTS,Third Party Payments,Revenue
Walsall Council,http://opendatacommunities.org/id/metropolitan-district-council/walsall,WC89-52,28/02/2018,Adult Social Care,ABBEY HEALTHCARE HOMES LTD,27/02/2018,"3,200.00",73373-RESIDENTIAL & NURSING CARE PLACEMENTS,OP PACKAGE/PLACEMENT COSTS,Third Party Payments,Revenue
Walsall Council,http://opendatacommunities.org/id/metropolitan-district-council/walsall,WC89-53,28/02/2018,Adult Social Care,ABBEY HEALTHCARE HOMES LTD,27/02/2018,"3,200.00",73373-RESIDENTIAL & NURSING CARE PLACEMENTS,OP PACKAGE/PLACEMENT COSTS,Third Party Payments,Revenue
Walsall Council,http://opendatacommunities.org/id/metropolitan-district-council/walsall,WC89-54,28/02/2018,Childrens,ABC FOSTERING,26/02/2018,"1,256.91",74037-INDEPENDENT FOSTER CARE-OTH AGENCY PROVISION,EXTERNAL FOSTER CARE PROVISION,Third Party Payments,Revenue
Walsall Council,http://opendatacommunities.org/id/metropolitan-district-council/walsall,WC89-55,28/02/2018,Childrens,ABC FOSTERING,26/02/2018,"1,256.91",74037-INDEPENDENT FOSTER CARE-OTH AGENCY PROVISION,EXTERNAL FOSTER CARE PROVISION,Third Party Payments,Revenue
Walsall Council,http://opendatacommunities.org/id/metropolitan-district-council/walsall,WC89-56,28/02/2018,Childrens,ABC FOSTERING,26/02/2018,"1,256.91",74037-INDEPENDENT FOSTER CARE-OTH AGENCY PROVISION,EXTERNAL FOSTER CARE PROVISION,Third Party Payments,Revenue
Walsall Council,http://opendatacommunities.org/id/metropolitan-district-council/walsall,WC89-57,28/02/2018,Childrens,ABC FOSTERING,26/02/2018,"1,894.28",74037-INDEPENDENT FOSTER CARE-OTH AGENCY PROVISION,EXTERNAL FOSTER CARE PROVISION,Third Party Payments,Revenue
Walsall Council,http://opendatacommunities.org/id/metropolitan-district-council/walsall,WC89-58,28/02/2018,Childrens,ABC FOSTERING,26/02/2018,"2,340.00",74037-INDEPENDENT FOSTER CARE-OTH AGENCY PROVISION,EXTERNAL FOSTER CARE PROVISION,Third Party Payments,Revenue
Walsall Council,http://opendatacommunities.org/id/metropolitan-district-council/walsall,WC89-59,28/02/2018,Childrens,ABC FOSTERING,26/02/2018,"2,635.20",74037-INDEPENDENT FOSTER CARE-OTH AGENCY PROVISION,EXTERNAL FOSTER CARE PROVISION,Third Party Payments,Revenue
Walsall Council,http://opendatacommunities.org/id/metropolitan-district-council/walsall,WC89-60,28/02/2018,Childrens,ABC FOSTERING,26/02/2018,"2,859.48",74037-INDEPENDENT FOSTER CARE-OTH AGENCY PROVISION,EXTERNAL FOSTER CARE PROVISION,Third Party Payments,Revenue
Walsall Council,http://opendatacommunities.org/id/metropolitan-district-council/walsall,WC89-61,28/02/2018,Childrens,ABC FOSTERING,26/02/2018,"3,042.00",74037-INDEPENDENT FOSTER CARE-OTH AGENCY PROVISION,EXTERNAL FOSTER CARE PROVISION,Third Party Payments,Revenue
Walsall Council,http://opendatacommunities.org/id/metropolitan-district-council/walsall,WC89-62,28/02/2018,Childrens,ABC FOSTERING,26/02/2018,"3,182.40",74037-INDEPENDENT FOSTER CARE-OTH AGENCY PROVISION,EXTERNAL FOSTER CARE PROVISION,Third Party Payments,Revenue
Walsall Council,http://opendatacommunities.org/id/metropolitan-district-council/walsall,WC89-63,28/02/2018,Adult Social Care,REDACTED,05/02/2018,"1,557.68",76422-DIRECT PAYMENTS TO SOCIAL SERVICES CLIENTS,LD PACKAGE/PLACEMENT COSTS,Transfer Payments,Revenue
Walsall Council,http://opendatacommunities.org/id/metropolitan-district-council/walsall,WC89-64,28/02/2018,Resources and Transformation,ABEL ALARM CO LTD,20/02/2018,368.00,63224-SECURITY ALARMS-NEW/REP & MAINT-PAYMENT TO CONTRACTOR,TENANCY SERVICE,Premises,Revenue
Walsall Council,http://opendatacommunities.org/id/metropolitan-district-council/walsall,WC89-65,28/02/2018,Adult Social Care,REDACTED,05/02/2018,"1,764.00",76422-DIRECT PAYMENTS TO SOCIAL SERVICES CLIENTS,LD PACKAGE/PLACEMENT COSTS,Transfer Payments,Revenue
Walsall Council,http://opendatacommunities.org/id/metropolitan-district-council/walsall,WC89-66,28/02/2018,Economy & Environment,AC COACHING & SPORTS DEVELOPMENT LIMITED,02/02/2018,570.00,63000-PROFESSIONAL FEES AND SERVICES,SCHOOL GAMES,Supplies & Services,Revenue
Walsall Council,http://opendatacommunities.org/id/metropolitan-district-council/walsall,WC89-67,28/02/2018,Childrens,AC EDUCATION,02/02/2018,300.00,63000-PROFESSIONAL FEES AND SERVICES,VIRTUAL SCHOOL CENTRAL PUPIL PREMIUM,Supplies & Services,Revenue
Walsall Council,http://opendatacommunities.org/id/metropolitan-district-council/walsall,WC89-68,28/02/2018,Childrens,AC EDUCATION,02/02/2018,"1,100.00",63000-PROFESSIONAL FEES AND SERVICES,VIRTUAL SCHOOL CENTRAL PUPIL PREMIUM,Supplies & Services,Revenue
Walsall Council,http://opendatacommunities.org/id/metropolitan-district-council/walsall,WC89-69,28/02/2018,Childrens,AC EDUCATION,16/02/2018,"4,255.00",63114-OTHER FEES & LICENCES-SERVICES-FEES,FAMILY PLACEMENTS,Supplies & Services,Revenue
Walsall Council,http://opendatacommunities.org/id/metropolitan-district-council/walsall,WC89-70,28/02/2018,Adult Social Care,ACCORD HOUSING ASSOCIATION LTD#135,13/02/2018,317.96,73373-RESIDENTIAL & NURSING CARE PLACEMENTS,LD PACKAGE/PLACEMENT COSTS,Third Party Payments,Revenue
Walsall Council,http://opendatacommunities.org/id/metropolitan-district-council/walsall,WC89-71,28/02/2018,Adult Social Care,ACCORD HOUSING ASSOCIATION LTD#135,13/02/2018,317.96,73373-RESIDENTIAL & NURSING CARE PLACEMENTS,LD PACKAGE/PLACEMENT COSTS,Third Party Payments,Revenue
Walsall Council,http://opendatacommunities.org/id/metropolitan-district-council/walsall,WC89-72,28/02/2018,Adult Social Care,ACCORD HOUSING ASSOCIATION LTD#135,20/02/2018,386.78,73374-SUPPORTED & OTHER ACCOMMODATION,LD PACKAGE/PLACEMENT COSTS,Third Party Payments,Revenue
Walsall Council,http://opendatacommunities.org/id/metropolitan-district-council/walsall,WC89-73,28/02/2018,Childrens,ACCORD HOUSING ASSOCIATION LTD#135,13/02/2018,462.28,43000-RENTS,SAFEGUARDING & FAMILY SUPPORT,Premises,Revenue
Walsall Council,http://opendatacommunities.org/id/metropolitan-district-council/walsall,WC89-74,28/02/2018,Adult Social Care,ACCORD HOUSING ASSOCIATION LTD#135,14/02/2018,596.92,73374-SUPPORTED & OTHER ACCOMMODATION,MENTAL HEALTH PACKAGE/PLACEMENT COSTS,Third Party Payments,Revenue
Walsall Council,http://opendatacommunities.org/id/metropolitan-district-council/walsall,WC89-75,28/02/2018,Adult Social Care,ACCORD HOUSING ASSOCIATION LTD#135,14/02/2018,604.48,73374-SUPPORTED & OTHER ACCOMMODATION,MENTAL HEALTH PACKAGE/PLACEMENT COSTS,Third Party Payments,Revenue
Walsall Council,http://opendatacommunities.org/id/metropolitan-district-council/walsall,WC89-76,28/02/2018,Adult Social Care,ACCORD HOUSING ASSOCIATION LTD#135,20/02/2018,605.02,73374-SUPPORTED & OTHER ACCOMMODATION,OP PACKAGE/PLACEMENT COSTS,Third Party Payments,Revenue
Walsall Council,http://opendatacommunities.org/id/metropolitan-district-council/walsall,WC89-77,28/02/2018,Adult Social Care,ACCORD HOUSING ASSOCIATION LTD#135,14/02/2018,661.12,73374-SUPPORTED & OTHER ACCOMMODATION,MENTAL HEALTH PACKAGE/PLACEMENT COSTS,Third Party Payments,Revenue
Walsall Council,http://opendatacommunities.org/id/metropolitan-district-council/walsall,WC89-78,28/02/2018,Adult Social Care,ACCORD HOUSING ASSOCIATION LTD#135,14/02/2018,793.36,73374-SUPPORTED & OTHER ACCOMMODATION,MENTAL HEALTH PACKAGE/PLACEMENT COSTS,Third Party Payments,Revenue
Walsall Council,http://opendatacommunities.org/id/metropolitan-district-council/walsall,WC89-79,28/02/2018,Adult Social Care,ACCORD HOUSING ASSOCIATION LTD#135,14/02/2018,793.36,73374-SUPPORTED & OTHER ACCOMMODATION,MENTAL HEALTH PACKAGE/PLACEMENT COSTS,Third Party Payments,Revenue
Walsall Council,http://opendatacommunities.org/id/metropolitan-district-council/walsall,WC89-80,28/02/2018,Adult Social Care,ACCORD HOUSING ASSOCIATION LTD#135,20/02/2018,794.90,73373-RESIDENTIAL & NURSING CARE PLACEMENTS,LD PACKAGE/PLACEMENT COSTS,Third Party Payments,Revenue
Walsall Council,http://opendatacommunities.org/id/metropolitan-district-council/walsall,WC89-81,28/02/2018,Adult Social Care,ACCORD HOUSING ASSOCIATION LTD#135,14/02/2018,868.96,73374-SUPPORTED & OTHER ACCOMMODATION,MENTAL HEALTH PACKAGE/PLACEMENT COSTS,Third Party Payments,Revenue
Walsall Council,http://opendatacommunities.org/id/metropolitan-district-council/walsall,WC89-82,28/02/2018,Adult Social Care,ACCORD HOUSING ASSOCIATION LTD#135,14/02/2018,"1,133.40",73374-SUPPORTED & OTHER ACCOMMODATION,MENTAL HEALTH PACKAGE/PLACEMENT COSTS,Third Party Payments,Revenue
Walsall Council,http://opendatacommunities.org/id/metropolitan-district-council/walsall,WC89-83,28/02/2018,Adult Social Care,ACCORD HOUSING ASSOCIATION LTD#135,14/02/2018,"1,227.84",73374-SUPPORTED & OTHER ACCOMMODATION,MENTAL HEALTH PACKAGE/PLACEMENT COSTS,Third Party Payments,Revenue
Walsall Council,http://opendatacommunities.org/id/metropolitan-district-council/walsall,WC89-84,28/02/2018,Adult Social Care,ACCORD HOUSING ASSOCIATION LTD#135,20/02/2018,"1,259.28",73374-SUPPORTED & OTHER ACCOMMODATION,LD PACKAGE/PLACEMENT COSTS,Third Party Payments,Revenue
Walsall Council,http://opendatacommunities.org/id/metropolitan-district-council/walsall,WC89-85,28/02/2018,Adult Social Care,ACCORD HOUSING ASSOCIATION LTD#135,14/02/2018,"1,322.28",73374-SUPPORTED & OTHER ACCOMMODATION,MENTAL HEALTH PACKAGE/PLACEMENT COSTS,Third Party Payments,Revenue
Walsall Council,http://opendatacommunities.org/id/metropolitan-district-council/walsall,WC89-86,28/02/2018,Adult Social Care,ACCORD HOUSING ASSOCIATION LTD#135,14/02/2018,"1,322.28",73374-SUPPORTED & OTHER ACCOMMODATION,MENTAL HEALTH PACKAGE/PLACEMENT COSTS,Third Party Payments,Revenue
Walsall Council,http://opendatacommunities.org/id/metropolitan-district-council/walsall,WC89-87,28/02/2018,Adult Social Care,ACCORD HOUSING ASSOCIATION LTD#135,20/02/2018,"1,529.15",73374-SUPPORTED & OTHER ACCOMMODATION,LD PACKAGE/PLACEMENT COSTS,Third Party Payments,Revenue
Walsall Council,http://opendatacommunities.org/id/metropolitan-district-council/walsall,WC89-88,28/02/2018,Adult Social Care,ACCORD HOUSING ASSOCIATION LTD#135,14/02/2018,"1,567.84",73374-SUPPORTED & OTHER ACCOMMODATION,MENTAL HEALTH PACKAGE/PLACEMENT COSTS,Third Party Payments,Revenue
Walsall Council,http://opendatacommunities.org/id/metropolitan-district-council/walsall,WC89-89,28/02/2018,Adult Social Care,ACCORD HOUSING ASSOCIATION LTD#135,27/02/2018,"1,894.89",73373-RESIDENTIAL & NURSING CARE PLACEMENTS,LD PACKAGE/PLACEMENT COSTS,Third Party Payments,Revenue
Walsall Council,http://opendatacommunities.org/id/metropolitan-district-council/walsall,WC89-90,28/02/2018,Adult Social Care,ACCORD HOUSING ASSOCIATION LTD#135,27/02/2018,"2,526.52",73373-RESIDENTIAL & NURSING CARE PLACEMENTS,LD PACKAGE/PLACEMENT COSTS,Third Party Payments,Revenue
Walsall Council,http://opendatacommunities.org/id/metropolitan-district-council/walsall,WC89-91,28/02/2018,Adult Social Care,ACCORD HOUSING ASSOCIATION LTD#135,01/02/2018,"2,549.01",73372-DOMICILIARY CARE,OP PACKAGE/PLACEMENT COSTS,Third Party Payments,Revenue
Walsall Council,http://opendatacommunities.org/id/metropolitan-district-council/walsall,WC89-92,28/02/2018,Adult Social Care,ACCORD HOUSING ASSOCIATION LTD#135,20/02/2018,"3,177.60",73373-RESIDENTIAL & NURSING CARE PLACEMENTS,LD PACKAGE/PLACEMENT COSTS,Third Party Payments,Revenue
Walsall Council,http://opendatacommunities.org/id/metropolitan-district-council/walsall,WC89-93,28/02/2018,Adult Social Care,ACCORD HOUSING ASSOCIATION LTD#135,27/02/2018,"4,420.40",73373-RESIDENTIAL & NURSING CARE PLACEMENTS,LD PACKAGE/PLACEMENT COSTS,Third Party Payments,Revenue
Walsall Council,http://opendatacommunities.org/id/metropolitan-district-council/walsall,WC89-94,28/02/2018,Adult Social Care,ACCORD HOUSING ASSOCIATION LTD#135,27/02/2018,"4,421.40",73373-RESIDENTIAL & NURSING CARE PLACEMENTS,LD PACKAGE/PLACEMENT COSTS,Third Party Payments,Revenue
Walsall Council,http://opendatacommunities.org/id/metropolitan-district-council/walsall,WC89-95,28/02/2018,Adult Social Care,ACCORD HOUSING ASSOCIATION LTD#135,27/02/2018,"4,421.40",73373-RESIDENTIAL & NURSING CARE PLACEMENTS,LD PACKAGE/PLACEMENT COSTS,Third Party Payments,Revenue
Walsall Council,http://opendatacommunities.org/id/metropolitan-district-council/walsall,WC89-96,28/02/2018,Adult Social Care,ACCORD HOUSING ASSOCIATION LTD#135,27/02/2018,"4,421.40",73373-RESIDENTIAL & NURSING CARE PLACEMENTS,LD PACKAGE/PLACEMENT COSTS,Third Party Payments,Revenue
Walsall Council,http://opendatacommunities.org/id/metropolitan-district-council/walsall,WC89-97,28/02/2018,Adult Social Care,ACCORD HOUSING ASSOCIATION LTD#135,27/02/2018,"4,421.40",73373-RESIDENTIAL & NURSING CARE PLACEMENTS,LD PACKAGE/PLACEMENT COSTS,Third Party Payments,Revenue
Walsall Council,http://opendatacommunities.org/id/metropolitan-district-council/walsall,WC89-98,28/02/2018,Adult Social Care,ACCORD HOUSING ASSOCIATION LTD#135,27/02/2018,"6,170.84",73373-RESIDENTIAL & NURSING CARE PLACEMENTS,LD PACKAGE/PLACEMENT COSTS,Third Party Payments,Revenue
Walsall Council,http://opendatacommunities.org/id/metropolitan-district-council/walsall,WC89-99,28/02/2018,Adult Social Care,ACCORD HOUSING ASSOCIATION LTD#135,27/02/2018,"6,170.84",73373-RESIDENTIAL & NURSING CARE PLACEMENTS,LD PACKAGE/PLACEMENT COSTS,Third Party Payments,Revenue
Walsall Council,http://opendatacommunities.org/id/metropolitan-district-council/walsall,WC89-100,28/02/2018,Adult Social Care,ACCORD HOUSING ASSOCIATION LTD#135,27/02/2018,"6,170.84",73373-RESIDENTIAL & NURSING CARE PLACEMENTS,LD PACKAGE/PLACEMENT COSTS,Third Party Payments,Revenue
Walsall Council,http://opendatacommunities.org/id/metropolitan-district-council/walsall,WC89-101,28/02/2018,Childrens,ACCORD HOUSING ASSOCIATION LTD#135,21/02/2018,"6,655.50",63102-CONSULTANTS FEES - CORPORATE,TOXIC TRIO,Supplies & Services,Revenue
Walsall Council,http://opendatacommunities.org/id/metropolitan-district-council/walsall,WC89-102,28/02/2018,Adult Social Care,ACCORD HOUSING ASSOCIATION LTD#135,01/02/2018,"38,436.08",73372-DOMICILIARY CARE,OP PACKAGE/PLACEMENT COSTS,Third Party Payments,Revenue
Walsall Council,http://opendatacommunities.org/id/metropolitan-district-council/walsall,WC89-103,28/02/2018,Economy & Environment,ACCORD HOUSING ASSOCIATION LTD#135,06/02/2018,"176,219.09",66500-GRANTS TO OTHER ORGS,CITY DEAL WELFARE PILOT,Third Party Payments,Revenue
Walsall Council,http://opendatacommunities.org/id/metropolitan-district-council/walsall,WC89-104,28/02/2018,Adult Social Care,ACE CARE AGENCY,01/02/2018,430.80,73372-DOMICILIARY CARE,OP PACKAGE/PLACEMENT COSTS,Third Party Payments,Revenue
Walsall Council,http://opendatacommunities.org/id/metropolitan-district-council/walsall,WC89-105,28/02/2018,Adult Social Care,ACE CARE AGENCY,01/02/2018,494.92,73372-DOMICILIARY CARE,OP PACKAGE/PLACEMENT COSTS,Third Party Payments,Revenue
Walsall Council,http://opendatacommunities.org/id/metropolitan-district-council/walsall,WC89-106,28/02/2018,Adult Social Care,ACE CARE AGENCY,01/02/2018,559.04,73374-SUPPORTED & OTHER ACCOMMODATION,OP PACKAGE/PLACEMENT COSTS,Third Party Payments,Revenue
Walsall Council,http://opendatacommunities.org/id/metropolitan-district-council/walsall,WC89-107,28/02/2018,Adult Social Care,ACE CARE AGENCY,02/02/2018,577.36,73372-DOMICILIARY CARE,OP PACKAGE/PLACEMENT COSTS,Third Party Payments,Revenue
Walsall Council,http://opendatacommunities.org/id/metropolitan-district-council/walsall,WC89-108,28/02/2018,Adult Social Care,ACE CARE AGENCY,06/02/2018,577.36,73372-DOMICILIARY CARE,OP PACKAGE/PLACEMENT COSTS,Third Party Payments,Revenue
Walsall Council,http://opendatacommunities.org/id/metropolitan-district-council/walsall,WC89-109,28/02/2018,Adult Social Care,ACE CARE AGENCY,02/02/2018,866.60,73372-DOMICILIARY CARE,OP PACKAGE/PLACEMENT COSTS,Third Party Payments,Revenue
Walsall Council,http://opendatacommunities.org/id/metropolitan-district-council/walsall,WC89-110,28/02/2018,Adult Social Care,ACE CARE AGENCY,02/02/2018,990.00,73372-DOMICILIARY CARE,OP PACKAGE/PLACEMENT COSTS,Third Party Payments,Revenue
Walsall Council,http://opendatacommunities.org/id/metropolitan-district-council/walsall,WC89-111,28/02/2018,Adult Social Care,ACEPAY LTD (COTTAGE NUR HOME),13/02/2018,"1,656.00",73373-RESIDENTIAL & NURSING CARE PLACEMENTS,OP PACKAGE/PLACEMENT COSTS,Third Party Payments,Revenue
Walsall Council,http://opendatacommunities.org/id/metropolitan-district-council/walsall,WC89-112,28/02/2018,Adult Social Care,ACEPAY LTD (COTTAGE NUR HOME),13/02/2018,"2,000.00",73373-RESIDENTIAL & NURSING CARE PLACEMENTS,OP PACKAGE/PLACEMENT COSTS,Third Party Payments,Revenue
Walsall Council,http://opendatacommunities.org/id/metropolitan-district-council/walsall,WC89-113,28/02/2018,Adult Social Care,ACEPAY LTD (COTTAGE NUR HOME),13/02/2018,"2,000.00",73373-RESIDENTIAL & NURSING CARE PLACEMENTS,OP PACKAGE/PLACEMENT COSTS,Third Party Payments,Revenue
Walsall Council,http://opendatacommunities.org/id/metropolitan-district-council/walsall,WC89-114,28/02/2018,Adult Social Care,ACEPAY LTD (COTTAGE NUR HOME),13/02/2018,"2,000.00",73373-RESIDENTIAL & NURSING CARE PLACEMENTS,OP PACKAGE/PLACEMENT COSTS,Third Party Payments,Revenue
Walsall Council,http://opendatacommunities.org/id/metropolitan-district-council/walsall,WC89-115,28/02/2018,Adult Social Care,ACEPAY LTD (COTTAGE NUR HOME),13/02/2018,"2,000.00",73373-RESIDENTIAL & NURSING CARE PLACEMENTS,OP PACKAGE/PLACEMENT COSTS,Third Party Payments,Revenue
Walsall Council,http://opendatacommunities.org/id/metropolitan-district-council/walsall,WC89-116,28/02/2018,Adult Social Care,ACEPAY LTD (COTTAGE NUR HOME),20/02/2018,"2,000.00",73373-RESIDENTIAL & NURSING CARE PLACEMENTS,OP PACKAGE/PLACEMENT COSTS,Third Party Payments,Revenue
Walsall Council,http://opendatacommunities.org/id/metropolitan-district-council/walsall,WC89-117,28/02/2018,Economy & Environment,ACIVICO LTD,13/02/2018,"3,590.80",01001-OTHER CONSULTANTS FEES,CFR 1008 WALSALL MARKET,Capital,Capital
Walsall Council,http://opendatacommunities.org/id/metropolitan-district-council/walsall,WC89-118,28/02/2018,Childrens,ACORN ABA LIMITED,15/02/2018,889.80,66502-TOP UP FUNDING -GRANTS TO SCHOOLS,INDEPENDENT PROVIDERS - SPECIAL & AP,Third Party Payments,Revenue
Walsall Council,http://opendatacommunities.org/id/metropolitan-district-council/walsall,WC89-119,28/02/2018,Adult Social Care,ACORN REST HOME,13/02/2018,"1,656.00",73373-RESIDENTIAL & NURSING CARE PLACEMENTS,OP PACKAGE/PLACEMENT COSTS,Third Party Payments,Revenue
Walsall Council,http://opendatacommunities.org/id/metropolitan-district-council/walsall,WC89-120,28/02/2018,Economy & Environment,ACTION DIGITAL MEDIA LTD,01/02/2018,500.00,63000-PROFESSIONAL FEES AND SERVICES,NAG - TEMPORARY EXHIBITIONS,Supplies & Services,Revenue
Walsall Council,http://opendatacommunities.org/id/metropolitan-district-council/walsall,WC89-121,28/02/2018,Economy & Environment,ACTION MIDLANDS LTD,01/02/2018,150.00,63000-PROFESSIONAL FEES AND SERVICES,YEI (IMPACT) PROGRAMME,Supplies & Services,Revenue
Walsall Council,http://opendatacommunities.org/id/metropolitan-district-council/walsall,WC89-122,28/02/2018,Economy & Environment,ACTION MIDLANDS LTD,01/02/2018,150.00,63000-PROFESSIONAL FEES AND SERVICES,YEI ESF FUNDING,Supplies & Services,Revenue
Walsall Council,http://opendatacommunities.org/id/metropolitan-district-council/walsall,WC89-123,28/02/2018,Economy & Environment,ACTION MIDLANDS LTD,01/02/2018,150.00,30030-EXTERNAL TRAINING,YEI (IMPACT) PROGRAMME,Employees,Revenue
Walsall Council,http://opendatacommunities.org/id/metropolitan-district-council/walsall,WC89-124,28/02/2018,Economy & Environment,ACTION MIDLANDS LTD,01/02/2018,150.00,30030-EXTERNAL TRAINING,YEI ESF FUNDING,Employees,Revenue
Walsall Council,http://opendatacommunities.org/id/metropolitan-district-council/walsall,WC89-125,28/02/2018,Adult Social Care,ACTION ON HEARING LOSS,13/02/2018,"1,008.00",73374-SUPPORTED & OTHER ACCOMMODATION,MENTAL HEALTH PACKAGE/PLACEMENT COSTS,Third Party Payments,Revenue
Walsall Council,http://opendatacommunities.org/id/metropolitan-district-council/walsall,WC89-126,28/02/2018,Adult Social Care,ACTON BANKS LTD,19/02/2018,"1,576.83",73025-PROFESSIONAL SERVICES-PRIV CONTRACTOR & OTHER AGENCIES,HOLLYBANK,Third Party Payments,Revenue
Walsall Council,http://opendatacommunities.org/id/metropolitan-district-council/walsall,WC89-127,28/02/2018,Adult Social Care,ACTON BANKS LTD,02/02/2018,"2,119.83",73025-PROFESSIONAL SERVICES-PRIV CONTRACTOR & OTHER AGENCIES,HOLLYBANK,Third Party Payments,Revenue
Walsall Council,http://opendatacommunities.org/id/metropolitan-district-council/walsall,WC89-128,28/02/2018,Adult Social Care,ACTON BANKS LTD,19/02/2018,"2,279.37",73025-PROFESSIONAL SERVICES-PRIV CONTRACTOR & OTHER AGENCIES,HOLLYBANK,Third Party Payments,Revenue
Walsall Council,http://opendatacommunities.org/id/metropolitan-district-council/walsall,WC89-129,28/02/2018,Adult Social Care,REDACTED,05/02/2018,433.84,76422-DIRECT PAYMENTS TO SOCIAL SERVICES CLIENTS,OP PACKAGE/PLACEMENT COSTS,Transfer Payments,Revenue
Walsall Council,http://opendatacommunities.org/id/metropolitan-district-council/walsall,WC89-130,28/02/2018,Adult Social Care,REDACTED,05/02/2018,448.60,76422-DIRECT PAYMENTS TO SOCIAL SERVICES CLIENTS,LD PACKAGE/PLACEMENT COSTS,Transfer Payments,Revenue
Walsall Council,http://opendatacommunities.org/id/metropolitan-district-council/walsall,WC89-131,28/02/2018,Economy & Environment,ADAMS TOURS,12/02/2018,340.00,52000-WITH DRIVER-HIRE OF VEHICLES,FOREST ARTS CENTRE,Transport,Revenue
Walsall Council,http://opendatacommunities.org/id/metropolitan-district-council/walsall,WC89-132,28/02/2018,Resources and Transformation,ADELIE FOODS LTD,01/02/2018,893.10,61305-CATERING,TOWN HALL RESTAURANT BISTRO,Supplies & Services,Revenue
Walsall Council,http://opendatacommunities.org/id/metropolitan-district-council/walsall,WC89-133,28/02/2018,Resources and Transformation,ADELIE FOODS LTD,08/02/2018,902.15,61305-CATERING,TOWN HALL RESTAURANT BISTRO,Supplies & Services,Revenue
Walsall Council,http://opendatacommunities.org/id/metropolitan-district-council/walsall,WC89-134,28/02/2018,Resources and Transformation,ADELIE FOODS LTD,06/02/2018,930.71,61305-CATERING,TOWN HALL RESTAURANT BISTRO,Supplies & Services,Revenue
Walsall Council,http://opendatacommunities.org/id/metropolitan-district-council/walsall,WC89-135,28/02/2018,Resources and Transformation,ADELIE FOODS LTD,14/02/2018,939.53,61305-CATERING,TOWN HALL RESTAURANT BISTRO,Supplies & Services,Revenue
Walsall Council,http://opendatacommunities.org/id/metropolitan-district-council/walsall,WC89-136,28/02/2018,Economy & Environment,ADEPT,12/02/2018,"1,200.00",64500-PUBLICATIONS/ORGANISATIONS-SUBSCRIPTIONS,REGENERATION MANAGEMENT,Supplies & Services,Revenue
Walsall Council,http://opendatacommunities.org/id/metropolitan-district-council/walsall,WC89-137,28/02/2018,Adult Social Care,REDACTED,05/02/2018,964.00,76422-DIRECT PAYMENTS TO SOCIAL SERVICES CLIENTS,OP PACKAGE/PLACEMENT COSTS,Transfer Payments,Revenue
Walsall Council,http://opendatacommunities.org/id/metropolitan-district-council/walsall,WC89-138,28/02/2018,Childrens,REDACTED,14/02/2018,333.12,74510-RESIDENTS ORDERS,ADOPTION ALLOWANCES,Third Party Payments,Revenue
Walsall Council,http://opendatacommunities.org/id/metropolitan-district-council/walsall,WC89-139,28/02/2018,Childrens,REDACTED,14/02/2018,361.12,74510-RESIDENTS ORDERS,ADOPTION ALLOWANCES,Third Party Payments,Revenue
Walsall Council,http://opendatacommunities.org/id/metropolitan-district-council/walsall,WC89-140,28/02/2018,Economy & Environment,ADS ELECTRICAL & HIGHWAY SERVICES LTD,01/02/2018,280.00,60534-VEHICLE TESTING STATION-MATERIALS,GROUNDS,Supplies & Services,Revenue
Walsall Council,http://opendatacommunities.org/id/metropolitan-district-council/walsall,WC89-141,28/02/2018,Adult Social Care,ADVANCE HEALTH CARE (UK) LTD,06/02/2018,"-2,066.48",73372-DOMICILIARY CARE,OP PACKAGE/PLACEMENT COSTS,Third Party Payments,Revenue
Walsall Council,http://opendatacommunities.org/id/metropolitan-district-council/walsall,WC89-142,28/02/2018,Adult Social Care,ADVANCE HEALTH CARE (UK) LTD,01/02/2018,"4,045.42",73372-DOMICILIARY CARE,OP PACKAGE/PLACEMENT COSTS,Third Party Payments,Revenue
Walsall Council,http://opendatacommunities.org/id/metropolitan-district-council/walsall,WC89-143,28/02/2018,Adult Social Care,ADVANCE HEALTH CARE (UK) LTD,14/02/2018,"4,049.38",73025-PROFESSIONAL SERVICES-PRIV CONTRACTOR & OTHER AGENCIES,COMMUNITY INTERMEDIATE CARE,Third Party Payments,Revenue
Walsall Council,http://opendatacommunities.org/id/metropolitan-district-council/walsall,WC89-144,28/02/2018,Adult Social Care,ADVANCE HEALTH CARE (UK) LTD,14/02/2018,"4,210.94",73025-PROFESSIONAL SERVICES-PRIV CONTRACTOR & OTHER AGENCIES,COMMUNITY INTERMEDIATE CARE,Third Party Payments,Revenue
Walsall Council,http://opendatacommunities.org/id/metropolitan-district-council/walsall,WC89-145,28/02/2018,Adult Social Care,ADVANCE HEALTH CARE (UK) LTD,14/02/2018,"4,214.38",73025-PROFESSIONAL SERVICES-PRIV CONTRACTOR & OTHER AGENCIES,COMMUNITY INTERMEDIATE CARE,Third Party Payments,Revenue
Walsall Council,http://opendatacommunities.org/id/metropolitan-district-council/walsall,WC89-146,28/02/2018,Adult Social Care,ADVANCE HEALTH CARE (UK) LTD,14/02/2018,"4,214.38",73025-PROFESSIONAL SERVICES-PRIV CONTRACTOR & OTHER AGENCIES,COMMUNITY INTERMEDIATE CARE,Third Party Payments,Revenue
Walsall Council,http://opendatacommunities.org/id/metropolitan-district-council/walsall,WC89-147,28/02/2018,Adult Social Care,ADVANCE HEALTH CARE (UK) LTD,14/02/2018,"5,771.56",73025-PROFESSIONAL SERVICES-PRIV CONTRACTOR & OTHER AGENCIES,COMMUNITY INTERMEDIATE CARE,Third Party Payments,Revenue
Walsall Council,http://opendatacommunities.org/id/metropolitan-district-council/walsall,WC89-148,28/02/2018,Adult Social Care,ADVANCE HEALTH CARE (UK) LTD,14/02/2018,"6,286.91",73025-PROFESSIONAL SERVICES-PRIV CONTRACTOR & OTHER AGENCIES,COMMUNITY INTERMEDIATE CARE,Third Party Payments,Revenue
Walsall Council,http://opendatacommunities.org/id/metropolitan-district-council/walsall,WC89-149,28/02/2018,Adult Social Care,ADVANCE HEALTH CARE (UK) LTD,01/02/2018,"84,120.97",73372-DOMICILIARY CARE,OP PACKAGE/PLACEMENT COSTS,Third Party Payments,Revenue
Walsall Council,http://opendatacommunities.org/id/metropolitan-district-council/walsall,WC89-150,28/02/2018,Resources and Transformation,ADVANCED DIGITAL IMAGING,19/02/2018,660.00,60500-GENERAL MATERIALS,PRINTING SERVICES,Supplies & Services,Revenue
Walsall Council,http://opendatacommunities.org/id/metropolitan-district-council/walsall,WC89-151,28/02/2018,Resources and Transformation,ADVANTAGE RESTORATION LTD,07/02/2018,"1,665.00","40000-REPAIRS,ALTERATIONS & MAINTENANCE-PREM",RECHARGEABLE - NON SCHOOLS MAINTENANCE,Premises,Revenue
Walsall Council,http://opendatacommunities.org/id/metropolitan-district-council/walsall,WC89-152,28/02/2018,Childrens,ADVENTURELAND DAY NURSERY,02/02/2018,628.80,66505-OTHER-GRANTS TO OTHER ORGS,EARLY YEARS - 2 YR OLDS,Third Party Payments,Revenue
Walsall Council,http://opendatacommunities.org/id/metropolitan-district-council/walsall,WC89-153,28/02/2018,Economy & Environment,AECOM INFRASTRUCTURE & ENVIRONMENT UK LIMITED,20/02/2018,"2,619.56",01001-OTHER CONSULTANTS FEES,CFR 1198 JAMES BRIDGE STATION DESIGN,Capital,Capital
Walsall Council,http://opendatacommunities.org/id/metropolitan-district-council/walsall,WC89-154,28/02/2018,Economy & Environment,AECOM LIMITED,01/02/2018,650.00,01006-SITE WORKS MAIN CONTRACTORS,CFR 1198 HIGHWAY EFFICIENCY MEASURES,Capital,Capital
Walsall Council,http://opendatacommunities.org/id/metropolitan-district-council/walsall,WC89-155,28/02/2018,Economy & Environment,AECOM LIMITED,01/02/2018,"4,000.00",01001-OTHER CONSULTANTS FEES,CFR 1072 M6 JUNCTION 10-LTB,Capital,Capital
Walsall Council,http://opendatacommunities.org/id/metropolitan-district-council/walsall,WC89-156,28/02/2018,Economy & Environment,AECOM LIMITED,02/02/2018,"20,129.44",73025-PROFESSIONAL SERVICES-PRIV CONTRACTOR & OTHER AGENCIES,SECTION 38 OF HIGHWAYS ACT - SUPERVISION,Third Party Payments,Revenue
Walsall Council,http://opendatacommunities.org/id/metropolitan-district-council/walsall,WC89-157,28/02/2018,Adult Social Care,AGE UK WALSALL,21/02/2018,"5,812.00",76423-DIRECT PAYMENTS SUPPORT,DIRECT PAYMENT SUPPORT ORGANISATIONS,Transfer Payments,Revenue
Walsall Council,http://opendatacommunities.org/id/metropolitan-district-council/walsall,WC89-158,28/02/2018,Adult Social Care,AGE UK WALSALL,14/02/2018,"8,307.50",76423-DIRECT PAYMENTS SUPPORT,DIRECT PAYMENT SUPPORT ORGANISATIONS,Transfer Payments,Revenue
Walsall Council,http://opendatacommunities.org/id/metropolitan-district-council/walsall,WC89-159,28/02/2018,Adult Social Care,AGINCARE UK LTD,08/02/2018,"1,559.04",73372-DOMICILIARY CARE,OP PACKAGE/PLACEMENT COSTS,Third Party Payments,Revenue
Walsall Council,http://opendatacommunities.org/id/metropolitan-district-council/walsall,WC89-160,28/02/2018,Adult Social Care,REDACTED,05/02/2018,"1,882.00",76422-DIRECT PAYMENTS TO SOCIAL SERVICES CLIENTS,LD PACKAGE/PLACEMENT COSTS,Transfer Payments,Revenue
Walsall Council,http://opendatacommunities.org/id/metropolitan-district-council/walsall,WC89-161,28/02/2018,Economy & Environment,AIR PLANTS DUST EXTRACTION LTD,22/02/2018,548.83,"40000-REPAIRS,ALTERATIONS & MAINTENANCE-PREM",NEW ART GALLERY - ADMIN,Premises,Revenue
Walsall Council,http://opendatacommunities.org/id/metropolitan-district-council/walsall,WC89-162,28/02/2018,Economy & Environment,AIRQUEE,06/02/2018,323.23,60008-MAINTENANCE-FURNITURE & EQUIPMENT,OAK PARK,Supplies & Services,Revenue
Walsall Council,http://opendatacommunities.org/id/metropolitan-district-council/walsall,WC89-163,28/02/2018,Adult Social Care,REDACTED,05/02/2018,"1,277.00",76422-DIRECT PAYMENTS TO SOCIAL SERVICES CLIENTS,OP PACKAGE/PLACEMENT COSTS,Transfer Payments,Revenue
Walsall Council,http://opendatacommunities.org/id/metropolitan-district-council/walsall,WC89-164,28/02/2018,Economy & Environment,ALADDINS EDUCATION LTD,27/02/2018,"4,585.00",66500-GRANTS TO OTHER ORGS,ESF COMMUNITY GRANTS,Third Party Payments,Revenue
Walsall Council,http://opendatacommunities.org/id/metropolitan-district-council/walsall,WC89-165,28/02/2018,Childrens,REDACTED,06/02/2018,785.40,63000-PROFESSIONAL FEES AND SERVICES,GENERAL MANAGEMENT SUPPORT (INC LEGAL),Supplies & Services,Revenue
Walsall Council,http://opendatacommunities.org/id/metropolitan-district-council/walsall,WC89-166,28/02/2018,Childrens,ALAN CRITCHLEY ASSOCIATES,07/02/2018,"3,617.00",63102-CONSULTANTS FEES - CORPORATE,SAFEGUARDING BOARD,Supplies & Services,Revenue
Walsall Council,http://opendatacommunities.org/id/metropolitan-district-council/walsall,WC89-167,28/02/2018,Adult Social Care,REDACTED,05/02/2018,728.00,76422-DIRECT PAYMENTS TO SOCIAL SERVICES CLIENTS,OP PACKAGE/PLACEMENT COSTS,Transfer Payments,Revenue
Walsall Council,http://opendatacommunities.org/id/metropolitan-district-council/walsall,WC89-168,28/02/2018,Childrens,ALBRIGHTON CARE LTD,26/02/2018,"9,980.00",74036-EXTERNAL RESIDENTIAL CARE-OTH AGENCY PROVISION,INDEPENDENT RESIDENTIAL HOMES,Third Party Payments,Revenue
Walsall Council,http://opendatacommunities.org/id/metropolitan-district-council/walsall,WC89-169,28/02/2018,Childrens,ALBRIGHTON CARE LTD,26/02/2018,"16,000.00",74036-EXTERNAL RESIDENTIAL CARE-OTH AGENCY PROVISION,INDEPENDENT RESIDENTIAL HOMES,Third Party Payments,Revenue
Walsall Council,http://opendatacommunities.org/id/metropolitan-district-council/walsall,WC89-170,28/02/2018,Economy & Environment,ALDERBROOK HEALTHCARE LTD,19/02/2018,954.50,63000-PROFESSIONAL FEES AND SERVICES,CORONERS SERVICE,Supplies & Services,Revenue
Walsall Council,http://opendatacommunities.org/id/metropolitan-district-council/walsall,WC89-171,28/02/2018,Economy & Environment,ALDERBROOK HEALTHCARE LTD,19/02/2018,"1,988.80",63000-PROFESSIONAL FEES AND SERVICES,CORONERS SERVICE,Supplies & Services,Revenue
Walsall Council,http://opendatacommunities.org/id/metropolitan-district-council/walsall,WC89-172,28/02/2018,Adult Social Care,ALDERGROVE MANOR LTD,13/02/2018,"1,839.68",73373-RESIDENTIAL & NURSING CARE PLACEMENTS,MENTAL HEALTH PACKAGE/PLACEMENT COSTS,Third Party Payments,Revenue
Walsall Council,http://opendatacommunities.org/id/metropolitan-district-council/walsall,WC89-173,28/02/2018,Adult Social Care,ALDERGROVE MANOR LTD,13/02/2018,"2,000.00",73373-RESIDENTIAL & NURSING CARE PLACEMENTS,OP PACKAGE/PLACEMENT COSTS,Third Party Payments,Revenue
Walsall Council,http://opendatacommunities.org/id/metropolitan-district-council/walsall,WC89-174,28/02/2018,Childrens,ALDRIDGE & BARONS LIMITED,19/02/2018,"12,553.88",52000-WITH DRIVER-HIRE OF VEHICLES,HOME TO SCHOOL TRANSPORT,Transport,Revenue
Walsall Council,http://opendatacommunities.org/id/metropolitan-district-council/walsall,WC89-175,28/02/2018,Childrens,ALDRIDGE & BARONS LIMITED,19/02/2018,"13,450.73",52000-WITH DRIVER-HIRE OF VEHICLES,HOME TO SCHOOL TRANSPORT,Transport,Revenue
Walsall Council,http://opendatacommunities.org/id/metropolitan-district-council/walsall,WC89-176,28/02/2018,Childrens,ALDRIDGE SCHOOL A SCIENCE COLLEGE.,27/02/2018,600.00,77300-ISB-FORMULA ALLOCATION,ALDRIDGE SCHOOL SCIENCE COLLEGE (ACADEMY),Transfer Payments,Revenue
Walsall Council,http://opendatacommunities.org/id/metropolitan-district-council/walsall,WC89-177,28/02/2018,Childrens,ALDRIDGE SCHOOL A SCIENCE COLLEGE.,12/02/2018,"2,100.00",77300-ISB-FORMULA ALLOCATION,ALDRIDGE SCHOOL SCIENCE COLLEGE (ACADEMY),Transfer Payments,Revenue
Walsall Council,http://opendatacommunities.org/id/metropolitan-district-council/walsall,WC89-178,28/02/2018,Childrens,ALDRIDGE SCHOOL A SCIENCE COLLEGE.,02/02/2018,"19,591.24",66502-TOP UP FUNDING -GRANTS TO SCHOOLS,ALDRIDGE SCHOOL SCIENCE COLLEGE (ACADEMY),Third Party Payments,Revenue
Walsall Council,http://opendatacommunities.org/id/metropolitan-district-council/walsall,WC89-179,28/02/2018,Resources and Transformation,ALDRIDGE VILLAGE REMEMBRANCE PARADE AND SERVICE GROUP,14/02/2018,777.60,63000-PROFESSIONAL FEES AND SERVICES,CORPORATE EXPENSES,Supplies & Services,Revenue
Walsall Council,http://opendatacommunities.org/id/metropolitan-district-council/walsall,WC89-180,28/02/2018,Adult Social Care,REDACTED,05/02/2018,"1,204.00",76422-DIRECT PAYMENTS TO SOCIAL SERVICES CLIENTS,PD PACKAGE/PLACEMENT COSTS,Transfer Payments,Revenue
Walsall Council,http://opendatacommunities.org/id/metropolitan-district-council/walsall,WC89-181,28/02/2018,Adult Social Care,ALEXANDRA HOUSE CARE SERVICES LTD T/A STONEBRIDGE NURSING HOME,06/02/2018,"7,117.44",73373-RESIDENTIAL & NURSING CARE PLACEMENTS,LD PACKAGE/PLACEMENT COSTS,Third Party Payments,Revenue
Walsall Council,http://opendatacommunities.org/id/metropolitan-district-council/walsall,WC89-182,28/02/2018,Childrens,REDACTED,05/02/2018,582.66,76422-DIRECT PAYMENTS TO SOCIAL SERVICES CLIENTS,FAMILY SUPPORT - DIRECT PAYMENTS,Transfer Payments,Revenue
Walsall Council,http://opendatacommunities.org/id/metropolitan-district-council/walsall,WC89-183,28/02/2018,Adult Social Care,REDACTED,05/02/2018,"1,733.20",76422-DIRECT PAYMENTS TO SOCIAL SERVICES CLIENTS,OP PACKAGE/PLACEMENT COSTS,Transfer Payments,Revenue
Walsall Council,http://opendatacommunities.org/id/metropolitan-district-council/walsall,WC89-184,28/02/2018,Childrens,REDACTED,05/02/2018,288.00,76422-DIRECT PAYMENTS TO SOCIAL SERVICES CLIENTS,FAMILY SUPPORT - DIRECT PAYMENTS,Transfer Payments,Revenue
Walsall Council,http://opendatacommunities.org/id/metropolitan-district-council/walsall,WC89-185,28/02/2018,Adult Social Care,REDACTED,05/02/2018,898.00,76422-DIRECT PAYMENTS TO SOCIAL SERVICES CLIENTS,PD PACKAGE/PLACEMENT COSTS,Transfer Payments,Revenue
Walsall Council,http://opendatacommunities.org/id/metropolitan-district-council/walsall,WC89-186,28/02/2018,Resources and Transformation,ALIGNED ASSETS LTD,21/02/2018,"3,670.12",63820-RECHARGE FOR MAINTENANCE/APPLICATION COSTS-COMPUTER,APPLICATIONS,Supplies & Services,Revenue
Walsall Council,http://opendatacommunities.org/id/metropolitan-district-council/walsall,WC89-187,28/02/2018,Childrens,ALL SAINTS NATIONAL ACADEMY #1,20/02/2018,"2,681.54",66502-TOP UP FUNDING -GRANTS TO SCHOOLS,ALL SAINTS NATIONAL ACADEMY,Third Party Payments,Revenue
Walsall Council,http://opendatacommunities.org/id/metropolitan-district-council/walsall,WC89-188,28/02/2018,Childrens,ALLEYNE'S ACADEMY,12/02/2018,300.00,77300-ISB-FORMULA ALLOCATION,OUT OF BOROUGH SCHOOLS,Transfer Payments,Revenue
Walsall Council,http://opendatacommunities.org/id/metropolitan-district-council/walsall,WC89-189,28/02/2018,Adult Social Care,ALMA COURT,19/02/2018,"2,520.00",73374-SUPPORTED & OTHER ACCOMMODATION,PD PACKAGE/PLACEMENT COSTS,Third Party Payments,Revenue
Walsall Council,http://opendatacommunities.org/id/metropolitan-district-council/walsall,WC89-190,28/02/2018,Adult Social Care,ALMA COURT,13/02/2018,"5,705.56",73373-RESIDENTIAL & NURSING CARE PLACEMENTS,MENTAL HEALTH PACKAGE/PLACEMENT COSTS,Third Party Payments,Revenue
Walsall Council,http://opendatacommunities.org/id/metropolitan-district-council/walsall,WC89-191,28/02/2018,Adult Social Care,ALPHA HEALTH CARE LTD,13/02/2018,"1,656.00",73373-RESIDENTIAL & NURSING CARE PLACEMENTS,OP PACKAGE/PLACEMENT COSTS,Third Party Payments,Revenue
Walsall Council,http://opendatacommunities.org/id/metropolitan-district-council/walsall,WC89-192,28/02/2018,Adult Social Care,ALPHA HEALTH CARE LTD,13/02/2018,"1,656.00",73373-RESIDENTIAL & NURSING CARE PLACEMENTS,OP PACKAGE/PLACEMENT COSTS,Third Party Payments,Revenue
Walsall Council,http://opendatacommunities.org/id/metropolitan-district-council/walsall,WC89-193,28/02/2018,Adult Social Care,ALPHA HEALTH CARE LTD,13/02/2018,"1,656.00",73373-RESIDENTIAL & NURSING CARE PLACEMENTS,OP PACKAGE/PLACEMENT COSTS,Third Party Payments,Revenue
Walsall Council,http://opendatacommunities.org/id/metropolitan-district-council/walsall,WC89-194,28/02/2018,Adult Social Care,ALPHA HEALTH CARE LTD,13/02/2018,"1,840.00",73373-RESIDENTIAL & NURSING CARE PLACEMENTS,OP PACKAGE/PLACEMENT COSTS,Third Party Payments,Revenue
Walsall Council,http://opendatacommunities.org/id/metropolitan-district-council/walsall,WC89-195,28/02/2018,Adult Social Care,ALPHA HEALTH CARE LTD,13/02/2018,"2,000.00",73373-RESIDENTIAL & NURSING CARE PLACEMENTS,OP PACKAGE/PLACEMENT COSTS,Third Party Payments,Revenue
Walsall Council,http://opendatacommunities.org/id/metropolitan-district-council/walsall,WC89-196,28/02/2018,Adult Social Care,ALPHA HEALTH CARE LTD,06/02/2018,"2,160.00",73373-RESIDENTIAL & NURSING CARE PLACEMENTS,OP PACKAGE/PLACEMENT COSTS,Third Party Payments,Revenue
Walsall Council,http://opendatacommunities.org/id/metropolitan-district-council/walsall,WC89-197,28/02/2018,Adult Social Care,ALPHA HEALTH CARE LTD,13/02/2018,"2,160.00",73373-RESIDENTIAL & NURSING CARE PLACEMENTS,OP PACKAGE/PLACEMENT COSTS,Third Party Payments,Revenue
Walsall Council,http://opendatacommunities.org/id/metropolitan-district-council/walsall,WC89-198,28/02/2018,Adult Social Care,ALPHA HEALTH CARE LTD,13/02/2018,"2,200.00",73373-RESIDENTIAL & NURSING CARE PLACEMENTS,OP PACKAGE/PLACEMENT COSTS,Third Party Payments,Revenue
Walsall Council,http://opendatacommunities.org/id/metropolitan-district-council/walsall,WC89-199,28/02/2018,Adult Social Care,ALPHA HEALTH CARE LTD,13/02/2018,"2,200.00",73373-RESIDENTIAL & NURSING CARE PLACEMENTS,OP PACKAGE/PLACEMENT COSTS,Third Party Payments,Revenue
Walsall Council,http://opendatacommunities.org/id/metropolitan-district-council/walsall,WC89-200,28/02/2018,Adult Social Care,ALPHA HEALTH CARE LTD,13/02/2018,"2,200.00",73373-RESIDENTIAL & NURSING CARE PLACEMENTS,OP PACKAGE/PLACEMENT COSTS,Third Party Payments,Revenue
Walsall Council,http://opendatacommunities.org/id/metropolitan-district-council/walsall,WC89-201,28/02/2018,Adult Social Care,ALPHA HEALTH CARE LTD,13/02/2018,"2,200.00",73373-RESIDENTIAL & NURSING CARE PLACEMENTS,OP PACKAGE/PLACEMENT COSTS,Third Party Payments,Revenue
Walsall Council,http://opendatacommunities.org/id/metropolitan-district-council/walsall,WC89-202,28/02/2018,Adult Social Care,ALPHA HEALTH CARE LTD,13/02/2018,"2,200.00",73373-RESIDENTIAL & NURSING CARE PLACEMENTS,MENTAL HEALTH PACKAGE/PLACEMENT COSTS,Third Party Payments,Revenue
Walsall Council,http://opendatacommunities.org/id/metropolitan-district-council/walsall,WC89-203,28/02/2018,Adult Social Care,ALPHA HEALTH CARE LTD,20/02/2018,"2,200.00",73373-RESIDENTIAL & NURSING CARE PLACEMENTS,OP PACKAGE/PLACEMENT COSTS,Third Party Payments,Revenue
Walsall Council,http://opendatacommunities.org/id/metropolitan-district-council/walsall,WC89-204,28/02/2018,Adult Social Care,ALPHA HEALTH CARE LTD,13/02/2018,"2,326.00",73373-RESIDENTIAL & NURSING CARE PLACEMENTS,MENTAL HEALTH PACKAGE/PLACEMENT COSTS,Third Party Payments,Revenue
Walsall Council,http://opendatacommunities.org/id/metropolitan-district-council/walsall,WC89-205,28/02/2018,Adult Social Care,ALPHA HEALTH CARE LTD,13/02/2018,"2,379.80",73373-RESIDENTIAL & NURSING CARE PLACEMENTS,OP PACKAGE/PLACEMENT COSTS,Third Party Payments,Revenue
Walsall Council,http://opendatacommunities.org/id/metropolitan-district-council/walsall,WC89-206,28/02/2018,Adult Social Care,ALPHA HEALTH CARE LTD,13/02/2018,"2,379.80",73373-RESIDENTIAL & NURSING CARE PLACEMENTS,OP PACKAGE/PLACEMENT COSTS,Third Party Payments,Revenue
Walsall Council,http://opendatacommunities.org/id/metropolitan-district-council/walsall,WC89-207,28/02/2018,Adult Social Care,ALPHA HEALTH CARE LTD,13/02/2018,"2,445.20",73373-RESIDENTIAL & NURSING CARE PLACEMENTS,OP PACKAGE/PLACEMENT COSTS,Third Party Payments,Revenue
Walsall Council,http://opendatacommunities.org/id/metropolitan-district-council/walsall,WC89-208,28/02/2018,Adult Social Care,ALPHA HEALTH CARE LTD,13/02/2018,"2,645.20",73373-RESIDENTIAL & NURSING CARE PLACEMENTS,OP PACKAGE/PLACEMENT COSTS,Third Party Payments,Revenue
Walsall Council,http://opendatacommunities.org/id/metropolitan-district-council/walsall,WC89-209,28/02/2018,Adult Social Care,ALPHA HEALTH CARE LTD,13/02/2018,"2,725.20",73373-RESIDENTIAL & NURSING CARE PLACEMENTS,OP PACKAGE/PLACEMENT COSTS,Third Party Payments,Revenue
Walsall Council,http://opendatacommunities.org/id/metropolitan-district-council/walsall,WC89-210,28/02/2018,Adult Social Care,ALPHA HEALTH CARE LTD,13/02/2018,"5,338.84",73373-RESIDENTIAL & NURSING CARE PLACEMENTS,MENTAL HEALTH PACKAGE/PLACEMENT COSTS,Third Party Payments,Revenue
Walsall Council,http://opendatacommunities.org/id/metropolitan-district-council/walsall,WC89-211,28/02/2018,Childrens,ALPHABIOLABS,07/02/2018,710.00,63000-PROFESSIONAL FEES AND SERVICES,SAFEGUARDING & FAMILY SUPPORT,Supplies & Services,Revenue
Walsall Council,http://opendatacommunities.org/id/metropolitan-district-council/walsall,WC89-212,28/02/2018,Childrens,REDACTED,14/02/2018,808.04,74009-ADOPTION ALLOWANCE,ADOPTION ALLOWANCES,Transfer Payments,Revenue
Walsall Council,http://opendatacommunities.org/id/metropolitan-district-council/walsall,WC89-213,28/02/2018,Childrens,REDACTED,26/02/2018,9.24,60006-NEW-FURNITURE & EQUIPMENT,INTERNAL FOSTER CARE PROVISION,Supplies & Services,Revenue
Walsall Council,http://opendatacommunities.org/id/metropolitan-district-council/walsall,WC89-214,28/02/2018,Childrens,REDACTED,26/02/2018,106.27,74506-TRAVEL-FOSTER CARERS,INTERNAL FOSTER CARE PROVISION,Transfer Payments,Revenue
Walsall Council,http://opendatacommunities.org/id/metropolitan-district-council/walsall,WC89-215,28/02/2018,Childrens,REDACTED,26/02/2018,530.96,74508-INTERNAL FOSTER CARERS-CARER FEES,INTERNAL FOSTER CARE PROVISION,Transfer Payments,Revenue
Walsall Council,http://opendatacommunities.org/id/metropolitan-district-council/walsall,WC89-216,28/02/2018,Childrens,REDACTED,26/02/2018,650.92,74501-MAINTENANCE ALLOWANCE-FOSTER CARERS,INTERNAL FOSTER CARE PROVISION,Transfer Payments,Revenue
Walsall Council,http://opendatacommunities.org/id/metropolitan-district-council/walsall,WC89-217,28/02/2018,Adult Social Care,REDACTED,05/02/2018,880.00,76422-DIRECT PAYMENTS TO SOCIAL SERVICES CLIENTS,LD PACKAGE/PLACEMENT COSTS,Transfer Payments,Revenue
Walsall Council,http://opendatacommunities.org/id/metropolitan-district-council/walsall,WC89-218,28/02/2018,Economy & Environment,AMEY LG LIMITED,22/02/2018,269.68,73025-PROFESSIONAL SERVICES-PRIV CONTRACTOR & OTHER AGENCIES,SECTION 38 OF HIGHWAYS ACT - SUPERVISION,Third Party Payments,Revenue
Walsall Council,http://opendatacommunities.org/id/metropolitan-district-council/walsall,WC89-219,28/02/2018,Adult Social Care,AMG NURSING CARE SERVICES,19/02/2018,910.00,73374-SUPPORTED & OTHER ACCOMMODATION,PD PACKAGE/PLACEMENT COSTS,Third Party Payments,Revenue
Walsall Council,http://opendatacommunities.org/id/metropolitan-district-council/walsall,WC89-220,28/02/2018,Childrens,AMG NURSING CARE SERVICES,06/02/2018,"1,110.72",63000-PROFESSIONAL FEES AND SERVICES,DIRECTLY COMMISSIONED NURSING SERVICES,Supplies & Services,Revenue
Walsall Council,http://opendatacommunities.org/id/metropolitan-district-council/walsall,WC89-221,28/02/2018,Childrens,AMG NURSING CARE SERVICES,21/02/2018,"1,110.72",63000-PROFESSIONAL FEES AND SERVICES,DIRECTLY COMMISSIONED NURSING SERVICES,Supplies & Services,Revenue
Walsall Council,http://opendatacommunities.org/id/metropolitan-district-council/walsall,WC89-222,28/02/2018,Childrens,AMG NURSING CARE SERVICES,14/02/2018,"1,887.92",63000-PROFESSIONAL FEES AND SERVICES,DIRECTLY COMMISSIONED NURSING SERVICES,Supplies & Services,Revenue
Walsall Council,http://opendatacommunities.org/id/metropolitan-district-council/walsall,WC89-223,28/02/2018,Childrens,AMG NURSING CARE SERVICES,06/02/2018,"1,904.24",63000-PROFESSIONAL FEES AND SERVICES,DIRECTLY COMMISSIONED NURSING SERVICES,Supplies & Services,Revenue
Walsall Council,http://opendatacommunities.org/id/metropolitan-district-council/walsall,WC89-224,28/02/2018,Childrens,AMG NURSING CARE SERVICES,06/02/2018,"2,260.24",63000-PROFESSIONAL FEES AND SERVICES,DIRECTLY COMMISSIONED NURSING SERVICES,Supplies & Services,Revenue
Walsall Council,http://opendatacommunities.org/id/metropolitan-district-council/walsall,WC89-225,28/02/2018,Childrens,AMG NURSING CARE SERVICES,08/02/2018,"2,274.48",63000-PROFESSIONAL FEES AND SERVICES,DIRECTLY COMMISSIONED NURSING SERVICES,Supplies & Services,Revenue
Walsall Council,http://opendatacommunities.org/id/metropolitan-district-council/walsall,WC89-226,28/02/2018,Adult Social Care,AMG NURSING CARE SERVICES,19/02/2018,"2,730.00",73374-SUPPORTED & OTHER ACCOMMODATION,PD PACKAGE/PLACEMENT COSTS,Third Party Payments,Revenue
Walsall Council,http://opendatacommunities.org/id/metropolitan-district-council/walsall,WC89-227,28/02/2018,Adult Social Care,AMG NURSING CARE SERVICES,23/02/2018,"3,640.00",73372-DOMICILIARY CARE,PD PACKAGE/PLACEMENT COSTS,Third Party Payments,Revenue
Walsall Council,http://opendatacommunities.org/id/metropolitan-district-council/walsall,WC89-228,28/02/2018,Adult Social Care,AMG NURSING CARE SERVICES,01/02/2018,"3,650.72",73374-SUPPORTED & OTHER ACCOMMODATION,LD PACKAGE/PLACEMENT COSTS,Third Party Payments,Revenue
Walsall Council,http://opendatacommunities.org/id/metropolitan-district-council/walsall,WC89-229,28/02/2018,Adult Social Care,AMG NURSING CARE SERVICES,26/02/2018,"10,711.68",73372-DOMICILIARY CARE,OP PACKAGE/PLACEMENT COSTS,Third Party Payments,Revenue
Walsall Council,http://opendatacommunities.org/id/metropolitan-district-council/walsall,WC89-230,28/02/2018,Childrens,REDACTED,14/02/2018,9.24,60006-NEW-FURNITURE & EQUIPMENT,FAMILY & FRIENDS FOSTER CARE PROVISION,Supplies & Services,Revenue
Walsall Council,http://opendatacommunities.org/id/metropolitan-district-council/walsall,WC89-231,28/02/2018,Childrens,REDACTED,14/02/2018,345.24,74508-INTERNAL FOSTER CARERS-CARER FEES,FAMILY & FRIENDS FOSTER CARE PROVISION,Transfer Payments,Revenue
Walsall Council,http://opendatacommunities.org/id/metropolitan-district-council/walsall,WC89-232,28/02/2018,Childrens,REDACTED,14/02/2018,650.92,74501-MAINTENANCE ALLOWANCE-FOSTER CARERS,FAMILY & FRIENDS FOSTER CARE PROVISION,Transfer Payments,Revenue
Walsall Council,http://opendatacommunities.org/id/metropolitan-district-council/walsall,WC89-233,28/02/2018,Childrens,REDACTED,14/02/2018,425.08,74510-RESIDENTS ORDERS,ADOPTION ALLOWANCES,Third Party Payments,Revenue
Walsall Council,http://opendatacommunities.org/id/metropolitan-district-council/walsall,WC89-234,28/02/2018,Adult Social Care,REDACTED,05/02/2018,"1,140.00",76422-DIRECT PAYMENTS TO SOCIAL SERVICES CLIENTS,OP PACKAGE/PLACEMENT COSTS,Transfer Payments,Revenue
Walsall Council,http://opendatacommunities.org/id/metropolitan-district-council/walsall,WC89-235,28/02/2018,Adult Social Care,ANCHOR,27/02/2018,"-2,562.86",73373-RESIDENTIAL & NURSING CARE PLACEMENTS,MENTAL HEALTH PACKAGE/PLACEMENT COSTS,Third Party Payments,Revenue
Walsall Council,http://opendatacommunities.org/id/metropolitan-district-council/walsall,WC89-236,28/02/2018,Adult Social Care,ANCHOR,27/02/2018,421.14,73373-RESIDENTIAL & NURSING CARE PLACEMENTS,OP PACKAGE/PLACEMENT COSTS,Third Party Payments,Revenue
Walsall Council,http://opendatacommunities.org/id/metropolitan-district-council/walsall,WC89-237,28/02/2018,Adult Social Care,ANCHOR,13/02/2018,722.86,73373-RESIDENTIAL & NURSING CARE PLACEMENTS,OP PACKAGE/PLACEMENT COSTS,Third Party Payments,Revenue
Walsall Council,http://opendatacommunities.org/id/metropolitan-district-council/walsall,WC89-238,28/02/2018,Adult Social Care,ANCHOR,27/02/2018,722.86,73373-RESIDENTIAL & NURSING CARE PLACEMENTS,OP PACKAGE/PLACEMENT COSTS,Third Party Payments,Revenue
Walsall Council,http://opendatacommunities.org/id/metropolitan-district-council/walsall,WC89-239,28/02/2018,Adult Social Care,ANCHOR,13/02/2018,854.28,73373-RESIDENTIAL & NURSING CARE PLACEMENTS,OP PACKAGE/PLACEMENT COSTS,Third Party Payments,Revenue
Walsall Council,http://opendatacommunities.org/id/metropolitan-district-council/walsall,WC89-240,28/02/2018,Adult Social Care,ANCHOR,13/02/2018,"1,051.42",73373-RESIDENTIAL & NURSING CARE PLACEMENTS,OP PACKAGE/PLACEMENT COSTS,Third Party Payments,Revenue
Walsall Council,http://opendatacommunities.org/id/metropolitan-district-council/walsall,WC89-241,28/02/2018,Adult Social Care,ANCHOR,06/02/2018,"1,100.00",73373-RESIDENTIAL & NURSING CARE PLACEMENTS,OP PACKAGE/PLACEMENT COSTS,Third Party Payments,Revenue
Walsall Council,http://opendatacommunities.org/id/metropolitan-district-council/walsall,WC89-242,28/02/2018,Adult Social Care,ANCHOR,27/02/2018,"1,656.00",73373-RESIDENTIAL & NURSING CARE PLACEMENTS,OP PACKAGE/PLACEMENT COSTS,Third Party Payments,Revenue
Walsall Council,http://opendatacommunities.org/id/metropolitan-district-council/walsall,WC89-243,28/02/2018,Adult Social Care,ANCHOR,27/02/2018,"1,656.00",73373-RESIDENTIAL & NURSING CARE PLACEMENTS,OP PACKAGE/PLACEMENT COSTS,Third Party Payments,Revenue
Walsall Council,http://opendatacommunities.org/id/metropolitan-district-council/walsall,WC89-244,28/02/2018,Adult Social Care,ANCHOR,27/02/2018,"1,656.00",73373-RESIDENTIAL & NURSING CARE PLACEMENTS,OP PACKAGE/PLACEMENT COSTS,Third Party Payments,Revenue
Walsall Council,http://opendatacommunities.org/id/metropolitan-district-council/walsall,WC89-245,28/02/2018,Adult Social Care,ANCHOR,27/02/2018,"1,656.04",73373-RESIDENTIAL & NURSING CARE PLACEMENTS,OP PACKAGE/PLACEMENT COSTS,Third Party Payments,Revenue
Walsall Council,http://opendatacommunities.org/id/metropolitan-district-council/walsall,WC89-246,28/02/2018,Adult Social Care,ANCHOR,27/02/2018,"1,816.00",73373-RESIDENTIAL & NURSING CARE PLACEMENTS,OP PACKAGE/PLACEMENT COSTS,Third Party Payments,Revenue
Walsall Council,http://opendatacommunities.org/id/metropolitan-district-council/walsall,WC89-247,28/02/2018,Adult Social Care,ANCHOR,13/02/2018,"1,840.00",73373-RESIDENTIAL & NURSING CARE PLACEMENTS,OP PACKAGE/PLACEMENT COSTS,Third Party Payments,Revenue
Walsall Council,http://opendatacommunities.org/id/metropolitan-district-council/walsall,WC89-248,28/02/2018,Adult Social Care,ANCHOR,13/02/2018,"1,840.00",73373-RESIDENTIAL & NURSING CARE PLACEMENTS,OP PACKAGE/PLACEMENT COSTS,Third Party Payments,Revenue
Walsall Council,http://opendatacommunities.org/id/metropolitan-district-council/walsall,WC89-249,28/02/2018,Adult Social Care,ANCHOR,13/02/2018,"1,840.00",73373-RESIDENTIAL & NURSING CARE PLACEMENTS,OP PACKAGE/PLACEMENT COSTS,Third Party Payments,Revenue
Walsall Council,http://opendatacommunities.org/id/metropolitan-district-council/walsall,WC89-250,28/02/2018,Adult Social Care,ANCHOR,13/02/2018,"1,840.00",73373-RESIDENTIAL & NURSING CARE PLACEMENTS,OP PACKAGE/PLACEMENT COSTS,Third Party Payments,Revenue
Walsall Council,http://opendatacommunities.org/id/metropolitan-district-council/walsall,WC89-251,28/02/2018,Adult Social Care,ANCHOR,13/02/2018,"1,840.00",73373-RESIDENTIAL & NURSING CARE PLACEMENTS,OP PACKAGE/PLACEMENT COSTS,Third Party Payments,Revenue
Walsall Council,http://opendatacommunities.org/id/metropolitan-district-council/walsall,WC89-252,28/02/2018,Adult Social Care,ANCHOR,13/02/2018,"1,840.00",73373-RESIDENTIAL & NURSING CARE PLACEMENTS,OP PACKAGE/PLACEMENT COSTS,Third Party Payments,Revenue
Walsall Council,http://opendatacommunities.org/id/metropolitan-district-council/walsall,WC89-253,28/02/2018,Adult Social Care,ANCHOR,13/02/2018,"1,840.00",73373-RESIDENTIAL & NURSING CARE PLACEMENTS,OP PACKAGE/PLACEMENT COSTS,Third Party Payments,Revenue
Walsall Council,http://opendatacommunities.org/id/metropolitan-district-council/walsall,WC89-254,28/02/2018,Adult Social Care,ANCHOR,13/02/2018,"1,840.00",73373-RESIDENTIAL & NURSING CARE PLACEMENTS,OP PACKAGE/PLACEMENT COSTS,Third Party Payments,Revenue
Walsall Council,http://opendatacommunities.org/id/metropolitan-district-council/walsall,WC89-255,28/02/2018,Adult Social Care,ANCHOR,27/02/2018,"1,840.00",73373-RESIDENTIAL & NURSING CARE PLACEMENTS,MENTAL HEALTH PACKAGE/PLACEMENT COSTS,Third Party Payments,Revenue
Walsall Council,http://opendatacommunities.org/id/metropolitan-district-council/walsall,WC89-256,28/02/2018,Adult Social Care,ANCHOR,27/02/2018,"1,840.00",73373-RESIDENTIAL & NURSING CARE PLACEMENTS,OP PACKAGE/PLACEMENT COSTS,Third Party Payments,Revenue
Walsall Council,http://opendatacommunities.org/id/metropolitan-district-council/walsall,WC89-257,28/02/2018,Adult Social Care,ANCHOR,27/02/2018,"1,840.00",73373-RESIDENTIAL & NURSING CARE PLACEMENTS,OP PACKAGE/PLACEMENT COSTS,Third Party Payments,Revenue
Walsall Council,http://opendatacommunities.org/id/metropolitan-district-council/walsall,WC89-258,28/02/2018,Adult Social Care,ANCHOR,27/02/2018,"1,840.00",73373-RESIDENTIAL & NURSING CARE PLACEMENTS,OP PACKAGE/PLACEMENT COSTS,Third Party Payments,Revenue
Walsall Council,http://opendatacommunities.org/id/metropolitan-district-council/walsall,WC89-259,28/02/2018,Adult Social Care,ANCHOR,27/02/2018,"1,840.00",73373-RESIDENTIAL & NURSING CARE PLACEMENTS,OP PACKAGE/PLACEMENT COSTS,Third Party Payments,Revenue
Walsall Council,http://opendatacommunities.org/id/metropolitan-district-council/walsall,WC89-260,28/02/2018,Adult Social Care,ANCHOR,27/02/2018,"1,840.00",73373-RESIDENTIAL & NURSING CARE PLACEMENTS,OP PACKAGE/PLACEMENT COSTS,Third Party Payments,Revenue
Walsall Council,http://opendatacommunities.org/id/metropolitan-district-council/walsall,WC89-261,28/02/2018,Adult Social Care,ANCHOR,27/02/2018,"1,840.00",73373-RESIDENTIAL & NURSING CARE PLACEMENTS,OP PACKAGE/PLACEMENT COSTS,Third Party Payments,Revenue
Walsall Council,http://opendatacommunities.org/id/metropolitan-district-council/walsall,WC89-262,28/02/2018,Adult Social Care,ANCHOR,27/02/2018,"1,840.00",73373-RESIDENTIAL & NURSING CARE PLACEMENTS,OP PACKAGE/PLACEMENT COSTS,Third Party Payments,Revenue
Walsall Council,http://opendatacommunities.org/id/metropolitan-district-council/walsall,WC89-263,28/02/2018,Adult Social Care,ANCHOR,27/02/2018,"1,840.00",73373-RESIDENTIAL & NURSING CARE PLACEMENTS,OP PACKAGE/PLACEMENT COSTS,Third Party Payments,Revenue
Walsall Council,http://opendatacommunities.org/id/metropolitan-district-council/walsall,WC89-264,28/02/2018,Adult Social Care,ANCHOR,27/02/2018,"1,840.00",73373-RESIDENTIAL & NURSING CARE PLACEMENTS,OP PACKAGE/PLACEMENT COSTS,Third Party Payments,Revenue
Walsall Council,http://opendatacommunities.org/id/metropolitan-district-council/walsall,WC89-265,28/02/2018,Adult Social Care,ANCHOR,27/02/2018,"1,840.00",73373-RESIDENTIAL & NURSING CARE PLACEMENTS,MENTAL HEALTH PACKAGE/PLACEMENT COSTS,Third Party Payments,Revenue
Walsall Council,http://opendatacommunities.org/id/metropolitan-district-council/walsall,WC89-266,28/02/2018,Adult Social Care,ANCHOR,27/02/2018,"1,996.00",73373-RESIDENTIAL & NURSING CARE PLACEMENTS,OP PACKAGE/PLACEMENT COSTS,Third Party Payments,Revenue
Walsall Council,http://opendatacommunities.org/id/metropolitan-district-council/walsall,WC89-267,28/02/2018,Adult Social Care,ANCHOR,27/02/2018,"2,016.00",73373-RESIDENTIAL & NURSING CARE PLACEMENTS,OP PACKAGE/PLACEMENT COSTS,Third Party Payments,Revenue
Walsall Council,http://opendatacommunities.org/id/metropolitan-district-council/walsall,WC89-268,28/02/2018,Adult Social Care,ANCHOR,27/02/2018,"2,080.00",73373-RESIDENTIAL & NURSING CARE PLACEMENTS,MENTAL HEALTH PACKAGE/PLACEMENT COSTS,Third Party Payments,Revenue
Walsall Council,http://opendatacommunities.org/id/metropolitan-district-council/walsall,WC89-269,28/02/2018,Adult Social Care,ANCHOR,27/02/2018,"2,180.00",73373-RESIDENTIAL & NURSING CARE PLACEMENTS,OP PACKAGE/PLACEMENT COSTS,Third Party Payments,Revenue
Walsall Council,http://opendatacommunities.org/id/metropolitan-district-council/walsall,WC89-270,28/02/2018,Adult Social Care,ANCHOR,27/02/2018,"2,180.00",73373-RESIDENTIAL & NURSING CARE PLACEMENTS,OP PACKAGE/PLACEMENT COSTS,Third Party Payments,Revenue
Walsall Council,http://opendatacommunities.org/id/metropolitan-district-council/walsall,WC89-271,28/02/2018,Adult Social Care,ANCHOR,27/02/2018,"2,180.00",73373-RESIDENTIAL & NURSING CARE PLACEMENTS,OP PACKAGE/PLACEMENT COSTS,Third Party Payments,Revenue
Walsall Council,http://opendatacommunities.org/id/metropolitan-district-council/walsall,WC89-272,28/02/2018,Adult Social Care,ANCHOR,27/02/2018,"4,256.43",73373-RESIDENTIAL & NURSING CARE PLACEMENTS,OP PACKAGE/PLACEMENT COSTS,Third Party Payments,Revenue
Walsall Council,http://opendatacommunities.org/id/metropolitan-district-council/walsall,WC89-273,28/02/2018,Childrens,REDACTED,14/02/2018,314.44,74509-SPECIAL GUARDIANSHIP ORDERS,ADOPTION ALLOWANCES,Transfer Payments,Revenue
Walsall Council,http://opendatacommunities.org/id/metropolitan-district-council/walsall,WC89-274,28/02/2018,Childrens,REDACTED,26/02/2018,9.24,60006-NEW-FURNITURE & EQUIPMENT,INTERNAL FOSTER CARE PROVISION,Supplies & Services,Revenue
Walsall Council,http://opendatacommunities.org/id/metropolitan-district-council/walsall,WC89-275,28/02/2018,Childrens,REDACTED,26/02/2018,810.32,74501-MAINTENANCE ALLOWANCE-FOSTER CARERS,INTERNAL FOSTER CARE PROVISION,Transfer Payments,Revenue
Walsall Council,http://opendatacommunities.org/id/metropolitan-district-council/walsall,WC89-276,28/02/2018,Childrens,REDACTED,26/02/2018,897.52,74508-INTERNAL FOSTER CARERS-CARER FEES,INTERNAL FOSTER CARE PROVISION,Transfer Payments,Revenue
Walsall Council,http://opendatacommunities.org/id/metropolitan-district-council/walsall,WC89-277,28/02/2018,Adult Social Care,REDACTED,05/02/2018,"1,732.36",76422-DIRECT PAYMENTS TO SOCIAL SERVICES CLIENTS,OP PACKAGE/PLACEMENT COSTS,Transfer Payments,Revenue
Walsall Council,http://opendatacommunities.org/id/metropolitan-district-council/walsall,WC89-278,28/02/2018,Adult Social Care,ANGEL COURT RESIDENTIAL CARE HOME,13/02/2018,"1,656.36",73373-RESIDENTIAL & NURSING CARE PLACEMENTS,OP PACKAGE/PLACEMENT COSTS,Third Party Payments,Revenue
Walsall Council,http://opendatacommunities.org/id/metropolitan-district-council/walsall,WC89-279,28/02/2018,Adult Social Care,ANGEL COURT RESIDENTIAL CARE HOME,13/02/2018,"1,913.16",73373-RESIDENTIAL & NURSING CARE PLACEMENTS,OP PACKAGE/PLACEMENT COSTS,Third Party Payments,Revenue
Walsall Council,http://opendatacommunities.org/id/metropolitan-district-council/walsall,WC89-280,28/02/2018,Adult Social Care,ANGEL COURT RESIDENTIAL CARE HOME,13/02/2018,"1,942.00",73373-RESIDENTIAL & NURSING CARE PLACEMENTS,OP PACKAGE/PLACEMENT COSTS,Third Party Payments,Revenue
Walsall Council,http://opendatacommunities.org/id/metropolitan-district-council/walsall,WC89-281,28/02/2018,Childrens,REDACTED,14/02/2018,368.76,74509-SPECIAL GUARDIANSHIP ORDERS,ADOPTION ALLOWANCES,Transfer Payments,Revenue
Walsall Council,http://opendatacommunities.org/id/metropolitan-district-council/walsall,WC89-282,28/02/2018,Childrens,REDACTED,14/02/2018,368.76,74509-SPECIAL GUARDIANSHIP ORDERS,ADOPTION ALLOWANCES,Transfer Payments,Revenue
Walsall Council,http://opendatacommunities.org/id/metropolitan-district-council/walsall,WC89-283,28/02/2018,Childrens,REDACTED,14/02/2018,500.16,74509-SPECIAL GUARDIANSHIP ORDERS,ADOPTION ALLOWANCES,Transfer Payments,Revenue
Walsall Council,http://opendatacommunities.org/id/metropolitan-district-council/walsall,WC89-284,28/02/2018,Childrens,REDACTED,14/02/2018,312.04,74509-SPECIAL GUARDIANSHIP ORDERS,ADOPTION ALLOWANCES,Transfer Payments,Revenue
Walsall Council,http://opendatacommunities.org/id/metropolitan-district-council/walsall,WC89-285,28/02/2018,Adult Social Care,REDACTED,05/02/2018,327.36,76422-DIRECT PAYMENTS TO SOCIAL SERVICES CLIENTS,LD PACKAGE/PLACEMENT COSTS,Transfer Payments,Revenue
Walsall Council,http://opendatacommunities.org/id/metropolitan-district-council/walsall,WC89-286,28/02/2018,Adult Social Care,REDACTED,05/02/2018,680.24,76422-DIRECT PAYMENTS TO SOCIAL SERVICES CLIENTS,OP PACKAGE/PLACEMENT COSTS,Transfer Payments,Revenue
Walsall Council,http://opendatacommunities.org/id/metropolitan-district-council/walsall,WC89-287,28/02/2018,Adult Social Care,REDACTED,05/02/2018,"1,127.52",76422-DIRECT PAYMENTS TO SOCIAL SERVICES CLIENTS,OP PACKAGE/PLACEMENT COSTS,Transfer Payments,Revenue
Walsall Council,http://opendatacommunities.org/id/metropolitan-district-council/walsall,WC89-288,28/02/2018,Adult Social Care,ANSON COURT RESIDENTIAL HOME,06/02/2018,"-5,640.00",73373-RESIDENTIAL & NURSING CARE PLACEMENTS,OP PACKAGE/PLACEMENT COSTS,Third Party Payments,Revenue
Walsall Council,http://opendatacommunities.org/id/metropolitan-district-council/walsall,WC89-289,28/02/2018,Adult Social Care,ANSON COURT RESIDENTIAL HOME,06/02/2018,"-1,074.29",73373-RESIDENTIAL & NURSING CARE PLACEMENTS,OP PACKAGE/PLACEMENT COSTS,Third Party Payments,Revenue
Walsall Council,http://opendatacommunities.org/id/metropolitan-district-council/walsall,WC89-290,28/02/2018,Adult Social Care,ANSON COURT RESIDENTIAL HOME,13/02/2018,"1,840.00",73373-RESIDENTIAL & NURSING CARE PLACEMENTS,OP PACKAGE/PLACEMENT COSTS,Third Party Payments,Revenue
Walsall Council,http://opendatacommunities.org/id/metropolitan-district-council/walsall,WC89-291,28/02/2018,Adult Social Care,ANSON COURT RESIDENTIAL HOME,13/02/2018,"1,840.00",73373-RESIDENTIAL & NURSING CARE PLACEMENTS,OP PACKAGE/PLACEMENT COSTS,Third Party Payments,Revenue
Walsall Council,http://opendatacommunities.org/id/metropolitan-district-council/walsall,WC89-292,28/02/2018,Adult Social Care,ANSON COURT RESIDENTIAL HOME,13/02/2018,"1,840.00",73373-RESIDENTIAL & NURSING CARE PLACEMENTS,OP PACKAGE/PLACEMENT COSTS,Third Party Payments,Revenue
Walsall Council,http://opendatacommunities.org/id/metropolitan-district-council/walsall,WC89-293,28/02/2018,Adult Social Care,ANSON COURT RESIDENTIAL HOME,13/02/2018,"1,840.00",73373-RESIDENTIAL & NURSING CARE PLACEMENTS,OP PACKAGE/PLACEMENT COSTS,Third Party Payments,Revenue
Walsall Council,http://opendatacommunities.org/id/metropolitan-district-council/walsall,WC89-294,28/02/2018,Adult Social Care,ANSON COURT RESIDENTIAL HOME,13/02/2018,"1,840.00",73373-RESIDENTIAL & NURSING CARE PLACEMENTS,OP PACKAGE/PLACEMENT COSTS,Third Party Payments,Revenue
Walsall Council,http://opendatacommunities.org/id/metropolitan-district-council/walsall,WC89-295,28/02/2018,Adult Social Care,ANSON COURT RESIDENTIAL HOME,13/02/2018,"1,840.00",73373-RESIDENTIAL & NURSING CARE PLACEMENTS,OP PACKAGE/PLACEMENT COSTS,Third Party Payments,Revenue
Walsall Council,http://opendatacommunities.org/id/metropolitan-district-council/walsall,WC89-296,28/02/2018,Adult Social Care,ANSON COURT RESIDENTIAL HOME,13/02/2018,"1,840.00",73373-RESIDENTIAL & NURSING CARE PLACEMENTS,OP PACKAGE/PLACEMENT COSTS,Third Party Payments,Revenue
Walsall Council,http://opendatacommunities.org/id/metropolitan-district-council/walsall,WC89-297,28/02/2018,Adult Social Care,ANSON COURT RESIDENTIAL HOME,13/02/2018,"1,840.00",73373-RESIDENTIAL & NURSING CARE PLACEMENTS,OP PACKAGE/PLACEMENT COSTS,Third Party Payments,Revenue
Walsall Council,http://opendatacommunities.org/id/metropolitan-district-council/walsall,WC89-298,28/02/2018,Adult Social Care,ANSON COURT RESIDENTIAL HOME,13/02/2018,"1,840.00",73373-RESIDENTIAL & NURSING CARE PLACEMENTS,MENTAL HEALTH PACKAGE/PLACEMENT COSTS,Third Party Payments,Revenue
Walsall Council,http://opendatacommunities.org/id/metropolitan-district-council/walsall,WC89-299,28/02/2018,Adult Social Care,ANSON COURT RESIDENTIAL HOME,13/02/2018,"1,840.00",73373-RESIDENTIAL & NURSING CARE PLACEMENTS,OP PACKAGE/PLACEMENT COSTS,Third Party Payments,Revenue
Walsall Council,http://opendatacommunities.org/id/metropolitan-district-council/walsall,WC89-300,28/02/2018,Adult Social Care,ANSON COURT RESIDENTIAL HOME,13/02/2018,"1,840.00",73373-RESIDENTIAL & NURSING CARE PLACEMENTS,OP PACKAGE/PLACEMENT COSTS,Third Party Payments,Revenue
Walsall Council,http://opendatacommunities.org/id/metropolitan-district-council/walsall,WC89-301,28/02/2018,Adult Social Care,ANSON COURT RESIDENTIAL HOME,13/02/2018,"1,840.00",73373-RESIDENTIAL & NURSING CARE PLACEMENTS,OP PACKAGE/PLACEMENT COSTS,Third Party Payments,Revenue
Walsall Council,http://opendatacommunities.org/id/metropolitan-district-council/walsall,WC89-302,28/02/2018,Adult Social Care,ANSON COURT RESIDENTIAL HOME,13/02/2018,"1,840.00",73373-RESIDENTIAL & NURSING CARE PLACEMENTS,OP PACKAGE/PLACEMENT COSTS,Third Party Payments,Revenue
Walsall Council,http://opendatacommunities.org/id/metropolitan-district-council/walsall,WC89-303,28/02/2018,Adult Social Care,ANSON COURT RESIDENTIAL HOME,13/02/2018,"1,840.00",73373-RESIDENTIAL & NURSING CARE PLACEMENTS,OP PACKAGE/PLACEMENT COSTS,Third Party Payments,Revenue
Walsall Council,http://opendatacommunities.org/id/metropolitan-district-council/walsall,WC89-304,28/02/2018,Adult Social Care,ANSON COURT RESIDENTIAL HOME,13/02/2018,"1,840.00",73373-RESIDENTIAL & NURSING CARE PLACEMENTS,OP PACKAGE/PLACEMENT COSTS,Third Party Payments,Revenue
Walsall Council,http://opendatacommunities.org/id/metropolitan-district-council/walsall,WC89-305,28/02/2018,Adult Social Care,ANSON COURT RESIDENTIAL HOME,13/02/2018,"1,840.00",73373-RESIDENTIAL & NURSING CARE PLACEMENTS,OP PACKAGE/PLACEMENT COSTS,Third Party Payments,Revenue
Walsall Council,http://opendatacommunities.org/id/metropolitan-district-council/walsall,WC89-306,28/02/2018,Adult Social Care,ANSON COURT RESIDENTIAL HOME,13/02/2018,"1,840.00",73373-RESIDENTIAL & NURSING CARE PLACEMENTS,OP PACKAGE/PLACEMENT COSTS,Third Party Payments,Revenue
Walsall Council,http://opendatacommunities.org/id/metropolitan-district-council/walsall,WC89-307,28/02/2018,Adult Social Care,ANSON COURT RESIDENTIAL HOME,13/02/2018,"1,840.00",73373-RESIDENTIAL & NURSING CARE PLACEMENTS,OP PACKAGE/PLACEMENT COSTS,Third Party Payments,Revenue
Walsall Council,http://opendatacommunities.org/id/metropolitan-district-council/walsall,WC89-308,28/02/2018,Adult Social Care,ANSON COURT RESIDENTIAL HOME,13/02/2018,"1,920.00",73373-RESIDENTIAL & NURSING CARE PLACEMENTS,OP PACKAGE/PLACEMENT COSTS,Third Party Payments,Revenue
Walsall Council,http://opendatacommunities.org/id/metropolitan-district-council/walsall,WC89-309,28/02/2018,Adult Social Care,ANSON COURT RESIDENTIAL HOME,13/02/2018,"1,920.00",73373-RESIDENTIAL & NURSING CARE PLACEMENTS,OP PACKAGE/PLACEMENT COSTS,Third Party Payments,Revenue
Walsall Council,http://opendatacommunities.org/id/metropolitan-district-council/walsall,WC89-310,28/02/2018,Adult Social Care,ANSON COURT RESIDENTIAL HOME,13/02/2018,"1,920.00",73373-RESIDENTIAL & NURSING CARE PLACEMENTS,MENTAL HEALTH PACKAGE/PLACEMENT COSTS,Third Party Payments,Revenue
Walsall Council,http://opendatacommunities.org/id/metropolitan-district-council/walsall,WC89-311,28/02/2018,Adult Social Care,ANSON COURT RESIDENTIAL HOME,13/02/2018,"1,920.00",73373-RESIDENTIAL & NURSING CARE PLACEMENTS,OP PACKAGE/PLACEMENT COSTS,Third Party Payments,Revenue
Walsall Council,http://opendatacommunities.org/id/metropolitan-district-council/walsall,WC89-312,28/02/2018,Adult Social Care,ANSON COURT RESIDENTIAL HOME,13/02/2018,"4,920.00",73373-RESIDENTIAL & NURSING CARE PLACEMENTS,MENTAL HEALTH PACKAGE/PLACEMENT COSTS,Third Party Payments,Revenue
Walsall Council,http://opendatacommunities.org/id/metropolitan-district-council/walsall,WC89-313,28/02/2018,Childrens,REDACTED,14/02/2018,604.00,74510-RESIDENTS ORDERS,ADOPTION ALLOWANCES,Third Party Payments,Revenue
Walsall Council,http://opendatacommunities.org/id/metropolitan-district-council/walsall,WC89-314,28/02/2018,Childrens,REDACTED,14/02/2018,333.12,74509-SPECIAL GUARDIANSHIP ORDERS,ADOPTION ALLOWANCES,Transfer Payments,Revenue
Walsall Council,http://opendatacommunities.org/id/metropolitan-district-council/walsall,WC89-315,28/02/2018,Economy & Environment,APCOA PARKING SERVICES (UK) LTD,19/02/2018,"43,962.69",73025-PROFESSIONAL SERVICES-PRIV CONTRACTOR & OTHER AGENCIES,PARKING SERVICES OFF-STREET,Third Party Payments,Revenue
Walsall Council,http://opendatacommunities.org/id/metropolitan-district-council/walsall,WC89-316,28/02/2018,Economy & Environment,APSE 001,08/02/2018,175.00,30030-EXTERNAL TRAINING,GREEN SPACE MANAGEMENT,Employees,Revenue
Walsall Council,http://opendatacommunities.org/id/metropolitan-district-council/walsall,WC89-317,28/02/2018,Economy & Environment,APSE 001,08/02/2018,175.00,30030-EXTERNAL TRAINING,COUNTRYSIDE MANAGEMENT-OTHER,Employees,Revenue
Walsall Council,http://opendatacommunities.org/id/metropolitan-district-council/walsall,WC89-318,28/02/2018,Resources and Transformation,AQUA LINEN COMMERCIAL LAUNDRY LTD #1,06/02/2018,399.60,62515-MISCELLANEOUS SUPPLIES,WALSALL TOWN HALL,Supplies & Services,Revenue
Walsall Council,http://opendatacommunities.org/id/metropolitan-district-council/walsall,WC89-319,28/02/2018,Economy & Environment,AQUALYMPIC,15/02/2018,730.00,34305-AGENCY STAFF-EMPLOYEES,OAK PARK,Employees,Revenue
Walsall Council,http://opendatacommunities.org/id/metropolitan-district-council/walsall,WC89-320,28/02/2018,Economy & Environment,AQUALYMPIC,26/02/2018,"1,062.50",34305-AGENCY STAFF-EMPLOYEES,OAK PARK,Employees,Revenue
Walsall Council,http://opendatacommunities.org/id/metropolitan-district-council/walsall,WC89-321,28/02/2018,Economy & Environment,AQUALYMPIC,13/02/2018,"1,362.50",34305-AGENCY STAFF-EMPLOYEES,OAK PARK,Employees,Revenue
Walsall Council,http://opendatacommunities.org/id/metropolitan-district-council/walsall,WC89-322,28/02/2018,Economy & Environment,AQUALYMPIC,13/02/2018,"2,167.50",34305-AGENCY STAFF-EMPLOYEES,OAK PARK,Employees,Revenue
Walsall Council,http://opendatacommunities.org/id/metropolitan-district-council/walsall,WC89-323,28/02/2018,Adult Social Care,ARBORETUM NURSING HOME.,20/02/2018,"-1,785.71",73373-RESIDENTIAL & NURSING CARE PLACEMENTS,OP PACKAGE/PLACEMENT COSTS,Third Party Payments,Revenue
Walsall Council,http://opendatacommunities.org/id/metropolitan-district-council/walsall,WC89-324,28/02/2018,Adult Social Care,ARBORETUM NURSING HOME.,06/02/2018,-857.14,73373-RESIDENTIAL & NURSING CARE PLACEMENTS,OP PACKAGE/PLACEMENT COSTS,Third Party Payments,Revenue
Walsall Council,http://opendatacommunities.org/id/metropolitan-district-council/walsall,WC89-325,28/02/2018,Adult Social Care,ARBORETUM NURSING HOME.,06/02/2018,"1,000.00",73373-RESIDENTIAL & NURSING CARE PLACEMENTS,OP PACKAGE/PLACEMENT COSTS,Third Party Payments,Revenue
Walsall Council,http://opendatacommunities.org/id/metropolitan-district-council/walsall,WC89-326,28/02/2018,Adult Social Care,ARBORETUM NURSING HOME.,01/02/2018,"1,490.00",73019-PSE'S-PRIV CONTRACTOR FEES,INTEGRATED DISCHARGE TEAM,Third Party Payments,Revenue
Walsall Council,http://opendatacommunities.org/id/metropolitan-district-council/walsall,WC89-327,28/02/2018,Adult Social Care,ARBORETUM NURSING HOME.,20/02/2018,"2,000.00",73373-RESIDENTIAL & NURSING CARE PLACEMENTS,OP PACKAGE/PLACEMENT COSTS,Third Party Payments,Revenue
Walsall Council,http://opendatacommunities.org/id/metropolitan-district-council/walsall,WC89-328,28/02/2018,Adult Social Care,ARBORETUM NURSING HOME.,27/02/2018,"2,000.00",73373-RESIDENTIAL & NURSING CARE PLACEMENTS,OP PACKAGE/PLACEMENT COSTS,Third Party Payments,Revenue
Walsall Council,http://opendatacommunities.org/id/metropolitan-district-council/walsall,WC89-329,28/02/2018,Adult Social Care,ARBORETUM NURSING HOME.,27/02/2018,"2,080.00",73373-RESIDENTIAL & NURSING CARE PLACEMENTS,OP PACKAGE/PLACEMENT COSTS,Third Party Payments,Revenue
Walsall Council,http://opendatacommunities.org/id/metropolitan-district-council/walsall,WC89-330,28/02/2018,Adult Social Care,ARBORETUM NURSING HOME.,27/02/2018,"2,200.00",73373-RESIDENTIAL & NURSING CARE PLACEMENTS,OP PACKAGE/PLACEMENT COSTS,Third Party Payments,Revenue
Walsall Council,http://opendatacommunities.org/id/metropolitan-district-council/walsall,WC89-331,28/02/2018,Adult Social Care,ARBORETUM NURSING HOME.,21/02/2018,"14,900.00",73019-PSE'S-PRIV CONTRACTOR FEES,INTEGRATED DISCHARGE TEAM,Third Party Payments,Revenue
Walsall Council,http://opendatacommunities.org/id/metropolitan-district-council/walsall,WC89-332,28/02/2018,Economy & Environment,ARCADIS,26/02/2018,"9,930.00",01002-PROJECT FEES,CFR 791 SMARTER WORKPLACES - PROPERTY INVESTMENT,Capital,Capital
Walsall Council,http://opendatacommunities.org/id/metropolitan-district-council/walsall,WC89-333,28/02/2018,Economy & Environment,ARCANE DIRECT MARKETING,07/02/2018,260.57,62511-DISTRIBUTION,NAG - ART GALLERY MARKETING,Supplies & Services,Revenue
Walsall Council,http://opendatacommunities.org/id/metropolitan-district-council/walsall,WC89-334,28/02/2018,Economy & Environment,ARCANE DIRECT MARKETING,07/02/2018,"1,345.05",62511-DISTRIBUTION,NAG - ART GALLERY MARKETING,Supplies & Services,Revenue
Walsall Council,http://opendatacommunities.org/id/metropolitan-district-council/walsall,WC89-335,28/02/2018,Adult Social Care,ARK HOME HEALTHCARE LIMITED,01/02/2018,"5,553.74",73372-DOMICILIARY CARE,OP PACKAGE/PLACEMENT COSTS,Third Party Payments,Revenue
Walsall Council,http://opendatacommunities.org/id/metropolitan-district-council/walsall,WC89-336,28/02/2018,Adult Social Care,ARK HOME HEALTHCARE LIMITED,01/02/2018,"30,893.50",73372-DOMICILIARY CARE,OP PACKAGE/PLACEMENT COSTS,Third Party Payments,Revenue
Walsall Council,http://opendatacommunities.org/id/metropolitan-district-council/walsall,WC89-337,28/02/2018,Childrens,ARNFIELD CARE LIMITED,26/02/2018,"15,616.00",74036-EXTERNAL RESIDENTIAL CARE-OTH AGENCY PROVISION,INDEPENDENT RESIDENTIAL HOMES,Third Party Payments,Revenue
Walsall Council,http://opendatacommunities.org/id/metropolitan-district-council/walsall,WC89-338,28/02/2018,Economy & Environment,ARTFUL LOGISTICS LTD,01/02/2018,710.00,73032-TRANSPORTATION-PRIV CONTRACTOR FEES,PHOTOGRAPHY EXHIBITION NO. 2 WSA,Third Party Payments,Revenue
Walsall Council,http://opendatacommunities.org/id/metropolitan-district-council/walsall,WC89-339,28/02/2018,Childrens,ARTHUR M GRIFFITHS & SON LTD,12/02/2018,"130,737.45",01006-SITE WORKS MAIN CONTRACTORS,CFR 929 FIBBERSLEY PRIMARY SIGNIFICANT ENLARGEMENT,Capital,Capital
Walsall Council,http://opendatacommunities.org/id/metropolitan-district-council/walsall,WC89-340,28/02/2018,Economy & Environment,ARTLINK TRANSPORT AND STORAGE LTD,14/02/2018,"1,200.00",73032-TRANSPORTATION-PRIV CONTRACTOR FEES,NAG - TEMPORARY EXHIBITIONS,Third Party Payments,Revenue
Walsall Council,http://opendatacommunities.org/id/metropolitan-district-council/walsall,WC89-341,28/02/2018,Childrens,ARUNDALE PRIMARY SCHOOL,12/02/2018,300.00,77300-ISB-FORMULA ALLOCATION,OUT OF BOROUGH SCHOOLS,Transfer Payments,Revenue
Walsall Council,http://opendatacommunities.org/id/metropolitan-district-council/walsall,WC89-342,28/02/2018,Economy & Environment,ASDA PHARMACY,06/02/2018,314.75,71007-CONTRIBUTION TO PCT,PUBLIC HEALTH BUSINESS SUPPORT,Third Party Payments,Revenue
Walsall Council,http://opendatacommunities.org/id/metropolitan-district-council/walsall,WC89-343,28/02/2018,Economy & Environment,ASDA PHARMACY,12/02/2018,332.18,71007-CONTRIBUTION TO PCT,PUBLIC HEALTH BUSINESS SUPPORT,Third Party Payments,Revenue
Walsall Council,http://opendatacommunities.org/id/metropolitan-district-council/walsall,WC89-344,28/02/2018,Economy & Environment,ASDA PHARMACY,06/02/2018,420.35,71007-CONTRIBUTION TO PCT,PUBLIC HEALTH BUSINESS SUPPORT,Third Party Payments,Revenue
Walsall Council,http://opendatacommunities.org/id/metropolitan-district-council/walsall,WC89-345,28/02/2018,Adult Social Care,ASH GRANGE CARE HOME,20/02/2018,"-2,280.00",73373-RESIDENTIAL & NURSING CARE PLACEMENTS,OP PACKAGE/PLACEMENT COSTS,Third Party Payments,Revenue
Walsall Council,http://opendatacommunities.org/id/metropolitan-district-council/walsall,WC89-346,28/02/2018,Adult Social Care,ASH GRANGE CARE HOME,06/02/2018,362.71,73373-RESIDENTIAL & NURSING CARE PLACEMENTS,OP PACKAGE/PLACEMENT COSTS,Third Party Payments,Revenue
Walsall Council,http://opendatacommunities.org/id/metropolitan-district-council/walsall,WC89-347,28/02/2018,Adult Social Care,ASH GRANGE CARE HOME,06/02/2018,963.05,73373-RESIDENTIAL & NURSING CARE PLACEMENTS,OP PACKAGE/PLACEMENT COSTS,Third Party Payments,Revenue
Walsall Council,http://opendatacommunities.org/id/metropolitan-district-council/walsall,WC89-348,28/02/2018,Adult Social Care,ASH GRANGE CARE HOME,06/02/2018,"1,272.90",73373-RESIDENTIAL & NURSING CARE PLACEMENTS,OP PACKAGE/PLACEMENT COSTS,Third Party Payments,Revenue
Walsall Council,http://opendatacommunities.org/id/metropolitan-district-council/walsall,WC89-349,28/02/2018,Adult Social Care,ASH GRANGE CARE HOME,06/02/2018,"1,656.00",73373-RESIDENTIAL & NURSING CARE PLACEMENTS,OP PACKAGE/PLACEMENT COSTS,Third Party Payments,Revenue
Walsall Council,http://opendatacommunities.org/id/metropolitan-district-council/walsall,WC89-350,28/02/2018,Adult Social Care,ASH GRANGE CARE HOME,27/02/2018,"1,656.00",73373-RESIDENTIAL & NURSING CARE PLACEMENTS,OP PACKAGE/PLACEMENT COSTS,Third Party Payments,Revenue
Walsall Council,http://opendatacommunities.org/id/metropolitan-district-council/walsall,WC89-351,28/02/2018,Adult Social Care,ASH GRANGE CARE HOME,20/02/2018,"2,000.00",73373-RESIDENTIAL & NURSING CARE PLACEMENTS,OP PACKAGE/PLACEMENT COSTS,Third Party Payments,Revenue
Walsall Council,http://opendatacommunities.org/id/metropolitan-district-council/walsall,WC89-352,28/02/2018,Adult Social Care,ASH GRANGE CARE HOME,27/02/2018,"2,000.00",73373-RESIDENTIAL & NURSING CARE PLACEMENTS,MENTAL HEALTH PACKAGE/PLACEMENT COSTS,Third Party Payments,Revenue
Walsall Council,http://opendatacommunities.org/id/metropolitan-district-council/walsall,WC89-353,28/02/2018,Adult Social Care,ASH GRANGE CARE HOME,27/02/2018,"2,000.00",73373-RESIDENTIAL & NURSING CARE PLACEMENTS,OP PACKAGE/PLACEMENT COSTS,Third Party Payments,Revenue
Walsall Council,http://opendatacommunities.org/id/metropolitan-district-council/walsall,WC89-354,28/02/2018,Adult Social Care,ASH GRANGE CARE HOME,27/02/2018,"2,000.00",73373-RESIDENTIAL & NURSING CARE PLACEMENTS,OP PACKAGE/PLACEMENT COSTS,Third Party Payments,Revenue
Walsall Council,http://opendatacommunities.org/id/metropolitan-district-council/walsall,WC89-355,28/02/2018,Adult Social Care,ASH GRANGE CARE HOME,27/02/2018,"2,000.00",73373-RESIDENTIAL & NURSING CARE PLACEMENTS,OP PACKAGE/PLACEMENT COSTS,Third Party Payments,Revenue
Walsall Council,http://opendatacommunities.org/id/metropolitan-district-council/walsall,WC89-356,28/02/2018,Adult Social Care,ASH GRANGE CARE HOME,27/02/2018,"2,000.00",73373-RESIDENTIAL & NURSING CARE PLACEMENTS,OP PACKAGE/PLACEMENT COSTS,Third Party Payments,Revenue
Walsall Council,http://opendatacommunities.org/id/metropolitan-district-council/walsall,WC89-357,28/02/2018,Adult Social Care,ASH GRANGE CARE HOME,27/02/2018,"2,000.00",73373-RESIDENTIAL & NURSING CARE PLACEMENTS,OP PACKAGE/PLACEMENT COSTS,Third Party Payments,Revenue
Walsall Council,http://opendatacommunities.org/id/metropolitan-district-council/walsall,WC89-358,28/02/2018,Adult Social Care,ASH GRANGE CARE HOME,27/02/2018,"2,000.00",73373-RESIDENTIAL & NURSING CARE PLACEMENTS,OP PACKAGE/PLACEMENT COSTS,Third Party Payments,Revenue
Walsall Council,http://opendatacommunities.org/id/metropolitan-district-council/walsall,WC89-359,28/02/2018,Adult Social Care,ASH GRANGE CARE HOME,27/02/2018,"2,000.00",73373-RESIDENTIAL & NURSING CARE PLACEMENTS,OP PACKAGE/PLACEMENT COSTS,Third Party Payments,Revenue
Walsall Council,http://opendatacommunities.org/id/metropolitan-district-council/walsall,WC89-360,28/02/2018,Adult Social Care,ASH GRANGE CARE HOME,27/02/2018,"2,000.00",73373-RESIDENTIAL & NURSING CARE PLACEMENTS,OP PACKAGE/PLACEMENT COSTS,Third Party Payments,Revenue
Walsall Council,http://opendatacommunities.org/id/metropolitan-district-council/walsall,WC89-361,28/02/2018,Adult Social Care,ASH GRANGE CARE HOME,27/02/2018,"2,000.00",73373-RESIDENTIAL & NURSING CARE PLACEMENTS,OP PACKAGE/PLACEMENT COSTS,Third Party Payments,Revenue
Walsall Council,http://opendatacommunities.org/id/metropolitan-district-council/walsall,WC89-362,28/02/2018,Adult Social Care,ASH GRANGE CARE HOME,27/02/2018,"2,200.00",73373-RESIDENTIAL & NURSING CARE PLACEMENTS,OP PACKAGE/PLACEMENT COSTS,Third Party Payments,Revenue
Walsall Council,http://opendatacommunities.org/id/metropolitan-district-council/walsall,WC89-363,28/02/2018,Adult Social Care,ASH GRANGE CARE HOME,27/02/2018,"2,200.00",73373-RESIDENTIAL & NURSING CARE PLACEMENTS,OP PACKAGE/PLACEMENT COSTS,Third Party Payments,Revenue
Walsall Council,http://opendatacommunities.org/id/metropolitan-district-council/walsall,WC89-364,28/02/2018,Adult Social Care,ASH GRANGE CARE HOME,06/02/2018,"2,280.00",73373-RESIDENTIAL & NURSING CARE PLACEMENTS,OP PACKAGE/PLACEMENT COSTS,Third Party Payments,Revenue
Walsall Council,http://opendatacommunities.org/id/metropolitan-district-council/walsall,WC89-365,28/02/2018,Adult Social Care,ASH GRANGE CARE HOME,06/02/2018,"2,280.00",73373-RESIDENTIAL & NURSING CARE PLACEMENTS,OP PACKAGE/PLACEMENT COSTS,Third Party Payments,Revenue
Walsall Council,http://opendatacommunities.org/id/metropolitan-district-council/walsall,WC89-366,28/02/2018,Adult Social Care,ASH GRANGE CARE HOME,06/02/2018,"2,280.00",73373-RESIDENTIAL & NURSING CARE PLACEMENTS,OP PACKAGE/PLACEMENT COSTS,Third Party Payments,Revenue
Walsall Council,http://opendatacommunities.org/id/metropolitan-district-council/walsall,WC89-367,28/02/2018,Adult Social Care,ASH GRANGE CARE HOME,06/02/2018,"2,280.00",73373-RESIDENTIAL & NURSING CARE PLACEMENTS,OP PACKAGE/PLACEMENT COSTS,Third Party Payments,Revenue
Walsall Council,http://opendatacommunities.org/id/metropolitan-district-council/walsall,WC89-368,28/02/2018,Adult Social Care,ASH GRANGE CARE HOME,06/02/2018,"2,280.00",73373-RESIDENTIAL & NURSING CARE PLACEMENTS,OP PACKAGE/PLACEMENT COSTS,Third Party Payments,Revenue
Walsall Council,http://opendatacommunities.org/id/metropolitan-district-council/walsall,WC89-369,28/02/2018,Adult Social Care,ASH GRANGE CARE HOME,06/02/2018,"2,280.00",73373-RESIDENTIAL & NURSING CARE PLACEMENTS,OP PACKAGE/PLACEMENT COSTS,Third Party Payments,Revenue
Walsall Council,http://opendatacommunities.org/id/metropolitan-district-council/walsall,WC89-370,28/02/2018,Adult Social Care,ASH GRANGE CARE HOME,06/02/2018,"2,280.00",73373-RESIDENTIAL & NURSING CARE PLACEMENTS,OP PACKAGE/PLACEMENT COSTS,Third Party Payments,Revenue
Walsall Council,http://opendatacommunities.org/id/metropolitan-district-council/walsall,WC89-371,28/02/2018,Adult Social Care,ASH GRANGE CARE HOME,27/02/2018,"2,280.00",73373-RESIDENTIAL & NURSING CARE PLACEMENTS,OP PACKAGE/PLACEMENT COSTS,Third Party Payments,Revenue
Walsall Council,http://opendatacommunities.org/id/metropolitan-district-council/walsall,WC89-372,28/02/2018,Adult Social Care,ASH GRANGE CARE HOME,27/02/2018,"2,495.72",73373-RESIDENTIAL & NURSING CARE PLACEMENTS,PD PACKAGE/PLACEMENT COSTS,Third Party Payments,Revenue
Walsall Council,http://opendatacommunities.org/id/metropolitan-district-council/walsall,WC89-373,28/02/2018,Adult Social Care,ASH GRANGE CARE HOME,06/02/2018,"2,745.71",73373-RESIDENTIAL & NURSING CARE PLACEMENTS,OP PACKAGE/PLACEMENT COSTS,Third Party Payments,Revenue
Walsall Council,http://opendatacommunities.org/id/metropolitan-district-council/walsall,WC89-374,28/02/2018,Adult Social Care,ASH GRANGE CARE HOME,26/02/2018,"7,031.69",73373-RESIDENTIAL & NURSING CARE PLACEMENTS,OP PACKAGE/PLACEMENT COSTS,Third Party Payments,Revenue
Walsall Council,http://opendatacommunities.org/id/metropolitan-district-council/walsall,WC89-375,28/02/2018,Adult Social Care,ASHBOURNE LODGE,13/02/2018,"1,963.60",73373-RESIDENTIAL & NURSING CARE PLACEMENTS,OP PACKAGE/PLACEMENT COSTS,Third Party Payments,Revenue
Walsall Council,http://opendatacommunities.org/id/metropolitan-district-council/walsall,WC89-376,28/02/2018,Adult Social Care,REDACTED,05/02/2018,422.00,76422-DIRECT PAYMENTS TO SOCIAL SERVICES CLIENTS,LD PACKAGE/PLACEMENT COSTS,Transfer Payments,Revenue
Walsall Council,http://opendatacommunities.org/id/metropolitan-district-council/walsall,WC89-377,28/02/2018,Adult Social Care,REDACTED,05/02/2018,"1,911.00",76422-DIRECT PAYMENTS TO SOCIAL SERVICES CLIENTS,LD PACKAGE/PLACEMENT COSTS,Transfer Payments,Revenue
Walsall Council,http://opendatacommunities.org/id/metropolitan-district-council/walsall,WC89-378,28/02/2018,Economy & Environment,ASKEWS AND HOLTS LIBRARY SERVICES LTD,14/02/2018,296.27,60501-LIBRARY BOOKS,LIBRARY STOCK AND PERFORMANCE,Supplies & Services,Revenue
Walsall Council,http://opendatacommunities.org/id/metropolitan-district-council/walsall,WC89-379,28/02/2018,Economy & Environment,ASKEWS AND HOLTS LIBRARY SERVICES LTD,14/02/2018,347.44,60501-LIBRARY BOOKS,LIBRARY STOCK AND PERFORMANCE,Supplies & Services,Revenue
Walsall Council,http://opendatacommunities.org/id/metropolitan-district-council/walsall,WC89-380,28/02/2018,Adult Social Care,REDACTED,05/02/2018,756.00,76422-DIRECT PAYMENTS TO SOCIAL SERVICES CLIENTS,OP PACKAGE/PLACEMENT COSTS,Transfer Payments,Revenue
Walsall Council,http://opendatacommunities.org/id/metropolitan-district-council/walsall,WC89-381,28/02/2018,Resources and Transformation,ASSOCIATION OF INDEPENDENT LSCB CHAIRS,23/02/2018,650.00,34000-RECRUITMENT EXPENSES (ALL TYPES INCL RELOCATION),SCHOOLS HR TRANSACTIONAL TEAM,Employees,Revenue
Walsall Council,http://opendatacommunities.org/id/metropolitan-district-council/walsall,WC89-382,28/02/2018,Economy & Environment,ATHWAL NEWS LTD,14/02/2018,351.03,60501-LIBRARY BOOKS,LIBRARY STOCK AND PERFORMANCE,Supplies & Services,Revenue
Walsall Council,http://opendatacommunities.org/id/metropolitan-district-council/walsall,WC89-383,28/02/2018,Economy & Environment,ATOM,15/02/2018,"1,200.00",60501-LIBRARY BOOKS,LIBRARY STOCK AND PERFORMANCE,Supplies & Services,Revenue
Walsall Council,http://opendatacommunities.org/id/metropolitan-district-council/walsall,WC89-384,28/02/2018,Childrens,ATTACHMENT WORKS LTD,02/02/2018,532.00,63000-PROFESSIONAL FEES AND SERVICES,FAMILY PLACEMENTS,Supplies & Services,Revenue
Walsall Council,http://opendatacommunities.org/id/metropolitan-district-council/walsall,WC89-385,28/02/2018,Economy & Environment,AUCTUS TRAINING SOLUTIONS,14/02/2018,112.50,63000-PROFESSIONAL FEES AND SERVICES,YEI (IMPACT) PROGRAMME,Supplies & Services,Revenue
Walsall Council,http://opendatacommunities.org/id/metropolitan-district-council/walsall,WC89-386,28/02/2018,Economy & Environment,AUCTUS TRAINING SOLUTIONS,14/02/2018,112.50,63000-PROFESSIONAL FEES AND SERVICES,YEI ESF FUNDING,Supplies & Services,Revenue
Walsall Council,http://opendatacommunities.org/id/metropolitan-district-council/walsall,WC89-387,28/02/2018,Economy & Environment,AUCTUS TRAINING SOLUTIONS,14/02/2018,"1,125.00",30030-EXTERNAL TRAINING,YEI ESF FUNDING,Employees,Revenue
Walsall Council,http://opendatacommunities.org/id/metropolitan-district-council/walsall,WC89-388,28/02/2018,Economy & Environment,AUCTUS TRAINING SOLUTIONS,14/02/2018,"3,249.81",30030-EXTERNAL TRAINING,YEI (IMPACT) PROGRAMME,Employees,Revenue
Walsall Council,http://opendatacommunities.org/id/metropolitan-district-council/walsall,WC89-389,28/02/2018,Economy & Environment,AUCTUS TRAINING SOLUTIONS,14/02/2018,"3,249.81",30030-EXTERNAL TRAINING,YEI ESF FUNDING,Employees,Revenue
Walsall Council,http://opendatacommunities.org/id/metropolitan-district-council/walsall,WC89-390,28/02/2018,Resources and Transformation,AURORA GRAPHICS & DISPLAYS LTD,12/02/2018,405.32,62008-OUTWORK-PRINT ROOM,PRINTING SERVICES,Supplies & Services,Revenue
Walsall Council,http://opendatacommunities.org/id/metropolitan-district-council/walsall,WC89-391,28/02/2018,Resources and Transformation,AURORA GRAPHICS & DISPLAYS LTD,01/02/2018,737.86,62008-OUTWORK-PRINT ROOM,PRINTING SERVICES,Supplies & Services,Revenue
Walsall Council,http://opendatacommunities.org/id/metropolitan-district-council/walsall,WC89-392,28/02/2018,Resources and Transformation,AURORA GRAPHICS & DISPLAYS LTD,23/02/2018,"1,311.60",62008-OUTWORK-PRINT ROOM,PRINTING SERVICES,Supplies & Services,Revenue
Walsall Council,http://opendatacommunities.org/id/metropolitan-district-council/walsall,WC89-393,28/02/2018,Resources and Transformation,AURORA GRAPHICS & DISPLAYS LTD,01/02/2018,"1,938.57",62008-OUTWORK-PRINT ROOM,PRINTING SERVICES,Supplies & Services,Revenue
Walsall Council,http://opendatacommunities.org/id/metropolitan-district-council/walsall,WC89-394,28/02/2018,Adult Social Care,AUTISM WEST MIDLANDS,20/02/2018,"7,479.02",73373-RESIDENTIAL & NURSING CARE PLACEMENTS,LD PACKAGE/PLACEMENT COSTS,Third Party Payments,Revenue
Walsall Council,http://opendatacommunities.org/id/metropolitan-district-council/walsall,WC89-395,28/02/2018,Adult Social Care,AUTISM WEST MIDLANDS,02/02/2018,"10,833.50",70000-SOCIAL SERVICES-FEES TO VOLUNTARY BODIES,COMPLEX NEEDS SLA,Third Party Payments,Revenue
Walsall Council,http://opendatacommunities.org/id/metropolitan-district-council/walsall,WC89-396,28/02/2018,Adult Social Care,AUTISM WEST MIDLANDS,16/02/2018,"18,666.69",70000-SOCIAL SERVICES-FEES TO VOLUNTARY BODIES,COMPLEX NEEDS CONTRACTS/SLA's,Third Party Payments,Revenue
Walsall Council,http://opendatacommunities.org/id/metropolitan-district-council/walsall,WC89-397,28/02/2018,Adult Social Care,AUTISM WEST MIDLANDS 001,20/02/2018,"4,999.33",73373-RESIDENTIAL & NURSING CARE PLACEMENTS,LD PACKAGE/PLACEMENT COSTS,Third Party Payments,Revenue
Walsall Council,http://opendatacommunities.org/id/metropolitan-district-council/walsall,WC89-398,28/02/2018,Economy & Environment,AUTORITE INDUSTRIES (WILLENHALL)LTD,22/02/2018,220.00,52000-WITH DRIVER-HIRE OF VEHICLES,REMOVAL OF UNAUTHORISED ENCAMPMENTS,Transport,Revenue
Walsall Council,http://opendatacommunities.org/id/metropolitan-district-council/walsall,WC89-399,28/02/2018,Economy & Environment,AUTORITE INDUSTRIES (WILLENHALL)LTD,01/02/2018,583.34,73025-PROFESSIONAL SERVICES-PRIV CONTRACTOR & OTHER AGENCIES,EH DIV GENERAL COSTS,Third Party Payments,Revenue
Walsall Council,http://opendatacommunities.org/id/metropolitan-district-council/walsall,WC89-400,28/02/2018,Economy & Environment,AVALON PROMOTIONS LTD,12/02/2018,"1,500.00",63000-PROFESSIONAL FEES AND SERVICES,FOREST ARTS CENTRE,Supplies & Services,Revenue
Walsall Council,http://opendatacommunities.org/id/metropolitan-district-council/walsall,WC89-401,28/02/2018,Adult Social Care,AVE MARIA CARE SERVICES,01/02/2018,577.92,73372-DOMICILIARY CARE,OP PACKAGE/PLACEMENT COSTS,Third Party Payments,Revenue
Walsall Council,http://opendatacommunities.org/id/metropolitan-district-council/walsall,WC89-402,28/02/2018,Adult Social Care,REDACTED,05/02/2018,989.04,76422-DIRECT PAYMENTS TO SOCIAL SERVICES CLIENTS,OP PACKAGE/PLACEMENT COSTS,Transfer Payments,Revenue
Walsall Council,http://opendatacommunities.org/id/metropolitan-district-council/walsall,WC89-403,28/02/2018,Economy & Environment,AXIELL LIMITED,20/02/2018,291.10,63000-PROFESSIONAL FEES AND SERVICES,LIBRARY STOCK AND PERFORMANCE,Supplies & Services,Revenue
Walsall Council,http://opendatacommunities.org/id/metropolitan-district-council/walsall,WC89-404,28/02/2018,Economy & Environment,AXIELL LIMITED,20/02/2018,369.91,63000-PROFESSIONAL FEES AND SERVICES,LIBRARY STOCK AND PERFORMANCE,Supplies & Services,Revenue
Walsall Council,http://opendatacommunities.org/id/metropolitan-district-council/walsall,WC89-405,28/02/2018,Economy & Environment,AXIELL LIMITED,19/02/2018,400.00,63800-COMPUTER EQUIPMENT AND SUPPLIES,NETWORK SUPPORT,Supplies & Services,Revenue
Walsall Council,http://opendatacommunities.org/id/metropolitan-district-council/walsall,WC89-406,28/02/2018,Economy & Environment,AXIELL LIMITED,20/02/2018,"16,736.61",63800-COMPUTER EQUIPMENT AND SUPPLIES,NETWORK SUPPORT,Supplies & Services,Revenue
Walsall Council,http://opendatacommunities.org/id/metropolitan-district-council/walsall,WC89-407,28/02/2018,Childrens,REDACTED,05/02/2018,"1,284.00",76422-DIRECT PAYMENTS TO SOCIAL SERVICES CLIENTS,FAMILY SUPPORT - DIRECT PAYMENTS,Transfer Payments,Revenue
Walsall Council,http://opendatacommunities.org/id/metropolitan-district-council/walsall,WC89-408,28/02/2018,Adult Social Care,REDACTED,05/02/2018,"2,808.00",76422-DIRECT PAYMENTS TO SOCIAL SERVICES CLIENTS,LD PACKAGE/PLACEMENT COSTS,Transfer Payments,Revenue
Walsall Council,http://opendatacommunities.org/id/metropolitan-district-council/walsall,WC89-409,28/02/2018,Childrens,REDACTED,14/02/2018,9.24,60006-NEW-FURNITURE & EQUIPMENT,FAMILY & FRIENDS FOSTER CARE PROVISION,Supplies & Services,Revenue
Walsall Council,http://opendatacommunities.org/id/metropolitan-district-council/walsall,WC89-410,28/02/2018,Childrens,REDACTED,14/02/2018,345.24,74508-INTERNAL FOSTER CARERS-CARER FEES,FAMILY & FRIENDS FOSTER CARE PROVISION,Transfer Payments,Revenue
Walsall Council,http://opendatacommunities.org/id/metropolitan-district-council/walsall,WC89-411,28/02/2018,Childrens,REDACTED,14/02/2018,364.52,74506-TRAVEL-FOSTER CARERS,FAMILY & FRIENDS FOSTER CARE PROVISION,Transfer Payments,Revenue
Walsall Council,http://opendatacommunities.org/id/metropolitan-district-council/walsall,WC89-412,28/02/2018,Childrens,REDACTED,14/02/2018,387.26,74501-MAINTENANCE ALLOWANCE-FOSTER CARERS,FAMILY & FRIENDS FOSTER CARE PROVISION,Transfer Payments,Revenue
Walsall Council,http://opendatacommunities.org/id/metropolitan-district-council/walsall,WC89-413,28/02/2018,Childrens,REDACTED,13/02/2018,464.00,76000-TRANSFER PAYMENTS - SOCIAL SERVICES CLIENTS,TRANSITION AND LEAVING CARE PLACEMENTS,Transfer Payments,Revenue
Walsall Council,http://opendatacommunities.org/id/metropolitan-district-council/walsall,WC89-414,28/02/2018,Childrens,REDACTED,13/02/2018,464.00,76000-TRANSFER PAYMENTS - SOCIAL SERVICES CLIENTS,TRANSITION AND LEAVING CARE PLACEMENTS,Transfer Payments,Revenue
Walsall Council,http://opendatacommunities.org/id/metropolitan-district-council/walsall,WC89-415,28/02/2018,Resources and Transformation,BAART HARRIES NEWALL,02/02/2018,950.00,"40000-REPAIRS,ALTERATIONS & MAINTENANCE-PREM",REDUNDANT BUILDINGS,Premises,Revenue
Walsall Council,http://opendatacommunities.org/id/metropolitan-district-council/walsall,WC89-416,28/02/2018,Resources and Transformation,BAART HARRIES NEWALL,02/02/2018,"2,000.00",73025-PROFESSIONAL SERVICES-PRIV CONTRACTOR & OTHER AGENCIES,RECHARGEABLE - NON SCHOOLS MAINTENANCE,Third Party Payments,Revenue
Walsall Council,http://opendatacommunities.org/id/metropolitan-district-council/walsall,WC89-417,28/02/2018,Resources and Transformation,BAART HARRIES NEWALL,02/02/2018,"2,000.00",73025-PROFESSIONAL SERVICES-PRIV CONTRACTOR & OTHER AGENCIES,RECHARGEABLE - NON SCHOOLS MAINTENANCE,Third Party Payments,Revenue
Walsall Council,http://opendatacommunities.org/id/metropolitan-district-council/walsall,WC89-418,28/02/2018,Resources and Transformation,BAART HARRIES NEWALL,02/02/2018,"2,000.00",73025-PROFESSIONAL SERVICES-PRIV CONTRACTOR & OTHER AGENCIES,RECHARGEABLE - NON SCHOOLS MAINTENANCE,Third Party Payments,Revenue
Walsall Council,http://opendatacommunities.org/id/metropolitan-district-council/walsall,WC89-419,28/02/2018,Economy & Environment,BAART HARRIES NEWALL,01/02/2018,"2,842.50",01002-PROJECT FEES,CFR 632 WALSALL ARBORETUM RESTORATION PROGRAMME,Capital,Capital
Walsall Council,http://opendatacommunities.org/id/metropolitan-district-council/walsall,WC89-420,28/02/2018,Economy & Environment,BAART HARRIES NEWALL,16/02/2018,"3,600.00",63000-PROFESSIONAL FEES AND SERVICES,ASSET MANAGEMENT,Supplies & Services,Revenue
Walsall Council,http://opendatacommunities.org/id/metropolitan-district-council/walsall,WC89-421,28/02/2018,Childrens,BACK CARE SOLUTIONS LTD,21/02/2018,286.27,60008-MAINTENANCE-FURNITURE & EQUIPMENT,LOOKED AFTER CHILDRENS SOCIAL WORK TEAM,Supplies & Services,Revenue
Walsall Council,http://opendatacommunities.org/id/metropolitan-district-council/walsall,WC89-422,28/02/2018,Economy & Environment,BAKER HALL PARTNERSHIP,14/02/2018,"1,082.25",63000-PROFESSIONAL FEES AND SERVICES,BUILDING CONTROL REVENUE FUNDED,Supplies & Services,Revenue
Walsall Council,http://opendatacommunities.org/id/metropolitan-district-council/walsall,WC89-423,28/02/2018,Adult Social Care,REDACTED,05/02/2018,480.00,76422-DIRECT PAYMENTS TO SOCIAL SERVICES CLIENTS,MENTAL HEALTH PACKAGE/PLACEMENT COSTS,Transfer Payments,Revenue
Walsall Council,http://opendatacommunities.org/id/metropolitan-district-council/walsall,WC89-424,28/02/2018,Adult Social Care,REDACTED,05/02/2018,"3,258.96",76422-DIRECT PAYMENTS TO SOCIAL SERVICES CLIENTS,LD PACKAGE/PLACEMENT COSTS,Transfer Payments,Revenue
Walsall Council,http://opendatacommunities.org/id/metropolitan-district-council/walsall,WC89-425,28/02/2018,Adult Social Care,REDACTED,05/02/2018,"1,582.86",76422-DIRECT PAYMENTS TO SOCIAL SERVICES CLIENTS,OP PACKAGE/PLACEMENT COSTS,Transfer Payments,Revenue
Walsall Council,http://opendatacommunities.org/id/metropolitan-district-council/walsall,WC89-426,28/02/2018,Childrens,REDACTED,14/02/2018,9.24,60006-NEW-FURNITURE & EQUIPMENT,FAMILY & FRIENDS FOSTER CARE PROVISION,Supplies & Services,Revenue
Walsall Council,http://opendatacommunities.org/id/metropolitan-district-council/walsall,WC89-427,28/02/2018,Childrens,REDACTED,14/02/2018,345.24,74508-INTERNAL FOSTER CARERS-CARER FEES,FAMILY & FRIENDS FOSTER CARE PROVISION,Transfer Payments,Revenue
Walsall Council,http://opendatacommunities.org/id/metropolitan-district-council/walsall,WC89-428,28/02/2018,Childrens,REDACTED,14/02/2018,571.44,74501-MAINTENANCE ALLOWANCE-FOSTER CARERS,FAMILY & FRIENDS FOSTER CARE PROVISION,Transfer Payments,Revenue
Walsall Council,http://opendatacommunities.org/id/metropolitan-district-council/walsall,WC89-429,28/02/2018,Adult Social Care,REDACTED,05/02/2018,849.64,76422-DIRECT PAYMENTS TO SOCIAL SERVICES CLIENTS,OP PACKAGE/PLACEMENT COSTS,Transfer Payments,Revenue
Walsall Council,http://opendatacommunities.org/id/metropolitan-district-council/walsall,WC89-430,28/02/2018,Adult Social Care,REDACTED,05/02/2018,798.00,76422-DIRECT PAYMENTS TO SOCIAL SERVICES CLIENTS,OP PACKAGE/PLACEMENT COSTS,Transfer Payments,Revenue
Walsall Council,http://opendatacommunities.org/id/metropolitan-district-council/walsall,WC89-431,28/02/2018,Economy & Environment,BARCHAM TREES PLC,15/02/2018,295.00,60006-NEW-FURNITURE & EQUIPMENT,ARBORETUM,Supplies & Services,Revenue
Walsall Council,http://opendatacommunities.org/id/metropolitan-district-council/walsall,WC89-432,28/02/2018,Childrens,BARNARDOS SERVICES LTD,26/02/2018,"3,116.40",74037-INDEPENDENT FOSTER CARE-OTH AGENCY PROVISION,EXTERNAL FOSTER CARE PROVISION,Third Party Payments,Revenue
Walsall Council,http://opendatacommunities.org/id/metropolitan-district-council/walsall,WC89-433,28/02/2018,Childrens,BARNARDOS SERVICES LTD,16/02/2018,"4,884.00",63000-PROFESSIONAL FEES AND SERVICES,DIRECTLY COMMISSIONED NURSING SERVICES,Supplies & Services,Revenue
Walsall Council,http://opendatacommunities.org/id/metropolitan-district-council/walsall,WC89-434,28/02/2018,Childrens,BARNARDOS SERVICES LTD,05/02/2018,"5,390.65",63000-PROFESSIONAL FEES AND SERVICES,INDEPENDENT RESIDENTIAL HOMES,Supplies & Services,Revenue
Walsall Council,http://opendatacommunities.org/id/metropolitan-district-council/walsall,WC89-435,28/02/2018,Childrens,BARNARDOS SERVICES LTD,12/02/2018,"18,000.00",73025-PROFESSIONAL SERVICES-PRIV CONTRACTOR & OTHER AGENCIES,ADOPTION TEAM,Third Party Payments,Revenue
Walsall Council,http://opendatacommunities.org/id/metropolitan-district-council/walsall,WC89-436,28/02/2018,Resources and Transformation,BARNBOROUGH LTD,27/02/2018,209.63,60007-REPAIR OF EQUIPMENT-EQUIPMENT,CL ADMIN,Supplies & Services,Revenue
Walsall Council,http://opendatacommunities.org/id/metropolitan-district-council/walsall,WC89-437,28/02/2018,Childrens,BARR BEACON SCHOOL TRUST,12/02/2018,"2,700.00",77300-ISB-FORMULA ALLOCATION,BARR BEACON SCHOOL TRUST (ACADEMY),Transfer Payments,Revenue
Walsall Council,http://opendatacommunities.org/id/metropolitan-district-council/walsall,WC89-438,28/02/2018,Childrens,BARR BEACON SCHOOL TRUST,02/02/2018,"10,966.15",66502-TOP UP FUNDING -GRANTS TO SCHOOLS,BARR BEACON SCHOOL TRUST (ACADEMY),Third Party Payments,Revenue
Walsall Council,http://opendatacommunities.org/id/metropolitan-district-council/walsall,WC89-439,28/02/2018,Adult Social Care,BARTHOLAMEW LODGE CARE HOME,06/02/2018,"2,000.00",73373-RESIDENTIAL & NURSING CARE PLACEMENTS,OP PACKAGE/PLACEMENT COSTS,Third Party Payments,Revenue
Walsall Council,http://opendatacommunities.org/id/metropolitan-district-council/walsall,WC89-440,28/02/2018,Adult Social Care,BARTHOLAMEW LODGE CARE HOME,13/02/2018,"2,000.00",73373-RESIDENTIAL & NURSING CARE PLACEMENTS,OP PACKAGE/PLACEMENT COSTS,Third Party Payments,Revenue
Walsall Council,http://opendatacommunities.org/id/metropolitan-district-council/walsall,WC89-441,28/02/2018,Adult Social Care,BARTHOLAMEW LODGE CARE HOME,20/02/2018,"2,000.00",73373-RESIDENTIAL & NURSING CARE PLACEMENTS,OP PACKAGE/PLACEMENT COSTS,Third Party Payments,Revenue
Walsall Council,http://opendatacommunities.org/id/metropolitan-district-council/walsall,WC89-442,28/02/2018,Adult Social Care,BARTHOLAMEW LODGE CARE HOME,20/02/2018,"2,000.00",73373-RESIDENTIAL & NURSING CARE PLACEMENTS,OP PACKAGE/PLACEMENT COSTS,Third Party Payments,Revenue
Walsall Council,http://opendatacommunities.org/id/metropolitan-district-council/walsall,WC89-443,28/02/2018,Adult Social Care,BARTHOLAMEW LODGE CARE HOME,20/02/2018,"2,200.00",73373-RESIDENTIAL & NURSING CARE PLACEMENTS,OP PACKAGE/PLACEMENT COSTS,Third Party Payments,Revenue
Walsall Council,http://opendatacommunities.org/id/metropolitan-district-council/walsall,WC89-444,28/02/2018,Adult Social Care,REDACTED,05/02/2018,490.40,76422-DIRECT PAYMENTS TO SOCIAL SERVICES CLIENTS,OP PACKAGE/PLACEMENT COSTS,Transfer Payments,Revenue
Walsall Council,http://opendatacommunities.org/id/metropolitan-district-council/walsall,WC89-445,28/02/2018,Economy & Environment,BAT FABRICATIONS LTD,01/02/2018,"2,220.00",73002-SECURITY-PRIV CONTRACTOR FEES,DEPOT,Third Party Payments,Revenue
Walsall Council,http://opendatacommunities.org/id/metropolitan-district-council/walsall,WC89-446,28/02/2018,Economy & Environment,BAT FABRICATIONS LTD,01/02/2018,"2,415.00",60006-NEW-FURNITURE & EQUIPMENT,INFRASTRUCTURE MAINTENANCE,Supplies & Services,Revenue
Walsall Council,http://opendatacommunities.org/id/metropolitan-district-council/walsall,WC89-447,28/02/2018,Economy & Environment,BAT FABRICATIONS LTD,13/02/2018,"3,210.00","40000-REPAIRS,ALTERATIONS & MAINTENANCE-PREM",RETAINED HOUSING-HIGHWAYS,Premises,Revenue
Walsall Council,http://opendatacommunities.org/id/metropolitan-district-council/walsall,WC89-448,28/02/2018,Economy & Environment,BAT FABRICATIONS LTD,01/02/2018,"13,857.00",73002-SECURITY-PRIV CONTRACTOR FEES,DEPOT,Third Party Payments,Revenue
Walsall Council,http://opendatacommunities.org/id/metropolitan-district-council/walsall,WC89-449,28/02/2018,Economy & Environment,BEACON PHARMACY,02/02/2018,475.00,71007-CONTRIBUTION TO PCT,PUBLIC HEALTH BUSINESS SUPPORT,Third Party Payments,Revenue
Walsall Council,http://opendatacommunities.org/id/metropolitan-district-council/walsall,WC89-450,28/02/2018,Childrens,REDACTED,26/02/2018,9.24,60006-NEW-FURNITURE & EQUIPMENT,INTERNAL FOSTER CARE PROVISION,Supplies & Services,Revenue
Walsall Council,http://opendatacommunities.org/id/metropolitan-district-council/walsall,WC89-451,28/02/2018,Childrens,REDACTED,26/02/2018,530.96,74508-INTERNAL FOSTER CARERS-CARER FEES,INTERNAL FOSTER CARE PROVISION,Transfer Payments,Revenue
Walsall Council,http://opendatacommunities.org/id/metropolitan-district-council/walsall,WC89-452,28/02/2018,Childrens,REDACTED,26/02/2018,650.92,74501-MAINTENANCE ALLOWANCE-FOSTER CARERS,INTERNAL FOSTER CARE PROVISION,Transfer Payments,Revenue
Walsall Council,http://opendatacommunities.org/id/metropolitan-district-council/walsall,WC89-453,28/02/2018,Childrens,REDACTED,26/02/2018,990.02,74506-TRAVEL-FOSTER CARERS,INTERNAL FOSTER CARE PROVISION,Transfer Payments,Revenue
Walsall Council,http://opendatacommunities.org/id/metropolitan-district-council/walsall,WC89-454,28/02/2018,Adult Social Care,REDACTED,05/02/2018,556.88,76422-DIRECT PAYMENTS TO SOCIAL SERVICES CLIENTS,OP PACKAGE/PLACEMENT COSTS,Transfer Payments,Revenue
Walsall Council,http://opendatacommunities.org/id/metropolitan-district-council/walsall,WC89-455,28/02/2018,Adult Social Care,BELVIDERE COURT,13/02/2018,"2,000.00",73373-RESIDENTIAL & NURSING CARE PLACEMENTS,MENTAL HEALTH PACKAGE/PLACEMENT COSTS,Third Party Payments,Revenue
Walsall Council,http://opendatacommunities.org/id/metropolitan-district-council/walsall,WC89-456,28/02/2018,Adult Social Care,BELVIDERE COURT,13/02/2018,"2,200.00",73373-RESIDENTIAL & NURSING CARE PLACEMENTS,OP PACKAGE/PLACEMENT COSTS,Third Party Payments,Revenue
Walsall Council,http://opendatacommunities.org/id/metropolitan-district-council/walsall,WC89-457,28/02/2018,Adult Social Care,BELVIDERE COURT,13/02/2018,"2,200.00",73373-RESIDENTIAL & NURSING CARE PLACEMENTS,OP PACKAGE/PLACEMENT COSTS,Third Party Payments,Revenue
Walsall Council,http://opendatacommunities.org/id/metropolitan-district-council/walsall,WC89-458,28/02/2018,Adult Social Care,BELVIDERE COURT,13/02/2018,"3,400.00",73373-RESIDENTIAL & NURSING CARE PLACEMENTS,MENTAL HEALTH PACKAGE/PLACEMENT COSTS,Third Party Payments,Revenue
Walsall Council,http://opendatacommunities.org/id/metropolitan-district-council/walsall,WC89-459,28/02/2018,Adult Social Care,BELVIDERE COURT,13/02/2018,"8,215.17",73373-RESIDENTIAL & NURSING CARE PLACEMENTS,MENTAL HEALTH PACKAGE/PLACEMENT COSTS,Third Party Payments,Revenue
Walsall Council,http://opendatacommunities.org/id/metropolitan-district-council/walsall,WC89-460,28/02/2018,Childrens,BELVIDERE SCHOOL,12/02/2018,300.00,77300-ISB-FORMULA ALLOCATION,OUT OF BOROUGH SCHOOLS,Transfer Payments,Revenue
Walsall Council,http://opendatacommunities.org/id/metropolitan-district-council/walsall,WC89-461,28/02/2018,Adult Social Care,REDACTED,05/02/2018,"2,310.00",76422-DIRECT PAYMENTS TO SOCIAL SERVICES CLIENTS,LD PACKAGE/PLACEMENT COSTS,Transfer Payments,Revenue
Walsall Council,http://opendatacommunities.org/id/metropolitan-district-council/walsall,WC89-462,28/02/2018,Adult Social Care,BENTLEY COURT PRIORY,06/02/2018,864.29,73373-RESIDENTIAL & NURSING CARE PLACEMENTS,MENTAL HEALTH PACKAGE/PLACEMENT COSTS,Third Party Payments,Revenue
Walsall Council,http://opendatacommunities.org/id/metropolitan-district-council/walsall,WC89-463,28/02/2018,Adult Social Care,BENTLEY COURT PRIORY,06/02/2018,969.53,73373-RESIDENTIAL & NURSING CARE PLACEMENTS,OP PACKAGE/PLACEMENT COSTS,Third Party Payments,Revenue
Walsall Council,http://opendatacommunities.org/id/metropolitan-district-council/walsall,WC89-464,28/02/2018,Adult Social Care,BENTLEY COURT PRIORY,06/02/2018,"1,211.91",73373-RESIDENTIAL & NURSING CARE PLACEMENTS,OP PACKAGE/PLACEMENT COSTS,Third Party Payments,Revenue
Walsall Council,http://opendatacommunities.org/id/metropolitan-district-council/walsall,WC89-465,28/02/2018,Adult Social Care,BENTLEY COURT PRIORY,06/02/2018,"1,817.87",73373-RESIDENTIAL & NURSING CARE PLACEMENTS,OP PACKAGE/PLACEMENT COSTS,Third Party Payments,Revenue
Walsall Council,http://opendatacommunities.org/id/metropolitan-district-council/walsall,WC89-466,28/02/2018,Adult Social Care,BENTLEY COURT PRIORY,06/02/2018,"1,878.47",73373-RESIDENTIAL & NURSING CARE PLACEMENTS,OP PACKAGE/PLACEMENT COSTS,Third Party Payments,Revenue
Walsall Council,http://opendatacommunities.org/id/metropolitan-district-council/walsall,WC89-467,28/02/2018,Adult Social Care,BENTLEY COURT PRIORY,06/02/2018,"2,435.71",73373-RESIDENTIAL & NURSING CARE PLACEMENTS,MENTAL HEALTH PACKAGE/PLACEMENT COSTS,Third Party Payments,Revenue
Walsall Council,http://opendatacommunities.org/id/metropolitan-district-council/walsall,WC89-468,28/02/2018,Childrens,BERRY GIFFORD LTD,13/02/2018,"4,525.20",76010-ACCOMMODATION AND RELATED COSTS-ASSISTANCE TO S/S CLIENTS,TRANSITION AND LEAVING CARE PLACEMENTS,Transfer Payments,Revenue
Walsall Council,http://opendatacommunities.org/id/metropolitan-district-council/walsall,WC89-469,28/02/2018,Childrens,BERRY GIFFORD LTD,07/02/2018,"7,164.90",76010-ACCOMMODATION AND RELATED COSTS-ASSISTANCE TO S/S CLIENTS,TRANSITION AND LEAVING CARE PLACEMENTS,Transfer Payments,Revenue
Walsall Council,http://opendatacommunities.org/id/metropolitan-district-council/walsall,WC89-470,28/02/2018,Childrens,BERRY GIFFORD LTD,07/02/2018,"7,499.52",76010-ACCOMMODATION AND RELATED COSTS-ASSISTANCE TO S/S CLIENTS,TRANSITION AND LEAVING CARE PLACEMENTS,Transfer Payments,Revenue
Walsall Council,http://opendatacommunities.org/id/metropolitan-district-council/walsall,WC89-471,28/02/2018,Childrens,BERRY GIFFORD LTD,13/02/2018,"8,436.34",76010-ACCOMMODATION AND RELATED COSTS-ASSISTANCE TO S/S CLIENTS,TRANSITION AND LEAVING CARE PLACEMENTS,Transfer Payments,Revenue
Walsall Council,http://opendatacommunities.org/id/metropolitan-district-council/walsall,WC89-472,28/02/2018,Holding Accounts,BERRYMANS LACE MAWER LLP,15/02/2018,"1,162.10",67001-MISC INSURANCES - PAYMENT OF CLAIMS,PUBLIC LIABILITY,Supplies & Services,Revenue
Walsall Council,http://opendatacommunities.org/id/metropolitan-district-council/walsall,WC89-473,28/02/2018,Holding Accounts,BERRYMANS LACE MAWER LLP,19/02/2018,"4,830.00",67001-MISC INSURANCES - PAYMENT OF CLAIMS,PUBLIC LIABILITY,Supplies & Services,Revenue
Walsall Council,http://opendatacommunities.org/id/metropolitan-district-council/walsall,WC89-474,28/02/2018,Adult Social Care,REDACTED,05/02/2018,"1,007.84",76422-DIRECT PAYMENTS TO SOCIAL SERVICES CLIENTS,OP PACKAGE/PLACEMENT COSTS,Transfer Payments,Revenue
Walsall Council,http://opendatacommunities.org/id/metropolitan-district-council/walsall,WC89-475,28/02/2018,Adult Social Care,REDACTED,05/02/2018,"1,706.00",76422-DIRECT PAYMENTS TO SOCIAL SERVICES CLIENTS,OP PACKAGE/PLACEMENT COSTS,Transfer Payments,Revenue
Walsall Council,http://opendatacommunities.org/id/metropolitan-district-council/walsall,WC89-476,28/02/2018,Childrens,REDACTED,26/02/2018,9.24,60006-NEW-FURNITURE & EQUIPMENT,INTERNAL FOSTER CARE PROVISION,Supplies & Services,Revenue
Walsall Council,http://opendatacommunities.org/id/metropolitan-district-council/walsall,WC89-477,28/02/2018,Childrens,REDACTED,26/02/2018,175.00,74505-SCHOOL UNIFORM/INITIAL TRAINING ALLOWANCE-FOSTER CARERS,INTERNAL FOSTER CARE PROVISION,Transfer Payments,Revenue
Walsall Council,http://opendatacommunities.org/id/metropolitan-district-council/walsall,WC89-478,28/02/2018,Childrens,REDACTED,26/02/2018,175.00,74505-SCHOOL UNIFORM/INITIAL TRAINING ALLOWANCE-FOSTER CARERS,INTERNAL FOSTER CARE PROVISION,Transfer Payments,Revenue
Walsall Council,http://opendatacommunities.org/id/metropolitan-district-council/walsall,WC89-479,28/02/2018,Childrens,REDACTED,26/02/2018,224.49,74501-MAINTENANCE ALLOWANCE-FOSTER CARERS,INTERNAL FOSTER CARE PROVISION,Transfer Payments,Revenue
Walsall Council,http://opendatacommunities.org/id/metropolitan-district-council/walsall,WC89-480,28/02/2018,Childrens,REDACTED,26/02/2018,224.49,74501-MAINTENANCE ALLOWANCE-FOSTER CARERS,INTERNAL FOSTER CARE PROVISION,Transfer Payments,Revenue
Walsall Council,http://opendatacommunities.org/id/metropolitan-district-council/walsall,WC89-481,28/02/2018,Childrens,REDACTED,26/02/2018,"1,436.08",74508-INTERNAL FOSTER CARERS-CARER FEES,INTERNAL FOSTER CARE PROVISION,Transfer Payments,Revenue
Walsall Council,http://opendatacommunities.org/id/metropolitan-district-council/walsall,WC89-482,28/02/2018,Adult Social Care,REDACTED,05/02/2018,540.00,76422-DIRECT PAYMENTS TO SOCIAL SERVICES CLIENTS,OP PACKAGE/PLACEMENT COSTS,Transfer Payments,Revenue
Walsall Council,http://opendatacommunities.org/id/metropolitan-district-council/walsall,WC89-483,28/02/2018,Adult Social Care,REDACTED,05/02/2018,"4,236.26",76422-DIRECT PAYMENTS TO SOCIAL SERVICES CLIENTS,OP PACKAGE/PLACEMENT COSTS,Transfer Payments,Revenue
Walsall Council,http://opendatacommunities.org/id/metropolitan-district-council/walsall,WC89-484,28/02/2018,Adult Social Care,BESCOT LODGE RESIDENTIAL CARE HOME,13/02/2018,525.71,73373-RESIDENTIAL & NURSING CARE PLACEMENTS,OP PACKAGE/PLACEMENT COSTS,Third Party Payments,Revenue
Walsall Council,http://opendatacommunities.org/id/metropolitan-district-council/walsall,WC89-485,28/02/2018,Adult Social Care,BESCOT LODGE RESIDENTIAL CARE HOME,13/02/2018,"1,656.00",73373-RESIDENTIAL & NURSING CARE PLACEMENTS,OP PACKAGE/PLACEMENT COSTS,Third Party Payments,Revenue
Walsall Council,http://opendatacommunities.org/id/metropolitan-district-council/walsall,WC89-486,28/02/2018,Adult Social Care,BESCOT LODGE RESIDENTIAL CARE HOME,13/02/2018,"1,656.00",73373-RESIDENTIAL & NURSING CARE PLACEMENTS,OP PACKAGE/PLACEMENT COSTS,Third Party Payments,Revenue
Walsall Council,http://opendatacommunities.org/id/metropolitan-district-council/walsall,WC89-487,28/02/2018,Adult Social Care,BESCOT LODGE RESIDENTIAL CARE HOME,13/02/2018,"1,656.00",73373-RESIDENTIAL & NURSING CARE PLACEMENTS,LD PACKAGE/PLACEMENT COSTS,Third Party Payments,Revenue
Walsall Council,http://opendatacommunities.org/id/metropolitan-district-council/walsall,WC89-488,28/02/2018,Adult Social Care,BESCOT LODGE RESIDENTIAL CARE HOME,13/02/2018,"1,840.00",73373-RESIDENTIAL & NURSING CARE PLACEMENTS,OP PACKAGE/PLACEMENT COSTS,Third Party Payments,Revenue
Walsall Council,http://opendatacommunities.org/id/metropolitan-district-council/walsall,WC89-489,28/02/2018,Adult Social Care,BESCOT LODGE RESIDENTIAL CARE HOME,13/02/2018,"1,840.00",73373-RESIDENTIAL & NURSING CARE PLACEMENTS,OP PACKAGE/PLACEMENT COSTS,Third Party Payments,Revenue
Walsall Council,http://opendatacommunities.org/id/metropolitan-district-council/walsall,WC89-490,28/02/2018,Adult Social Care,BESCOT LODGE RESIDENTIAL CARE HOME,13/02/2018,"1,840.00",73373-RESIDENTIAL & NURSING CARE PLACEMENTS,OP PACKAGE/PLACEMENT COSTS,Third Party Payments,Revenue
Walsall Council,http://opendatacommunities.org/id/metropolitan-district-council/walsall,WC89-491,28/02/2018,Adult Social Care,BESCOT LODGE RESIDENTIAL CARE HOME,13/02/2018,"2,000.00",73373-RESIDENTIAL & NURSING CARE PLACEMENTS,OP PACKAGE/PLACEMENT COSTS,Third Party Payments,Revenue
Walsall Council,http://opendatacommunities.org/id/metropolitan-district-council/walsall,WC89-492,28/02/2018,Adult Social Care,BETHPHAGE.,20/02/2018,"-8,741.27",73374-SUPPORTED & OTHER ACCOMMODATION,LD PACKAGE/PLACEMENT COSTS,Third Party Payments,Revenue
Walsall Council,http://opendatacommunities.org/id/metropolitan-district-council/walsall,WC89-493,28/02/2018,Adult Social Care,BETHPHAGE.,01/02/2018,"-1,098.43",73374-SUPPORTED & OTHER ACCOMMODATION,LD PACKAGE/PLACEMENT COSTS,Third Party Payments,Revenue
Walsall Council,http://opendatacommunities.org/id/metropolitan-district-council/walsall,WC89-494,28/02/2018,Adult Social Care,BETHPHAGE.,01/02/2018,"-1,011.96",73374-SUPPORTED & OTHER ACCOMMODATION,LD PACKAGE/PLACEMENT COSTS,Third Party Payments,Revenue
Walsall Council,http://opendatacommunities.org/id/metropolitan-district-council/walsall,WC89-495,28/02/2018,Adult Social Care,BETHPHAGE.,01/02/2018,-770.86,73374-SUPPORTED & OTHER ACCOMMODATION,LD PACKAGE/PLACEMENT COSTS,Third Party Payments,Revenue
Walsall Council,http://opendatacommunities.org/id/metropolitan-district-council/walsall,WC89-496,28/02/2018,Adult Social Care,BETHPHAGE.,23/02/2018,712.52,73372-DOMICILIARY CARE,LD PACKAGE/PLACEMENT COSTS,Third Party Payments,Revenue
Walsall Council,http://opendatacommunities.org/id/metropolitan-district-council/walsall,WC89-497,28/02/2018,Adult Social Care,BETHPHAGE.,23/02/2018,"1,026.00",73372-DOMICILIARY CARE,LD PACKAGE/PLACEMENT COSTS,Third Party Payments,Revenue
Walsall Council,http://opendatacommunities.org/id/metropolitan-district-council/walsall,WC89-498,28/02/2018,Adult Social Care,BETHPHAGE.,23/02/2018,"1,339.52",73372-DOMICILIARY CARE,LD PACKAGE/PLACEMENT COSTS,Third Party Payments,Revenue
Walsall Council,http://opendatacommunities.org/id/metropolitan-district-council/walsall,WC89-499,28/02/2018,Adult Social Care,BETHPHAGE.,23/02/2018,"1,453.52",73374-SUPPORTED & OTHER ACCOMMODATION,LD PACKAGE/PLACEMENT COSTS,Third Party Payments,Revenue
Walsall Council,http://opendatacommunities.org/id/metropolitan-district-council/walsall,WC89-500,28/02/2018,Adult Social Care,BETHPHAGE.,23/02/2018,"2,693.24",73372-DOMICILIARY CARE,LD PACKAGE/PLACEMENT COSTS,Third Party Payments,Revenue
Walsall Council,http://opendatacommunities.org/id/metropolitan-district-council/walsall,WC89-501,28/02/2018,Adult Social Care,BETHPHAGE.,26/02/2018,"5,744.04",73372-DOMICILIARY CARE,LD PACKAGE/PLACEMENT COSTS,Third Party Payments,Revenue
Walsall Council,http://opendatacommunities.org/id/metropolitan-district-council/walsall,WC89-502,28/02/2018,Adult Social Care,REDACTED,05/02/2018,949.52,76422-DIRECT PAYMENTS TO SOCIAL SERVICES CLIENTS,MENTAL HEALTH PACKAGE/PLACEMENT COSTS,Transfer Payments,Revenue
Walsall Council,http://opendatacommunities.org/id/metropolitan-district-council/walsall,WC89-503,28/02/2018,Adult Social Care,REDACTED,05/02/2018,"2,767.84",76422-DIRECT PAYMENTS TO SOCIAL SERVICES CLIENTS,OP PACKAGE/PLACEMENT COSTS,Transfer Payments,Revenue
Walsall Council,http://opendatacommunities.org/id/metropolitan-district-council/walsall,WC89-504,28/02/2018,Resources and Transformation,BFA SAFETY TRAINING,02/02/2018,495.00,30030-EXTERNAL TRAINING,HEALTH & SAFETY,Employees,Revenue
Walsall Council,http://opendatacommunities.org/id/metropolitan-district-council/walsall,WC89-505,28/02/2018,Economy & Environment,BGPW ALLOTMENT ASSOCIATION,01/02/2018,750.00,66500-GRANTS TO OTHER ORGS,CENTRAL SERVICES ALLOTMENTS,Third Party Payments,Revenue
Walsall Council,http://opendatacommunities.org/id/metropolitan-district-council/walsall,WC89-506,28/02/2018,Economy & Environment,BID CENTRE FOR DEAF PEOPLE,01/02/2018,-285.30,"62521-INTERPRETATION,TRANSLATION & HUMAN AIDS TO TRANSCRIPTION",ESF COMMUNITY GRANTS,Supplies & Services,Revenue
Walsall Council,http://opendatacommunities.org/id/metropolitan-district-council/walsall,WC89-507,28/02/2018,Economy & Environment,BIFFA WASTE SERVICES LTD,01/02/2018,312.15,73006-LANDFILL SITES PEEL ADV QTR PYTS-PRIV CONTRACTOR FEES,STRATEGY MANAGEMENT,Third Party Payments,Revenue
Walsall Council,http://opendatacommunities.org/id/metropolitan-district-council/walsall,WC89-508,28/02/2018,Economy & Environment,BIFFA WASTE SERVICES LTD,19/02/2018,"3,239.99",73006-LANDFILL SITES PEEL ADV QTR PYTS-PRIV CONTRACTOR FEES,STRATEGY MANAGEMENT,Third Party Payments,Revenue
Walsall Council,http://opendatacommunities.org/id/metropolitan-district-council/walsall,WC89-509,28/02/2018,Economy & Environment,BIFFA WASTE SERVICES LTD,01/02/2018,"6,366.24",73006-LANDFILL SITES PEEL ADV QTR PYTS-PRIV CONTRACTOR FEES,STRATEGY MANAGEMENT,Third Party Payments,Revenue
Walsall Council,http://opendatacommunities.org/id/metropolitan-district-council/walsall,WC89-510,28/02/2018,Childrens,REDACTED,05/02/2018,572.00,76422-DIRECT PAYMENTS TO SOCIAL SERVICES CLIENTS,FAMILY SUPPORT - DIRECT PAYMENTS,Transfer Payments,Revenue
Walsall Council,http://opendatacommunities.org/id/metropolitan-district-council/walsall,WC89-511,28/02/2018,Economy & Environment,BIOGAS TECHNOLOGY LIMITED,14/02/2018,280.17,60008-MAINTENANCE-FURNITURE & EQUIPMENT,POLLUTION DIVISION,Supplies & Services,Revenue
Walsall Council,http://opendatacommunities.org/id/metropolitan-district-council/walsall,WC89-512,28/02/2018,Childrens,BIRCHILLS C OF E COMMUNITY ACADEMY,01/02/2018,"1,001.70",66505-OTHER-GRANTS TO OTHER ORGS,EARLY YEARS - 3 YR OLDS,Third Party Payments,Revenue
Walsall Council,http://opendatacommunities.org/id/metropolitan-district-council/walsall,WC89-513,28/02/2018,Resources and Transformation,BIRCHILLS C OF E COMMUNITY ACADEMY,23/02/2018,"1,350.00",66502-TOP UP FUNDING -GRANTS TO SCHOOLS,SYRIAN REFUGEE PROJECT,Third Party Payments,Revenue
Walsall Council,http://opendatacommunities.org/id/metropolitan-district-council/walsall,WC89-514,28/02/2018,Childrens,BIRCHILLS C OF E COMMUNITY ACADEMY,12/02/2018,"2,100.00",77300-ISB-FORMULA ALLOCATION,BIRCHILLS CE COMMUNITY ACADEMY,Transfer Payments,Revenue
Walsall Council,http://opendatacommunities.org/id/metropolitan-district-council/walsall,WC89-515,28/02/2018,Childrens,BIRCHILLS C OF E COMMUNITY ACADEMY,20/02/2018,"11,838.47",66502-TOP UP FUNDING -GRANTS TO SCHOOLS,BIRCHILLS CE COMMUNITY ACADEMY,Third Party Payments,Revenue
Walsall Council,http://opendatacommunities.org/id/metropolitan-district-council/walsall,WC89-516,28/02/2018,Childrens,BIRMINGHAM CHILDRENS HOSPITAL,08/02/2018,378.00,73014-LEGAL FEES-PRIV CONTRACTOR FEES,GENERAL MANAGEMENT SUPPORT (INC LEGAL),Third Party Payments,Revenue
Walsall Council,http://opendatacommunities.org/id/metropolitan-district-council/walsall,WC89-517,28/02/2018,Adult Social Care,BIRMINGHAM CITY COUNCIL,01/02/2018,670.00,73372-DOMICILIARY CARE,LD PACKAGE/PLACEMENT COSTS,Third Party Payments,Revenue
Walsall Council,http://opendatacommunities.org/id/metropolitan-district-council/walsall,WC89-518,28/02/2018,Childrens,BIRMINGHAM CITY COUNCIL,15/02/2018,"1,054.43",66502-TOP UP FUNDING -GRANTS TO SCHOOLS,MAINTAINED PROVIDERS,Third Party Payments,Revenue
Walsall Council,http://opendatacommunities.org/id/metropolitan-district-council/walsall,WC89-519,28/02/2018,Childrens,BIRMINGHAM CITY COUNCIL,07/02/2018,"1,346.32",52000-WITH DRIVER-HIRE OF VEHICLES,HOME TO SCHOOL TRANSPORT,Transport,Revenue
Walsall Council,http://opendatacommunities.org/id/metropolitan-district-council/walsall,WC89-520,28/02/2018,Childrens,BIRMINGHAM CITY COUNCIL,07/02/2018,"1,861.50",52000-WITH DRIVER-HIRE OF VEHICLES,HOME TO SCHOOL TRANSPORT,Transport,Revenue
Walsall Council,http://opendatacommunities.org/id/metropolitan-district-council/walsall,WC89-521,28/02/2018,Childrens,BIRMINGHAM CITY COUNCIL,26/02/2018,"1,956.16",74037-INDEPENDENT FOSTER CARE-OTH AGENCY PROVISION,EXTERNAL FOSTER CARE PROVISION,Third Party Payments,Revenue
Walsall Council,http://opendatacommunities.org/id/metropolitan-district-council/walsall,WC89-522,28/02/2018,Economy & Environment,BIRMINGHAM CITY COUNCIL,19/02/2018,"5,067.58",71000-PAYMENTS FOR SERVICES FROM OTHER LOCAL AUTHORITIES,PLANNING POLICY,Third Party Payments,Revenue
Walsall Council,http://opendatacommunities.org/id/metropolitan-district-council/walsall,WC89-523,28/02/2018,Economy & Environment,BIRMINGHAM CITY COUNCIL,19/02/2018,"10,135.17",71000-PAYMENTS FOR SERVICES FROM OTHER LOCAL AUTHORITIES,ROAD SAFETY & SUSTAINABLE TRAVEL,Third Party Payments,Revenue
Walsall Council,http://opendatacommunities.org/id/metropolitan-district-council/walsall,WC89-524,28/02/2018,Resources and Transformation,BIRMINGHAM CITY UNIVERSITY,20/02/2018,540.00,30030-EXTERNAL TRAINING,FINANCE,Employees,Revenue
Walsall Council,http://opendatacommunities.org/id/metropolitan-district-council/walsall,WC89-525,28/02/2018,Economy & Environment,BIRMINGHAM WOMENS AND CHILDRENS NHS FOUNDATION TRUST,02/02/2018,970.00,74000-OTHER AGENCY FEES,CORONERS SERVICE,Third Party Payments,Revenue
Walsall Council,http://opendatacommunities.org/id/metropolitan-district-council/walsall,WC89-526,28/02/2018,Economy & Environment,BLACK COUNTRY CONSORTIUM LIMITED,01/02/2018,"16,540.00",66500-GRANTS TO OTHER ORGS,GROWTH DEAL REVENUE,Third Party Payments,Revenue
Walsall Council,http://opendatacommunities.org/id/metropolitan-district-council/walsall,WC89-527,28/02/2018,Childrens,BLAKENALL HEATH JMI SCHOOL,12/02/2018,300.00,77300-ISB-FORMULA ALLOCATION,BLAKENALL HEATH JUNIOR SCHOOL,Transfer Payments,Revenue
Walsall Council,http://opendatacommunities.org/id/metropolitan-district-council/walsall,WC89-528,28/02/2018,Childrens,BLAKENALL HEATH JMI SCHOOL,20/02/2018,641.54,66502-TOP UP FUNDING -GRANTS TO SCHOOLS,BLAKENALL HEATH JUNIOR SCHOOL,Third Party Payments,Revenue
Walsall Council,http://opendatacommunities.org/id/metropolitan-district-council/walsall,WC89-529,28/02/2018,Childrens,BLAKENALL HEATH JMI SCHOOL,20/02/2018,"2,566.15",66502-TOP UP FUNDING -GRANTS TO SCHOOLS,BLAKENALL HEATH JUNIOR SCHOOL,Third Party Payments,Revenue
Walsall Council,http://opendatacommunities.org/id/metropolitan-district-council/walsall,WC89-530,28/02/2018,Adult Social Care,REDACTED,05/02/2018,"1,521.60",76422-DIRECT PAYMENTS TO SOCIAL SERVICES CLIENTS,OP PACKAGE/PLACEMENT COSTS,Transfer Payments,Revenue
Walsall Council,http://opendatacommunities.org/id/metropolitan-district-council/walsall,WC89-531,28/02/2018,Childrens,BLOXWICH ACADEMY,12/02/2018,600.00,77300-ISB-FORMULA ALLOCATION,BLOXWICH ACADEMY,Transfer Payments,Revenue
Walsall Council,http://opendatacommunities.org/id/metropolitan-district-council/walsall,WC89-532,28/02/2018,Childrens,BLOXWICH ACADEMY,20/02/2018,"1,283.08",66502-TOP UP FUNDING -GRANTS TO SCHOOLS,BLOXWICH ACADEMY,Third Party Payments,Revenue
Walsall Council,http://opendatacommunities.org/id/metropolitan-district-council/walsall,WC89-533,28/02/2018,Childrens,BLOXWICH ACADEMY,12/02/2018,"1,500.00",77300-ISB-FORMULA ALLOCATION,BLOXWICH ACADEMY,Transfer Payments,Revenue
Walsall Council,http://opendatacommunities.org/id/metropolitan-district-council/walsall,WC89-534,28/02/2018,Childrens,BLOXWICH ACADEMY,02/02/2018,"3,319.99",66502-TOP UP FUNDING -GRANTS TO SCHOOLS,BLOXWICH ACADEMY,Third Party Payments,Revenue
Walsall Council,http://opendatacommunities.org/id/metropolitan-district-council/walsall,WC89-535,28/02/2018,Childrens,BLOXWICH ACADEMY,02/02/2018,"4,758.47",66502-TOP UP FUNDING -GRANTS TO SCHOOLS,BLOXWICH ACADEMY,Third Party Payments,Revenue
Walsall Council,http://opendatacommunities.org/id/metropolitan-district-council/walsall,WC89-536,28/02/2018,Childrens,BLOXWICH ACADEMY,20/02/2018,"6,780.00",66502-TOP UP FUNDING -GRANTS TO SCHOOLS,BLOXWICH ACADEMY,Third Party Payments,Revenue
Walsall Council,http://opendatacommunities.org/id/metropolitan-district-council/walsall,WC89-537,28/02/2018,Resources and Transformation,BLOXWICH COMMUNITY PARTNERSHIP.,01/02/2018,"1,250.00",66500-GRANTS TO OTHER ORGS,BLOXWICH COMMUNITY PARTNERSHIP (BLAKENHALL),Third Party Payments,Revenue
Walsall Council,http://opendatacommunities.org/id/metropolitan-district-council/walsall,WC89-538,28/02/2018,Childrens,BLOXWICH COMMUNITY PARTNERSHIP.,12/02/2018,"7,146.66",60500-GENERAL MATERIALS,PUPIL REFERAL UNIT EXCLUSIONS,Supplies & Services,Revenue
Walsall Council,http://opendatacommunities.org/id/metropolitan-district-council/walsall,WC89-539,28/02/2018,Childrens,BLOXWICH COMMUNITY PARTNERSHIP.,12/02/2018,"8,008.76",60500-GENERAL MATERIALS,PUPIL REFERAL UNIT EXCLUSIONS,Supplies & Services,Revenue
Walsall Council,http://opendatacommunities.org/id/metropolitan-district-council/walsall,WC89-540,28/02/2018,Childrens,BLOXWICH COMMUNITY PARTNERSHIP.,12/02/2018,"9,320.06",60500-GENERAL MATERIALS,PUPIL REFERAL UNIT EXCLUSIONS,Supplies & Services,Revenue
Walsall Council,http://opendatacommunities.org/id/metropolitan-district-council/walsall,WC89-541,28/02/2018,Childrens,BLUE COAT CHURCH OF ENGLAND ACADEMY,12/02/2018,"1,200.00",77300-ISB-FORMULA ALLOCATION,BLUE COAT CofE ACADEMY,Transfer Payments,Revenue
Walsall Council,http://opendatacommunities.org/id/metropolitan-district-council/walsall,WC89-542,28/02/2018,Childrens,BLUE COAT CHURCH OF ENGLAND ACADEMY,02/02/2018,"2,014.61",66502-TOP UP FUNDING -GRANTS TO SCHOOLS,BLUE COAT CofE ACADEMY,Third Party Payments,Revenue
Walsall Council,http://opendatacommunities.org/id/metropolitan-district-council/walsall,WC89-543,28/02/2018,Childrens,BLUE COAT CHURCH OF ENGLAND ACADEMY,02/02/2018,"7,486.18",66502-TOP UP FUNDING -GRANTS TO SCHOOLS,BLUE COAT CofE ACADEMY,Third Party Payments,Revenue
Walsall Council,http://opendatacommunities.org/id/metropolitan-district-council/walsall,WC89-544,28/02/2018,Childrens,BLUE GIRAFFE CHILDCARE,02/02/2018,"1,179.00",66505-OTHER-GRANTS TO OTHER ORGS,EARLY YEARS - 2 YR OLDS,Third Party Payments,Revenue
Walsall Council,http://opendatacommunities.org/id/metropolitan-district-council/walsall,WC89-545,28/02/2018,Economy & Environment,BME UNITED LTD,23/02/2018,"5,254.00",63253-PAYMENT TO CONTRACTOR,SMOKING CESSATION,Third Party Payments,Revenue
Walsall Council,http://opendatacommunities.org/id/metropolitan-district-council/walsall,WC89-546,28/02/2018,Economy & Environment,BME UNITED LTD,09/02/2018,"5,400.00",63253-PAYMENT TO CONTRACTOR,SMOKING CESSATION,Third Party Payments,Revenue
Walsall Council,http://opendatacommunities.org/id/metropolitan-district-council/walsall,WC89-547,28/02/2018,Resources and Transformation,BMG RESEARCH,14/02/2018,"7,950.00",63248-SURVEYS & PROF SERVICES-PAYMENT TO CONTRACTOR,TRANSFORMATION,Supplies & Services,Revenue
Walsall Council,http://opendatacommunities.org/id/metropolitan-district-council/walsall,WC89-548,28/02/2018,Childrens,BODRIGGY ACADEMY,12/02/2018,600.00,77300-ISB-FORMULA ALLOCATION,OUT OF BOROUGH SCHOOLS,Transfer Payments,Revenue
Walsall Council,http://opendatacommunities.org/id/metropolitan-district-council/walsall,WC89-549,28/02/2018,Childrens,BOOKTRUST,07/02/2018,"9,042.54",63000-PROFESSIONAL FEES AND SERVICES,VIRTUAL SCHOOL CENTRAL PUPIL PREMIUM,Supplies & Services,Revenue
Walsall Council,http://opendatacommunities.org/id/metropolitan-district-council/walsall,WC89-550,28/02/2018,Resources and Transformation,BORSHCH LTD,23/02/2018,229.16,60000-FURNITURE & EQUIPMENT,WALSALL CRISIS SUPPORT SCHEME,Supplies & Services,Revenue
Walsall Council,http://opendatacommunities.org/id/metropolitan-district-council/walsall,WC89-551,28/02/2018,Resources and Transformation,BORSHCH LTD,26/02/2018,237.49,60000-FURNITURE & EQUIPMENT,WALSALL CRISIS SUPPORT SCHEME,Supplies & Services,Revenue
Walsall Council,http://opendatacommunities.org/id/metropolitan-district-council/walsall,WC89-552,28/02/2018,Resources and Transformation,BORSHCH LTD,26/02/2018,287.50,60000-FURNITURE & EQUIPMENT,WALSALL CRISIS SUPPORT SCHEME,Supplies & Services,Revenue
Walsall Council,http://opendatacommunities.org/id/metropolitan-district-council/walsall,WC89-553,28/02/2018,Resources and Transformation,BORSHCH LTD,26/02/2018,291.66,60000-FURNITURE & EQUIPMENT,WALSALL CRISIS SUPPORT SCHEME,Supplies & Services,Revenue
Walsall Council,http://opendatacommunities.org/id/metropolitan-district-council/walsall,WC89-554,28/02/2018,Resources and Transformation,BORSHCH LTD,26/02/2018,295.83,60000-FURNITURE & EQUIPMENT,WALSALL CRISIS SUPPORT SCHEME,Supplies & Services,Revenue
Walsall Council,http://opendatacommunities.org/id/metropolitan-district-council/walsall,WC89-555,28/02/2018,Resources and Transformation,BORSHCH LTD,20/02/2018,433.33,60000-FURNITURE & EQUIPMENT,WALSALL CRISIS SUPPORT SCHEME,Supplies & Services,Revenue
Walsall Council,http://opendatacommunities.org/id/metropolitan-district-council/walsall,WC89-556,28/02/2018,Resources and Transformation,BORSHCH LTD,20/02/2018,433.33,60000-FURNITURE & EQUIPMENT,WALSALL CRISIS SUPPORT SCHEME,Supplies & Services,Revenue
Walsall Council,http://opendatacommunities.org/id/metropolitan-district-council/walsall,WC89-557,28/02/2018,Resources and Transformation,BORSHCH LTD,26/02/2018,433.33,60000-FURNITURE & EQUIPMENT,WALSALL CRISIS SUPPORT SCHEME,Supplies & Services,Revenue
Walsall Council,http://opendatacommunities.org/id/metropolitan-district-council/walsall,WC89-558,28/02/2018,Resources and Transformation,BORSHCH LTD,26/02/2018,433.33,60000-FURNITURE & EQUIPMENT,WALSALL CRISIS SUPPORT SCHEME,Supplies & Services,Revenue
Walsall Council,http://opendatacommunities.org/id/metropolitan-district-council/walsall,WC89-559,28/02/2018,Resources and Transformation,BORSHCH LTD,26/02/2018,433.33,60000-FURNITURE & EQUIPMENT,WALSALL CRISIS SUPPORT SCHEME,Supplies & Services,Revenue
Walsall Council,http://opendatacommunities.org/id/metropolitan-district-council/walsall,WC89-560,28/02/2018,Resources and Transformation,BORSHCH LTD,26/02/2018,433.33,60000-FURNITURE & EQUIPMENT,WALSALL CRISIS SUPPORT SCHEME,Supplies & Services,Revenue
Walsall Council,http://opendatacommunities.org/id/metropolitan-district-council/walsall,WC89-561,28/02/2018,Economy & Environment,BOS BUSINESS OFFICE SOLUTIONS CIC,15/02/2018,"4,999.92",63128-HIRE OF ROOM-SERVICES-FEES,ESF COMMUNITY GRANTS,Supplies & Services,Revenue
Walsall Council,http://opendatacommunities.org/id/metropolitan-district-council/walsall,WC89-562,28/02/2018,Adult Social Care,BOWDEN DERRA PARK,13/02/2018,"10,835.24",73373-RESIDENTIAL & NURSING CARE PLACEMENTS,LD PACKAGE/PLACEMENT COSTS,Third Party Payments,Revenue
Walsall Council,http://opendatacommunities.org/id/metropolitan-district-council/walsall,WC89-563,28/02/2018,Economy & Environment,BRADVALE LTD T/A INSPIRE HEALTHCARE SERVICES,07/02/2018,288.88,60008-MAINTENANCE-FURNITURE & EQUIPMENT,WALSALL GALA CENTRE,Supplies & Services,Revenue
Walsall Council,http://opendatacommunities.org/id/metropolitan-district-council/walsall,WC89-564,28/02/2018,Economy & Environment,BRADVALE LTD T/A INSPIRE HEALTHCARE SERVICES,08/02/2018,439.44,60500-GENERAL MATERIALS,DEPOT,Supplies & Services,Revenue
Walsall Council,http://opendatacommunities.org/id/metropolitan-district-council/walsall,WC89-565,28/02/2018,Economy & Environment,BRADVALE LTD T/A INSPIRE HEALTHCARE SERVICES,23/02/2018,"1,827.95",60500-GENERAL MATERIALS,DEPOT,Supplies & Services,Revenue
Walsall Council,http://opendatacommunities.org/id/metropolitan-district-council/walsall,WC89-566,28/02/2018,Adult Social Care,BRAMBLES RESIDENTIAL CARE HOME,13/02/2018,"1,928.00",73373-RESIDENTIAL & NURSING CARE PLACEMENTS,MENTAL HEALTH PACKAGE/PLACEMENT COSTS,Third Party Payments,Revenue
Walsall Council,http://opendatacommunities.org/id/metropolitan-district-council/walsall,WC89-567,28/02/2018,Childrens,BRELMAYNE LTD,01/02/2018,794.00,01006-SITE WORKS MAIN CONTRACTORS,CFR 1193 JANE LANE SPECIAL - FLAT ROOFING PHASE 1 OF 3,Capital,Capital
Walsall Council,http://opendatacommunities.org/id/metropolitan-district-council/walsall,WC89-568,28/02/2018,Resources and Transformation,BRELMAYNE LTD,01/02/2018,"2,295.50",66500-GRANTS TO OTHER ORGS,COLLINGWOOD CENTRE,Third Party Payments,Revenue
Walsall Council,http://opendatacommunities.org/id/metropolitan-district-council/walsall,WC89-569,28/02/2018,Adult Social Care,REDACTED,05/02/2018,440.00,76422-DIRECT PAYMENTS TO SOCIAL SERVICES CLIENTS,LD PACKAGE/PLACEMENT COSTS,Transfer Payments,Revenue
Walsall Council,http://opendatacommunities.org/id/metropolitan-district-council/walsall,WC89-570,28/02/2018,Childrens,REDACTED,26/02/2018,9.24,60006-NEW-FURNITURE & EQUIPMENT,INTERNAL FOSTER CARE PROVISION,Supplies & Services,Revenue
Walsall Council,http://opendatacommunities.org/id/metropolitan-district-council/walsall,WC89-571,28/02/2018,Childrens,REDACTED,26/02/2018,810.32,74501-MAINTENANCE ALLOWANCE-FOSTER CARERS,INTERNAL FOSTER CARE PROVISION,Transfer Payments,Revenue
Walsall Council,http://opendatacommunities.org/id/metropolitan-district-council/walsall,WC89-572,28/02/2018,Childrens,REDACTED,26/02/2018,810.32,74501-MAINTENANCE ALLOWANCE-FOSTER CARERS,INTERNAL FOSTER CARE PROVISION,Transfer Payments,Revenue
Walsall Council,http://opendatacommunities.org/id/metropolitan-district-council/walsall,WC89-573,28/02/2018,Childrens,REDACTED,26/02/2018,"1,436.08",74508-INTERNAL FOSTER CARERS-CARER FEES,INTERNAL FOSTER CARE PROVISION,Transfer Payments,Revenue
Walsall Council,http://opendatacommunities.org/id/metropolitan-district-council/walsall,WC89-574,28/02/2018,Economy & Environment,BRENNTAG UK LIMITED,13/02/2018,399.39,60500-GENERAL MATERIALS,BLOXWICH LEISURE CENTRE,Supplies & Services,Revenue
Walsall Council,http://opendatacommunities.org/id/metropolitan-district-council/walsall,WC89-575,28/02/2018,Economy & Environment,BRENNTAG UK LIMITED,07/02/2018,553.58,60503-CHEMICALS & SCIENTIFIC MATS-MATERIALS,OAK PARK,Supplies & Services,Revenue
Walsall Council,http://opendatacommunities.org/id/metropolitan-district-council/walsall,WC89-576,28/02/2018,Adult Social Care,REDACTED,08/02/2018,"1,337.64",73372-DOMICILIARY CARE,LD PACKAGE/PLACEMENT COSTS,Third Party Payments,Revenue
Walsall Council,http://opendatacommunities.org/id/metropolitan-district-council/walsall,WC89-577,28/02/2018,Adult Social Care,REDACTED,08/02/2018,"1,597.60",73372-DOMICILIARY CARE,LD PACKAGE/PLACEMENT COSTS,Third Party Payments,Revenue
Walsall Council,http://opendatacommunities.org/id/metropolitan-district-council/walsall,WC89-578,28/02/2018,Adult Social Care,REDACTED,05/02/2018,"1,726.40",76422-DIRECT PAYMENTS TO SOCIAL SERVICES CLIENTS,OP PACKAGE/PLACEMENT COSTS,Transfer Payments,Revenue
Walsall Council,http://opendatacommunities.org/id/metropolitan-district-council/walsall,WC89-579,28/02/2018,Adult Social Care,REDACTED,05/02/2018,738.00,76422-DIRECT PAYMENTS TO SOCIAL SERVICES CLIENTS,OP PACKAGE/PLACEMENT COSTS,Transfer Payments,Revenue
Walsall Council,http://opendatacommunities.org/id/metropolitan-district-council/walsall,WC89-580,28/02/2018,Adult Social Care,BRIDGEWOOD HEALTH CARE LTD,27/02/2018,"5,688.24",73373-RESIDENTIAL & NURSING CARE PLACEMENTS,PD PACKAGE/PLACEMENT COSTS,Third Party Payments,Revenue
Walsall Council,http://opendatacommunities.org/id/metropolitan-district-council/walsall,WC89-581,28/02/2018,Childrens,BRIGHT HORIZONS (WISHING WILLOW),16/02/2018,957.62,63120-CRECHE FACILITIES-SERVICES-FEES,FAMILY PLACEMENTS,Supplies & Services,Revenue
Walsall Council,http://opendatacommunities.org/id/metropolitan-district-council/walsall,WC89-582,28/02/2018,Resources and Transformation,BRISTOW & SUTOR,20/02/2018,229.65,73014-LEGAL FEES-PRIV CONTRACTOR FEES,REVENUES,Third Party Payments,Revenue
Walsall Council,http://opendatacommunities.org/id/metropolitan-district-council/walsall,WC89-583,28/02/2018,Resources and Transformation,BRISTOW & SUTOR,20/02/2018,319.07,73014-LEGAL FEES-PRIV CONTRACTOR FEES,REVENUES,Third Party Payments,Revenue
Walsall Council,http://opendatacommunities.org/id/metropolitan-district-council/walsall,WC89-584,28/02/2018,Resources and Transformation,BRISTOW & SUTOR,20/02/2018,710.12,73014-LEGAL FEES-PRIV CONTRACTOR FEES,REVENUES,Third Party Payments,Revenue
Walsall Council,http://opendatacommunities.org/id/metropolitan-district-council/walsall,WC89-585,28/02/2018,Resources and Transformation,BRITISH GAS BUSINESS,28/02/2018,409.21,42000-GAS-ENERGY COSTS,REDUNDANT BUILDINGS,Premises,Revenue
Walsall Council,http://opendatacommunities.org/id/metropolitan-district-council/walsall,WC89-586,28/02/2018,Childrens,BRITISH MUSLIM YOUTH GROUP,22/02/2018,"10,177.11",66500-GRANTS TO OTHER ORGS,TARGETED YOUTH WORK - COMMISSIONED,Third Party Payments,Revenue
Walsall Council,http://opendatacommunities.org/id/metropolitan-district-council/walsall,WC89-587,28/02/2018,Economy & Environment,BRITISH PARKING ASSOCIATON,26/02/2018,654.00,63000-PROFESSIONAL FEES AND SERVICES,PARKING SERVICES OFF-STREET,Supplies & Services,Revenue
Walsall Council,http://opendatacommunities.org/id/metropolitan-district-council/walsall,WC89-588,28/02/2018,Childrens,BROADLAND GROUP LTD,01/02/2018,495.00,01006-SITE WORKS MAIN CONTRACTORS,CFR 1193 KINGSHILL PRIMARY - PITCHED ROOFING PHASE 1 OF 4,Capital,Capital
Walsall Council,http://opendatacommunities.org/id/metropolitan-district-council/walsall,WC89-589,28/02/2018,Adult Social Care,BROADWAY HALLS CARE HOME,13/02/2018,"2,037.14",73373-RESIDENTIAL & NURSING CARE PLACEMENTS,OP PACKAGE/PLACEMENT COSTS,Third Party Payments,Revenue
Walsall Council,http://opendatacommunities.org/id/metropolitan-district-council/walsall,WC89-590,28/02/2018,Holding Accounts,BROWNE JACOBSON SOLICITORS,01/02/2018,621.50,67001-MISC INSURANCES - PAYMENT OF CLAIMS,PUBLIC LIABILITY,Supplies & Services,Revenue
Walsall Council,http://opendatacommunities.org/id/metropolitan-district-council/walsall,WC89-591,28/02/2018,Economy & Environment,BROWNHILLS ASPHALT & TARMAC LIMITED,01/02/2018,475.00,60500-GENERAL MATERIALS,INFRASTRUCTURE MAINTENANCE,Supplies & Services,Revenue
Walsall Council,http://opendatacommunities.org/id/metropolitan-district-council/walsall,WC89-592,28/02/2018,Economy & Environment,BROWNHILLS ASPHALT & TARMAC LIMITED,01/02/2018,600.00,60500-GENERAL MATERIALS,INFRASTRUCTURE MAINTENANCE,Supplies & Services,Revenue
Walsall Council,http://opendatacommunities.org/id/metropolitan-district-council/walsall,WC89-593,28/02/2018,Economy & Environment,BROWNHILLS ASPHALT & TARMAC LIMITED,07/02/2018,"1,500.00",01006-SITE WORKS MAIN CONTRACTORS,CFR 723 PALFREY PARK NEW COMMUNITY BUILDINGS & STAFF ACCOM,Capital,Capital
Walsall Council,http://opendatacommunities.org/id/metropolitan-district-council/walsall,WC89-594,28/02/2018,Economy & Environment,BROWNHILLS ASPHALT & TARMAC LIMITED,13/02/2018,"2,200.00",60500-GENERAL MATERIALS,INFRASTRUCTURE MAINTENANCE,Supplies & Services,Revenue
Walsall Council,http://opendatacommunities.org/id/metropolitan-district-council/walsall,WC89-595,28/02/2018,Resources and Transformation,BROWNHILLS ASPHALT & TARMAC LIMITED,27/02/2018,"6,340.00",01006-SITE WORKS MAIN CONTRACTORS,CON 59 DARLASTON RECREATION GROUND,Capital,Capital
Walsall Council,http://opendatacommunities.org/id/metropolitan-district-council/walsall,WC89-596,28/02/2018,Childrens,BROWNHILLS ASPHALT & TARMAC LIMITED,27/02/2018,"6,844.00",01006-SITE WORKS MAIN CONTRACTORS,CFR 1137 KINGS HILL PRIMARY EXPANSION,Capital,Capital
Walsall Council,http://opendatacommunities.org/id/metropolitan-district-council/walsall,WC89-597,28/02/2018,Resources and Transformation,BROWNHILLS ASPHALT & TARMAC LIMITED,15/02/2018,"10,178.00","40000-REPAIRS,ALTERATIONS & MAINTENANCE-PREM",CENTRALISED MAINTENANCE,Premises,Revenue
Walsall Council,http://opendatacommunities.org/id/metropolitan-district-council/walsall,WC89-598,28/02/2018,Childrens,BROWNHILLS COMMUNITY ASSOCIATION,07/02/2018,"1,815.00",63120-CRECHE FACILITIES-SERVICES-FEES,FAMILY PLACEMENTS,Supplies & Services,Revenue
Walsall Council,http://opendatacommunities.org/id/metropolitan-district-council/walsall,WC89-599,28/02/2018,Childrens,BROWNHILLS COMMUNITY TECHNICAL COLLEGE,06/02/2018,"1,814.50",52000-WITH DRIVER-HIRE OF VEHICLES,HOME TO SCHOOL TRANSPORT,Transport,Revenue
Walsall Council,http://opendatacommunities.org/id/metropolitan-district-council/walsall,WC89-600,28/02/2018,Childrens,BROWNHILLS COMMUNITY TECHNICAL COLLEGE,06/02/2018,"1,814.50",52000-WITH DRIVER-HIRE OF VEHICLES,HOME TO SCHOOL TRANSPORT,Transport,Revenue
Walsall Council,http://opendatacommunities.org/id/metropolitan-district-council/walsall,WC89-601,28/02/2018,Economy & Environment,BROXAP LTD,01/02/2018,330.95,60000-FURNITURE & EQUIPMENT,SECTION 106,Supplies & Services,Revenue
Walsall Council,http://opendatacommunities.org/id/metropolitan-district-council/walsall,WC89-602,28/02/2018,Adult Social Care,REDACTED,05/02/2018,"1,530.00",76422-DIRECT PAYMENTS TO SOCIAL SERVICES CLIENTS,LD PACKAGE/PLACEMENT COSTS,Transfer Payments,Revenue
Walsall Council,http://opendatacommunities.org/id/metropolitan-district-council/walsall,WC89-603,28/02/2018,Economy & Environment,REDACTED,01/02/2018,450.00,63000-PROFESSIONAL FEES AND SERVICES,NAG - TEMPORARY EXHIBITIONS,Supplies & Services,Revenue
Walsall Council,http://opendatacommunities.org/id/metropolitan-district-council/walsall,WC89-604,28/02/2018,Economy & Environment,REDACTED,14/02/2018,"2,081.25",73025-PROFESSIONAL SERVICES-PRIV CONTRACTOR & OTHER AGENCIES,BLOXWICH LIBRARY,Third Party Payments,Revenue
Walsall Council,http://opendatacommunities.org/id/metropolitan-district-council/walsall,WC89-605,28/02/2018,Economy & Environment,REDACTED,14/02/2018,"2,081.25",73025-PROFESSIONAL SERVICES-PRIV CONTRACTOR & OTHER AGENCIES,BLOXWICH LIBRARY,Third Party Payments,Revenue
Walsall Council,http://opendatacommunities.org/id/metropolitan-district-council/walsall,WC89-606,28/02/2018,Childrens,BT,15/02/2018,466.68,63603-COST OF CALLS-TELEPHONES,LOCALITY FAMILY SUPPORT-WEST,Supplies & Services,Revenue
Walsall Council,http://opendatacommunities.org/id/metropolitan-district-council/walsall,WC89-607,28/02/2018,Resources and Transformation,BT,06/02/2018,712.00,63603-COST OF CALLS-TELEPHONES,PROCESSING,Supplies & Services,Revenue
Walsall Council,http://opendatacommunities.org/id/metropolitan-district-council/walsall,WC89-608,28/02/2018,Resources and Transformation,BT,12/02/2018,"1,782.12",63601-COSTS (NOT INTERNAL RECHARGES)-TELEPHONES,CENTRAL COMMUNICATIONS RECHARGES,Supplies & Services,Revenue
Walsall Council,http://opendatacommunities.org/id/metropolitan-district-council/walsall,WC89-609,28/02/2018,Resources and Transformation,BT PLC,01/02/2018,"1,268.35",63807-COMMS LINKS-COMPUTER,NETWORKS,Supplies & Services,Revenue
Walsall Council,http://opendatacommunities.org/id/metropolitan-district-council/walsall,WC89-610,28/02/2018,Resources and Transformation,BT PLC,01/02/2018,"1,316.49",63800-COMPUTER EQUIPMENT AND SUPPLIES,RECHARGEABLE EQUIPMENT,Supplies & Services,Revenue
Walsall Council,http://opendatacommunities.org/id/metropolitan-district-council/walsall,WC89-611,28/02/2018,Resources and Transformation,BT PLC,01/02/2018,"2,238.96",63807-COMMS LINKS-COMPUTER,SIT-INFRASTRUCTURE,Supplies & Services,Revenue
Walsall Council,http://opendatacommunities.org/id/metropolitan-district-council/walsall,WC89-612,28/02/2018,Economy & Environment,BT PLC,02/02/2018,"9,962.50",63601-COSTS (NOT INTERNAL RECHARGES)-TELEPHONES,TRAFFIC CONTROL,Supplies & Services,Revenue
Walsall Council,http://opendatacommunities.org/id/metropolitan-district-council/walsall,WC89-613,28/02/2018,Resources and Transformation,BT PLC,14/02/2018,"15,085.76",63601-COSTS (NOT INTERNAL RECHARGES)-TELEPHONES,CENTRAL COMMUNICATIONS RECHARGES,Supplies & Services,Revenue
Walsall Council,http://opendatacommunities.org/id/metropolitan-district-council/walsall,WC89-614,28/02/2018,Adult Social Care,BUNZIL HEALTHCARE T/A CARESHOP,16/02/2018,222.80,60539-CLEANING MATERIALS,HOLLYBANK,Supplies & Services,Revenue
Walsall Council,http://opendatacommunities.org/id/metropolitan-district-council/walsall,WC89-615,28/02/2018,Adult Social Care,BUNZIL HEALTHCARE T/A CARESHOP,08/02/2018,604.05,60539-CLEANING MATERIALS,HOLLYBANK,Supplies & Services,Revenue
Walsall Council,http://opendatacommunities.org/id/metropolitan-district-council/walsall,WC89-616,28/02/2018,Adult Social Care,BUPA CARE HOMES (CFHCARE) LTD,06/02/2018,"2,200.00",73373-RESIDENTIAL & NURSING CARE PLACEMENTS,OP PACKAGE/PLACEMENT COSTS,Third Party Payments,Revenue
Walsall Council,http://opendatacommunities.org/id/metropolitan-district-council/walsall,WC89-617,28/02/2018,Adult Social Care,BUPA CARE HOMES (CFHCARE) LTD,06/02/2018,"2,400.00",73373-RESIDENTIAL & NURSING CARE PLACEMENTS,OP PACKAGE/PLACEMENT COSTS,Third Party Payments,Revenue
Walsall Council,http://opendatacommunities.org/id/metropolitan-district-council/walsall,WC89-618,28/02/2018,Adult Social Care,BUPA CARE HOMES (CFHCARE) LTD,06/02/2018,"3,380.20",73373-RESIDENTIAL & NURSING CARE PLACEMENTS,OP PACKAGE/PLACEMENT COSTS,Third Party Payments,Revenue
Walsall Council,http://opendatacommunities.org/id/metropolitan-district-council/walsall,WC89-619,28/02/2018,Childrens,BURNT TREE PRIMARY SCHOOL,12/02/2018,600.00,77300-ISB-FORMULA ALLOCATION,OUT OF BOROUGH SCHOOLS,Transfer Payments,Revenue
Walsall Council,http://opendatacommunities.org/id/metropolitan-district-council/walsall,WC89-620,28/02/2018,Childrens,BURNTWOOD ROAD SWEEPERS LTD,22/02/2018,700.00,73019-PSE'S-PRIV CONTRACTOR FEES,PELSALL EDC,Third Party Payments,Revenue
Walsall Council,http://opendatacommunities.org/id/metropolitan-district-council/walsall,WC89-621,28/02/2018,Adult Social Care,BUSH HOME LTD,27/02/2018,"1,656.00",73373-RESIDENTIAL & NURSING CARE PLACEMENTS,OP PACKAGE/PLACEMENT COSTS,Third Party Payments,Revenue
Walsall Council,http://opendatacommunities.org/id/metropolitan-district-council/walsall,WC89-622,28/02/2018,Adult Social Care,BUSH HOME LTD,27/02/2018,"1,656.00",73373-RESIDENTIAL & NURSING CARE PLACEMENTS,OP PACKAGE/PLACEMENT COSTS,Third Party Payments,Revenue
Walsall Council,http://opendatacommunities.org/id/metropolitan-district-council/walsall,WC89-623,28/02/2018,Adult Social Care,BUSH HOME LTD,27/02/2018,"1,656.00",73373-RESIDENTIAL & NURSING CARE PLACEMENTS,OP PACKAGE/PLACEMENT COSTS,Third Party Payments,Revenue
Walsall Council,http://opendatacommunities.org/id/metropolitan-district-council/walsall,WC89-624,28/02/2018,Adult Social Care,BUSH HOME LTD,27/02/2018,"1,840.00",73373-RESIDENTIAL & NURSING CARE PLACEMENTS,OP PACKAGE/PLACEMENT COSTS,Third Party Payments,Revenue
Walsall Council,http://opendatacommunities.org/id/metropolitan-district-council/walsall,WC89-625,28/02/2018,Adult Social Care,BUSH HOME LTD,27/02/2018,"1,840.00",73373-RESIDENTIAL & NURSING CARE PLACEMENTS,OP PACKAGE/PLACEMENT COSTS,Third Party Payments,Revenue
Walsall Council,http://opendatacommunities.org/id/metropolitan-district-council/walsall,WC89-626,28/02/2018,Adult Social Care,BUSH HOME LTD,27/02/2018,"1,840.00",73373-RESIDENTIAL & NURSING CARE PLACEMENTS,OP PACKAGE/PLACEMENT COSTS,Third Party Payments,Revenue
Walsall Council,http://opendatacommunities.org/id/metropolitan-district-council/walsall,WC89-627,28/02/2018,Adult Social Care,BUSH HOME LTD,27/02/2018,"1,840.00",73373-RESIDENTIAL & NURSING CARE PLACEMENTS,OP PACKAGE/PLACEMENT COSTS,Third Party Payments,Revenue
Walsall Council,http://opendatacommunities.org/id/metropolitan-district-council/walsall,WC89-628,28/02/2018,Adult Social Care,BUSH HOME LTD,27/02/2018,"1,840.00",73373-RESIDENTIAL & NURSING CARE PLACEMENTS,OP PACKAGE/PLACEMENT COSTS,Third Party Payments,Revenue
Walsall Council,http://opendatacommunities.org/id/metropolitan-district-council/walsall,WC89-629,28/02/2018,Adult Social Care,BUSH HOME LTD,27/02/2018,"4,494.86",73373-RESIDENTIAL & NURSING CARE PLACEMENTS,MENTAL HEALTH PACKAGE/PLACEMENT COSTS,Third Party Payments,Revenue
Walsall Council,http://opendatacommunities.org/id/metropolitan-district-council/walsall,WC89-630,28/02/2018,Childrens,BY THE BRIDGE,26/02/2018,"3,996.00",74037-INDEPENDENT FOSTER CARE-OTH AGENCY PROVISION,EXTERNAL FOSTER CARE PROVISION,Third Party Payments,Revenue
Walsall Council,http://opendatacommunities.org/id/metropolitan-district-council/walsall,WC89-631,28/02/2018,Adult Social Care,C & V ORCHARD RESIDENTIAL LTD,20/02/2018,"1,620.00",73373-RESIDENTIAL & NURSING CARE PLACEMENTS,OP PACKAGE/PLACEMENT COSTS,Third Party Payments,Revenue
Walsall Council,http://opendatacommunities.org/id/metropolitan-district-council/walsall,WC89-632,28/02/2018,Adult Social Care,C & V ORCHARD RESIDENTIAL LTD,20/02/2018,"1,656.00",73373-RESIDENTIAL & NURSING CARE PLACEMENTS,OP PACKAGE/PLACEMENT COSTS,Third Party Payments,Revenue
Walsall Council,http://opendatacommunities.org/id/metropolitan-district-council/walsall,WC89-633,28/02/2018,Adult Social Care,C & V ORCHARD RESIDENTIAL LTD,20/02/2018,"1,656.00",73373-RESIDENTIAL & NURSING CARE PLACEMENTS,OP PACKAGE/PLACEMENT COSTS,Third Party Payments,Revenue
Walsall Council,http://opendatacommunities.org/id/metropolitan-district-council/walsall,WC89-634,28/02/2018,Adult Social Care,C & V ORCHARD RESIDENTIAL LTD,20/02/2018,"1,656.00",73373-RESIDENTIAL & NURSING CARE PLACEMENTS,OP PACKAGE/PLACEMENT COSTS,Third Party Payments,Revenue
Walsall Council,http://opendatacommunities.org/id/metropolitan-district-council/walsall,WC89-635,28/02/2018,Adult Social Care,C & V ORCHARD RESIDENTIAL LTD,20/02/2018,"1,656.00",73373-RESIDENTIAL & NURSING CARE PLACEMENTS,OP PACKAGE/PLACEMENT COSTS,Third Party Payments,Revenue
Walsall Council,http://opendatacommunities.org/id/metropolitan-district-council/walsall,WC89-636,28/02/2018,Adult Social Care,C & V ORCHARD RESIDENTIAL LTD,20/02/2018,"1,708.59",73373-RESIDENTIAL & NURSING CARE PLACEMENTS,OP PACKAGE/PLACEMENT COSTS,Third Party Payments,Revenue
Walsall Council,http://opendatacommunities.org/id/metropolitan-district-council/walsall,WC89-637,28/02/2018,Adult Social Care,C & V ORCHARD RESIDENTIAL LTD,20/02/2018,"1,840.00",73373-RESIDENTIAL & NURSING CARE PLACEMENTS,OP PACKAGE/PLACEMENT COSTS,Third Party Payments,Revenue
Walsall Council,http://opendatacommunities.org/id/metropolitan-district-council/walsall,WC89-638,28/02/2018,Adult Social Care,C & V ORCHARD RESIDENTIAL LTD,20/02/2018,"1,840.00",73373-RESIDENTIAL & NURSING CARE PLACEMENTS,MENTAL HEALTH PACKAGE/PLACEMENT COSTS,Third Party Payments,Revenue
Walsall Council,http://opendatacommunities.org/id/metropolitan-district-council/walsall,WC89-639,28/02/2018,Economy & Environment,C ART ART TRANSPORT LTD,16/02/2018,"1,028.00",63000-PROFESSIONAL FEES AND SERVICES,EXHIBITIONS - SPECIAL PROJECTS/PARTNERSHIPS,Supplies & Services,Revenue
Walsall Council,http://opendatacommunities.org/id/metropolitan-district-council/walsall,WC89-640,28/02/2018,Childrens,REDACTED,26/02/2018,9.24,60006-NEW-FURNITURE & EQUIPMENT,INTERNAL FOSTER CARE PROVISION,Supplies & Services,Revenue
Walsall Council,http://opendatacommunities.org/id/metropolitan-district-council/walsall,WC89-641,28/02/2018,Childrens,REDACTED,26/02/2018,810.32,74501-MAINTENANCE ALLOWANCE-FOSTER CARERS,INTERNAL FOSTER CARE PROVISION,Transfer Payments,Revenue
Walsall Council,http://opendatacommunities.org/id/metropolitan-district-council/walsall,WC89-642,28/02/2018,Childrens,REDACTED,26/02/2018,810.32,74501-MAINTENANCE ALLOWANCE-FOSTER CARERS,INTERNAL FOSTER CARE PROVISION,Transfer Payments,Revenue
Walsall Council,http://opendatacommunities.org/id/metropolitan-district-council/walsall,WC89-643,28/02/2018,Childrens,REDACTED,26/02/2018,810.32,74501-MAINTENANCE ALLOWANCE-FOSTER CARERS,INTERNAL FOSTER CARE PROVISION,Transfer Payments,Revenue
Walsall Council,http://opendatacommunities.org/id/metropolitan-district-council/walsall,WC89-644,28/02/2018,Childrens,REDACTED,26/02/2018,985.76,74501-MAINTENANCE ALLOWANCE-FOSTER CARERS,INTERNAL FOSTER CARE PROVISION,Transfer Payments,Revenue
Walsall Council,http://opendatacommunities.org/id/metropolitan-district-council/walsall,WC89-645,28/02/2018,Childrens,REDACTED,26/02/2018,985.76,74501-MAINTENANCE ALLOWANCE-FOSTER CARERS,INTERNAL FOSTER CARE PROVISION,Transfer Payments,Revenue
Walsall Council,http://opendatacommunities.org/id/metropolitan-district-council/walsall,WC89-646,28/02/2018,Childrens,REDACTED,19/02/2018,"1,524.57",76000-TRANSFER PAYMENTS - SOCIAL SERVICES CLIENTS,TRANSITION AND LEAVING CARE PLACEMENTS,Transfer Payments,Revenue
Walsall Council,http://opendatacommunities.org/id/metropolitan-district-council/walsall,WC89-647,28/02/2018,Childrens,REDACTED,26/02/2018,"3,590.32",74508-INTERNAL FOSTER CARERS-CARER FEES,INTERNAL FOSTER CARE PROVISION,Transfer Payments,Revenue
Walsall Council,http://opendatacommunities.org/id/metropolitan-district-council/walsall,WC89-648,28/02/2018,Childrens,REDACTED,26/02/2018,9.24,60006-NEW-FURNITURE & EQUIPMENT,INTERNAL FOSTER CARE PROVISION,Supplies & Services,Revenue
Walsall Council,http://opendatacommunities.org/id/metropolitan-district-council/walsall,WC89-649,28/02/2018,Childrens,REDACTED,26/02/2018,810.32,74501-MAINTENANCE ALLOWANCE-FOSTER CARERS,INTERNAL FOSTER CARE PROVISION,Transfer Payments,Revenue
Walsall Council,http://opendatacommunities.org/id/metropolitan-district-council/walsall,WC89-650,28/02/2018,Childrens,REDACTED,26/02/2018,810.32,74501-MAINTENANCE ALLOWANCE-FOSTER CARERS,INTERNAL FOSTER CARE PROVISION,Transfer Payments,Revenue
Walsall Council,http://opendatacommunities.org/id/metropolitan-district-council/walsall,WC89-651,28/02/2018,Childrens,REDACTED,26/02/2018,"1,436.08",74508-INTERNAL FOSTER CARERS-CARER FEES,INTERNAL FOSTER CARE PROVISION,Transfer Payments,Revenue
Walsall Council,http://opendatacommunities.org/id/metropolitan-district-council/walsall,WC89-652,28/02/2018,Economy & Environment,C P DAVIDSON & SONS LTD,13/02/2018,330.00,73025-PROFESSIONAL SERVICES-PRIV CONTRACTOR & OTHER AGENCIES,FLEET,Third Party Payments,Revenue
Walsall Council,http://opendatacommunities.org/id/metropolitan-district-council/walsall,WC89-653,28/02/2018,Childrens,REDACTED,14/02/2018,650.92,74501-MAINTENANCE ALLOWANCE-FOSTER CARERS,FAMILY & FRIENDS FOSTER CARE PROVISION,Transfer Payments,Revenue
Walsall Council,http://opendatacommunities.org/id/metropolitan-district-council/walsall,WC89-654,28/02/2018,Childrens,REDACTED,14/02/2018,650.92,74501-MAINTENANCE ALLOWANCE-FOSTER CARERS,FAMILY & FRIENDS FOSTER CARE PROVISION,Transfer Payments,Revenue
Walsall Council,http://opendatacommunities.org/id/metropolitan-district-council/walsall,WC89-655,28/02/2018,Adult Social Care,CALDENE  REST HOME,13/02/2018,"1,656.00",73373-RESIDENTIAL & NURSING CARE PLACEMENTS,OP PACKAGE/PLACEMENT COSTS,Third Party Payments,Revenue
Walsall Council,http://opendatacommunities.org/id/metropolitan-district-council/walsall,WC89-656,28/02/2018,Adult Social Care,CALDMORE AREA HOUSING ASS LTD,27/02/2018,289.24,73373-RESIDENTIAL & NURSING CARE PLACEMENTS,MENTAL HEALTH PACKAGE/PLACEMENT COSTS,Third Party Payments,Revenue
Walsall Council,http://opendatacommunities.org/id/metropolitan-district-council/walsall,WC89-657,28/02/2018,Adult Social Care,CALDMORE AREA HOUSING ASS LTD,20/02/2018,305.43,73373-RESIDENTIAL & NURSING CARE PLACEMENTS,MENTAL HEALTH PACKAGE/PLACEMENT COSTS,Third Party Payments,Revenue
Walsall Council,http://opendatacommunities.org/id/metropolitan-district-council/walsall,WC89-658,28/02/2018,Adult Social Care,CALDMORE AREA HOUSING ASS LTD,20/02/2018,305.43,73373-RESIDENTIAL & NURSING CARE PLACEMENTS,MENTAL HEALTH PACKAGE/PLACEMENT COSTS,Third Party Payments,Revenue
Walsall Council,http://opendatacommunities.org/id/metropolitan-district-council/walsall,WC89-659,28/02/2018,Adult Social Care,CALDMORE AREA HOUSING ASS LTD,20/02/2018,305.43,73373-RESIDENTIAL & NURSING CARE PLACEMENTS,MENTAL HEALTH PACKAGE/PLACEMENT COSTS,Third Party Payments,Revenue
Walsall Council,http://opendatacommunities.org/id/metropolitan-district-council/walsall,WC89-660,28/02/2018,Adult Social Care,CALDMORE AREA HOUSING ASS LTD,20/02/2018,305.43,73373-RESIDENTIAL & NURSING CARE PLACEMENTS,MENTAL HEALTH PACKAGE/PLACEMENT COSTS,Third Party Payments,Revenue
Walsall Council,http://opendatacommunities.org/id/metropolitan-district-council/walsall,WC89-661,28/02/2018,Adult Social Care,CALDMORE AREA HOUSING ASS LTD,27/02/2018,305.43,73373-RESIDENTIAL & NURSING CARE PLACEMENTS,MENTAL HEALTH PACKAGE/PLACEMENT COSTS,Third Party Payments,Revenue
Walsall Council,http://opendatacommunities.org/id/metropolitan-district-council/walsall,WC89-662,28/02/2018,Adult Social Care,CALDMORE AREA HOUSING ASS LTD,27/02/2018,320.73,73373-RESIDENTIAL & NURSING CARE PLACEMENTS,MENTAL HEALTH PACKAGE/PLACEMENT COSTS,Third Party Payments,Revenue
Walsall Council,http://opendatacommunities.org/id/metropolitan-district-council/walsall,WC89-663,28/02/2018,Adult Social Care,CALDMORE AREA HOUSING ASS LTD,27/02/2018,386.60,73373-RESIDENTIAL & NURSING CARE PLACEMENTS,MENTAL HEALTH PACKAGE/PLACEMENT COSTS,Third Party Payments,Revenue
Walsall Council,http://opendatacommunities.org/id/metropolitan-district-council/walsall,WC89-664,28/02/2018,Adult Social Care,CALDMORE AREA HOUSING ASS LTD,27/02/2018,412.38,73373-RESIDENTIAL & NURSING CARE PLACEMENTS,MENTAL HEALTH PACKAGE/PLACEMENT COSTS,Third Party Payments,Revenue
Walsall Council,http://opendatacommunities.org/id/metropolitan-district-council/walsall,WC89-665,28/02/2018,Adult Social Care,CALDMORE AREA HOUSING ASS LTD,20/02/2018,446.74,73373-RESIDENTIAL & NURSING CARE PLACEMENTS,MENTAL HEALTH PACKAGE/PLACEMENT COSTS,Third Party Payments,Revenue
Walsall Council,http://opendatacommunities.org/id/metropolitan-district-council/walsall,WC89-666,28/02/2018,Adult Social Care,CALDMORE AREA HOUSING ASS LTD,20/02/2018,446.74,73373-RESIDENTIAL & NURSING CARE PLACEMENTS,MENTAL HEALTH PACKAGE/PLACEMENT COSTS,Third Party Payments,Revenue
Walsall Council,http://opendatacommunities.org/id/metropolitan-district-council/walsall,WC89-667,28/02/2018,Adult Social Care,CALDMORE AREA HOUSING ASS LTD,20/02/2018,446.74,73373-RESIDENTIAL & NURSING CARE PLACEMENTS,MENTAL HEALTH PACKAGE/PLACEMENT COSTS,Third Party Payments,Revenue
Walsall Council,http://opendatacommunities.org/id/metropolitan-district-council/walsall,WC89-668,28/02/2018,Adult Social Care,CALDMORE AREA HOUSING ASS LTD,20/02/2018,446.74,73373-RESIDENTIAL & NURSING CARE PLACEMENTS,MENTAL HEALTH PACKAGE/PLACEMENT COSTS,Third Party Payments,Revenue
Walsall Council,http://opendatacommunities.org/id/metropolitan-district-council/walsall,WC89-669,28/02/2018,Adult Social Care,CALDMORE AREA HOUSING ASS LTD,27/02/2018,446.74,73373-RESIDENTIAL & NURSING CARE PLACEMENTS,MENTAL HEALTH PACKAGE/PLACEMENT COSTS,Third Party Payments,Revenue
Walsall Council,http://opendatacommunities.org/id/metropolitan-district-council/walsall,WC89-670,28/02/2018,Adult Social Care,CALDMORE AREA HOUSING ASS LTD,06/02/2018,814.19,73373-RESIDENTIAL & NURSING CARE PLACEMENTS,MENTAL HEALTH PACKAGE/PLACEMENT COSTS,Third Party Payments,Revenue
Walsall Council,http://opendatacommunities.org/id/metropolitan-district-council/walsall,WC89-671,28/02/2018,Adult Social Care,CALDMORE AREA HOUSING ASS LTD,20/02/2018,"2,613.24",73373-RESIDENTIAL & NURSING CARE PLACEMENTS,MENTAL HEALTH PACKAGE/PLACEMENT COSTS,Third Party Payments,Revenue
Walsall Council,http://opendatacommunities.org/id/metropolitan-district-council/walsall,WC89-672,28/02/2018,Adult Social Care,CALDMORE AREA HOUSING ASS LTD,20/02/2018,"2,613.24",73373-RESIDENTIAL & NURSING CARE PLACEMENTS,MENTAL HEALTH PACKAGE/PLACEMENT COSTS,Third Party Payments,Revenue
Walsall Council,http://opendatacommunities.org/id/metropolitan-district-council/walsall,WC89-673,28/02/2018,Adult Social Care,CALDMORE AREA HOUSING ASS LTD,20/02/2018,"2,613.24",73373-RESIDENTIAL & NURSING CARE PLACEMENTS,MENTAL HEALTH PACKAGE/PLACEMENT COSTS,Third Party Payments,Revenue
Walsall Council,http://opendatacommunities.org/id/metropolitan-district-council/walsall,WC89-674,28/02/2018,Adult Social Care,CALDMORE AREA HOUSING ASS LTD,20/02/2018,"2,613.24",73373-RESIDENTIAL & NURSING CARE PLACEMENTS,MENTAL HEALTH PACKAGE/PLACEMENT COSTS,Third Party Payments,Revenue
Walsall Council,http://opendatacommunities.org/id/metropolitan-district-council/walsall,WC89-675,28/02/2018,Adult Social Care,CALDMORE AREA HOUSING ASS LTD,20/02/2018,"2,613.24",73373-RESIDENTIAL & NURSING CARE PLACEMENTS,MENTAL HEALTH PACKAGE/PLACEMENT COSTS,Third Party Payments,Revenue
Walsall Council,http://opendatacommunities.org/id/metropolitan-district-council/walsall,WC89-676,28/02/2018,Adult Social Care,CALDMORE AREA HOUSING ASS LTD,27/02/2018,"2,613.24",73373-RESIDENTIAL & NURSING CARE PLACEMENTS,MENTAL HEALTH PACKAGE/PLACEMENT COSTS,Third Party Payments,Revenue
Walsall Council,http://opendatacommunities.org/id/metropolitan-district-council/walsall,WC89-677,28/02/2018,Adult Social Care,CALDMORE AREA HOUSING ASS LTD,27/02/2018,"2,613.24",73373-RESIDENTIAL & NURSING CARE PLACEMENTS,MENTAL HEALTH PACKAGE/PLACEMENT COSTS,Third Party Payments,Revenue
Walsall Council,http://opendatacommunities.org/id/metropolitan-district-council/walsall,WC89-678,28/02/2018,Adult Social Care,CALDMORE AREA HOUSING ASS LTD,27/02/2018,"2,613.24",73373-RESIDENTIAL & NURSING CARE PLACEMENTS,MENTAL HEALTH PACKAGE/PLACEMENT COSTS,Third Party Payments,Revenue
Walsall Council,http://opendatacommunities.org/id/metropolitan-district-council/walsall,WC89-679,28/02/2018,Childrens,CALDMORE PRIMARY ACADEMY,12/02/2018,600.00,77300-ISB-FORMULA ALLOCATION,OUT OF BOROUGH SCHOOLS,Transfer Payments,Revenue
Walsall Council,http://opendatacommunities.org/id/metropolitan-district-council/walsall,WC89-680,28/02/2018,Childrens,CALDMORE PRIMARY ACADEMY,20/02/2018,"1,033.85",66502-TOP UP FUNDING -GRANTS TO SCHOOLS,CALDMORE PRIMARY ACADEMY,Third Party Payments,Revenue
Walsall Council,http://opendatacommunities.org/id/metropolitan-district-council/walsall,WC89-681,28/02/2018,Childrens,CALDMORE PRIMARY ACADEMY,05/02/2018,"1,177.60",77300-ISB-FORMULA ALLOCATION,OUT OF BOROUGH SCHOOLS,Transfer Payments,Revenue
Walsall Council,http://opendatacommunities.org/id/metropolitan-district-council/walsall,WC89-682,28/02/2018,Childrens,REDACTED,14/02/2018,375.88,74510-RESIDENTS ORDERS,ADOPTION ALLOWANCES,Third Party Payments,Revenue
Walsall Council,http://opendatacommunities.org/id/metropolitan-district-council/walsall,WC89-683,28/02/2018,Adult Social Care,REDACTED,05/02/2018,"1,170.20",76422-DIRECT PAYMENTS TO SOCIAL SERVICES CLIENTS,LD PACKAGE/PLACEMENT COSTS,Transfer Payments,Revenue
Walsall Council,http://opendatacommunities.org/id/metropolitan-district-council/walsall,WC89-684,28/02/2018,Childrens,CAMBIAN CHILDCARE LIMITED,28/02/2018,"-17,914.38",74036-EXTERNAL RESIDENTIAL CARE-OTH AGENCY PROVISION,INDEPENDENT RESIDENTIAL HOMES,Third Party Payments,Revenue
Walsall Council,http://opendatacommunities.org/id/metropolitan-district-council/walsall,WC89-685,28/02/2018,Childrens,CAMBIAN CHILDCARE LIMITED,23/02/2018,-814.29,74036-EXTERNAL RESIDENTIAL CARE-OTH AGENCY PROVISION,INDEPENDENT RESIDENTIAL HOMES,Third Party Payments,Revenue
Walsall Council,http://opendatacommunities.org/id/metropolitan-district-council/walsall,WC89-686,28/02/2018,Childrens,CAMBIAN CHILDCARE LIMITED,26/02/2018,"13,400.00",74036-EXTERNAL RESIDENTIAL CARE-OTH AGENCY PROVISION,INDEPENDENT RESIDENTIAL HOMES,Third Party Payments,Revenue
Walsall Council,http://opendatacommunities.org/id/metropolitan-district-council/walsall,WC89-687,28/02/2018,Childrens,CAMBIAN CHILDCARE LIMITED,23/02/2018,"21,985.83",74036-EXTERNAL RESIDENTIAL CARE-OTH AGENCY PROVISION,INDEPENDENT RESIDENTIAL HOMES,Third Party Payments,Revenue
Walsall Council,http://opendatacommunities.org/id/metropolitan-district-council/walsall,WC89-688,28/02/2018,Childrens,CAMBIAN CHILDCARE LIMITED,26/02/2018,"25,242.99",74036-EXTERNAL RESIDENTIAL CARE-OTH AGENCY PROVISION,INDEPENDENT RESIDENTIAL HOMES,Third Party Payments,Revenue
Walsall Council,http://opendatacommunities.org/id/metropolitan-district-council/walsall,WC89-689,28/02/2018,Economy & Environment,CAMBRIDGE ENVIRONMENTAL RESEARCH CONSULTANTS LTD,21/02/2018,"1,890.00",60008-MAINTENANCE-FURNITURE & EQUIPMENT,POLLUTION DIVISION,Supplies & Services,Revenue
Walsall Council,http://opendatacommunities.org/id/metropolitan-district-council/walsall,WC89-690,28/02/2018,Economy & Environment,CAMPBELL ASSOCIATES,16/02/2018,766.00,60008-MAINTENANCE-FURNITURE & EQUIPMENT,POLLUTION DIVISION,Supplies & Services,Revenue
Walsall Council,http://opendatacommunities.org/id/metropolitan-district-council/walsall,WC89-691,28/02/2018,Economy & Environment,CAMPBELL INSTALLATIONS LTD,13/02/2018,495.00,73025-PROFESSIONAL SERVICES-PRIV CONTRACTOR & OTHER AGENCIES,PARKING SERVICES OFF-STREET,Third Party Payments,Revenue
Walsall Council,http://opendatacommunities.org/id/metropolitan-district-council/walsall,WC89-692,28/02/2018,Economy & Environment,CAMPBELL INSTALLATIONS LTD,13/02/2018,700.00,73025-PROFESSIONAL SERVICES-PRIV CONTRACTOR & OTHER AGENCIES,PARKING SERVICES OFF-STREET,Third Party Payments,Revenue
Walsall Council,http://opendatacommunities.org/id/metropolitan-district-council/walsall,WC89-693,28/02/2018,Childrens,CAMPION SCHOOL,12/02/2018,600.00,77300-ISB-FORMULA ALLOCATION,OUT OF BOROUGH SCHOOLS,Transfer Payments,Revenue
Walsall Council,http://opendatacommunities.org/id/metropolitan-district-council/walsall,WC89-694,28/02/2018,Childrens,CAMPION SCHOOL,16/02/2018,834.00,66502-TOP UP FUNDING -GRANTS TO SCHOOLS,INDEPENDENT PROVIDERS - SPECIAL & AP,Third Party Payments,Revenue
Walsall Council,http://opendatacommunities.org/id/metropolitan-district-council/walsall,WC89-695,28/02/2018,Childrens,CAMPION SCHOOL,16/02/2018,834.00,66502-TOP UP FUNDING -GRANTS TO SCHOOLS,INDEPENDENT PROVIDERS - SPECIAL & AP,Third Party Payments,Revenue
Walsall Council,http://opendatacommunities.org/id/metropolitan-district-council/walsall,WC89-696,28/02/2018,Childrens,CANNOCK CHASE HIGH SCHOOL,12/02/2018,900.00,77300-ISB-FORMULA ALLOCATION,OUT OF BOROUGH SCHOOLS,Transfer Payments,Revenue
Walsall Council,http://opendatacommunities.org/id/metropolitan-district-council/walsall,WC89-697,28/02/2018,Childrens,CANNON HYGIENE LTD,19/02/2018,553.95,60500-GENERAL MATERIALS,STROUD FAMILY CENTRE,Supplies & Services,Revenue
Walsall Council,http://opendatacommunities.org/id/metropolitan-district-council/walsall,WC89-698,28/02/2018,Economy & Environment,CANNON HYGIENE LTD,08/02/2018,"2,449.88",60009-LEASING/HIRE/RENTAL-EQUIPMENT,NAG - FRONT OF HOUSE,Supplies & Services,Revenue
Walsall Council,http://opendatacommunities.org/id/metropolitan-district-council/walsall,WC89-699,28/02/2018,Childrens,CAPSTONE FOSTER CARE (SOUTH EAST) LIMITED,26/02/2018,"2,887.27",74037-INDEPENDENT FOSTER CARE-OTH AGENCY PROVISION,EXTERNAL FOSTER CARE PROVISION,Third Party Payments,Revenue
Walsall Council,http://opendatacommunities.org/id/metropolitan-district-council/walsall,WC89-700,28/02/2018,Childrens,CAPSTONE FOSTER CARE (SOUTH EAST) LIMITED,26/02/2018,"3,124.44",74037-INDEPENDENT FOSTER CARE-OTH AGENCY PROVISION,EXTERNAL FOSTER CARE PROVISION,Third Party Payments,Revenue
Walsall Council,http://opendatacommunities.org/id/metropolitan-district-council/walsall,WC89-701,28/02/2018,Childrens,CAPSTONE FOSTER CARE (SOUTH EAST) LIMITED,26/02/2018,"3,194.04",74037-INDEPENDENT FOSTER CARE-OTH AGENCY PROVISION,EXTERNAL FOSTER CARE PROVISION,Third Party Payments,Revenue
Walsall Council,http://opendatacommunities.org/id/metropolitan-district-council/walsall,WC89-702,28/02/2018,Childrens,CAPSTONE FOSTER CARE (SOUTH EAST) LIMITED,26/02/2018,"3,194.04",74037-INDEPENDENT FOSTER CARE-OTH AGENCY PROVISION,EXTERNAL FOSTER CARE PROVISION,Third Party Payments,Revenue
Walsall Council,http://opendatacommunities.org/id/metropolitan-district-council/walsall,WC89-703,28/02/2018,Adult Social Care,CARE 2 U LIMITED,01/02/2018,926.74,73372-DOMICILIARY CARE,OP PACKAGE/PLACEMENT COSTS,Third Party Payments,Revenue
Walsall Council,http://opendatacommunities.org/id/metropolitan-district-council/walsall,WC89-704,28/02/2018,Adult Social Care,CARE 2 U LIMITED,14/02/2018,"1,497.17",73019-PSE'S-PRIV CONTRACTOR FEES,INTEGRATED DISCHARGE TEAM,Third Party Payments,Revenue
Walsall Council,http://opendatacommunities.org/id/metropolitan-district-council/walsall,WC89-705,28/02/2018,Adult Social Care,CARE 2 U LIMITED,14/02/2018,"2,070.53",73019-PSE'S-PRIV CONTRACTOR FEES,INTEGRATED DISCHARGE TEAM,Third Party Payments,Revenue
Walsall Council,http://opendatacommunities.org/id/metropolitan-district-council/walsall,WC89-706,28/02/2018,Adult Social Care,CARE 2 U LIMITED,21/02/2018,"30,634.81",73372-DOMICILIARY CARE,OP PACKAGE/PLACEMENT COSTS,Third Party Payments,Revenue
Walsall Council,http://opendatacommunities.org/id/metropolitan-district-council/walsall,WC89-707,28/02/2018,Childrens,CARE 4 CHILDREN RESIDENTIAL SERVICES LTD,26/02/2018,"5,600.00",74037-INDEPENDENT FOSTER CARE-OTH AGENCY PROVISION,EXTERNAL FOSTER CARE PROVISION,Third Party Payments,Revenue
Walsall Council,http://opendatacommunities.org/id/metropolitan-district-council/walsall,WC89-708,28/02/2018,Childrens,CARE AFLOAT LTD,26/02/2018,"19,200.00",74036-EXTERNAL RESIDENTIAL CARE-OTH AGENCY PROVISION,INDEPENDENT RESIDENTIAL HOMES,Third Party Payments,Revenue
Walsall Council,http://opendatacommunities.org/id/metropolitan-district-council/walsall,WC89-709,28/02/2018,Adult Social Care,CARE AVENUES LTD,02/02/2018,261.25,73372-DOMICILIARY CARE,OP PACKAGE/PLACEMENT COSTS,Third Party Payments,Revenue
Walsall Council,http://opendatacommunities.org/id/metropolitan-district-council/walsall,WC89-710,28/02/2018,Adult Social Care,CARE AVENUES LTD,01/02/2018,385.00,73372-DOMICILIARY CARE,OP PACKAGE/PLACEMENT COSTS,Third Party Payments,Revenue
Walsall Council,http://opendatacommunities.org/id/metropolitan-district-council/walsall,WC89-711,28/02/2018,Adult Social Care,CARE AVENUES LTD,02/02/2018,546.00,73372-DOMICILIARY CARE,OP PACKAGE/PLACEMENT COSTS,Third Party Payments,Revenue
Walsall Council,http://opendatacommunities.org/id/metropolitan-district-council/walsall,WC89-712,28/02/2018,Adult Social Care,CARE AVENUES LTD,02/02/2018,905.63,73372-DOMICILIARY CARE,OP PACKAGE/PLACEMENT COSTS,Third Party Payments,Revenue
Walsall Council,http://opendatacommunities.org/id/metropolitan-district-council/walsall,WC89-713,28/02/2018,Adult Social Care,CARE AVENUES LTD,02/02/2018,"1,261.69",73372-DOMICILIARY CARE,OP PACKAGE/PLACEMENT COSTS,Third Party Payments,Revenue
Walsall Council,http://opendatacommunities.org/id/metropolitan-district-council/walsall,WC89-714,28/02/2018,Adult Social Care,CARE AVENUES LTD,02/02/2018,"1,842.40",73372-DOMICILIARY CARE,OP PACKAGE/PLACEMENT COSTS,Third Party Payments,Revenue
Walsall Council,http://opendatacommunities.org/id/metropolitan-district-council/walsall,WC89-715,28/02/2018,Adult Social Care,CARE AVENUES LTD,01/02/2018,"1,952.50",73372-DOMICILIARY CARE,OP PACKAGE/PLACEMENT COSTS,Third Party Payments,Revenue
Walsall Council,http://opendatacommunities.org/id/metropolitan-district-council/walsall,WC89-716,28/02/2018,Adult Social Care,CARE AVENUES LTD,01/02/2018,"2,253.36",73372-DOMICILIARY CARE,OP PACKAGE/PLACEMENT COSTS,Third Party Payments,Revenue
Walsall Council,http://opendatacommunities.org/id/metropolitan-district-council/walsall,WC89-717,28/02/2018,Adult Social Care,CARE AVENUES LTD,02/02/2018,"2,277.00",73372-DOMICILIARY CARE,OP PACKAGE/PLACEMENT COSTS,Third Party Payments,Revenue
Walsall Council,http://opendatacommunities.org/id/metropolitan-district-council/walsall,WC89-718,28/02/2018,Adult Social Care,CARE AVENUES LTD,01/02/2018,"17,280.31",73372-DOMICILIARY CARE,OP PACKAGE/PLACEMENT COSTS,Third Party Payments,Revenue
Walsall Council,http://opendatacommunities.org/id/metropolitan-district-council/walsall,WC89-719,28/02/2018,Adult Social Care,CARE FIRST MANAGEMENT SERVICES LTD,01/02/2018,780.00,73372-DOMICILIARY CARE,PD PACKAGE/PLACEMENT COSTS,Third Party Payments,Revenue
Walsall Council,http://opendatacommunities.org/id/metropolitan-district-council/walsall,WC89-720,28/02/2018,Adult Social Care,CARE QUALITY COMMISSION,21/02/2018,"2,447.00",73025-PROFESSIONAL SERVICES-PRIV CONTRACTOR & OTHER AGENCIES,FALLINGS HEATH,Third Party Payments,Revenue
Walsall Council,http://opendatacommunities.org/id/metropolitan-district-council/walsall,WC89-721,28/02/2018,Adult Social Care,CARE QUALITY COMMISSION,21/02/2018,"3,348.00",73025-PROFESSIONAL SERVICES-PRIV CONTRACTOR & OTHER AGENCIES,HOLLYBANK,Third Party Payments,Revenue
Walsall Council,http://opendatacommunities.org/id/metropolitan-district-council/walsall,WC89-722,28/02/2018,Adult Social Care,CARE QUALITY COMMISSION,21/02/2018,"6,093.00",73025-PROFESSIONAL SERVICES-PRIV CONTRACTOR & OTHER AGENCIES,SENIOR MANAGEMENT TEAM,Third Party Payments,Revenue
Walsall Council,http://opendatacommunities.org/id/metropolitan-district-council/walsall,WC89-723,28/02/2018,Childrens,CARE TODAY CHILDRENS SERVICES,26/02/2018,"2,889.60",74036-EXTERNAL RESIDENTIAL CARE-OTH AGENCY PROVISION,INDEPENDENT RESIDENTIAL HOMES,Third Party Payments,Revenue
Walsall Council,http://opendatacommunities.org/id/metropolitan-district-council/walsall,WC89-724,28/02/2018,Childrens,CARE TODAY CHILDRENS SERVICES,26/02/2018,"10,380.00",74036-EXTERNAL RESIDENTIAL CARE-OTH AGENCY PROVISION,INDEPENDENT RESIDENTIAL HOMES,Third Party Payments,Revenue
Walsall Council,http://opendatacommunities.org/id/metropolitan-district-council/walsall,WC89-725,28/02/2018,Childrens,CARE XY LIMITED,14/02/2018,372.00,63000-PROFESSIONAL FEES AND SERVICES,DIRECTLY COMMISSIONED NURSING SERVICES,Supplies & Services,Revenue
Walsall Council,http://opendatacommunities.org/id/metropolitan-district-council/walsall,WC89-726,28/02/2018,Adult Social Care,CARE XY LIMITED,14/02/2018,453.75,73025-PROFESSIONAL SERVICES-PRIV CONTRACTOR & OTHER AGENCIES,COMMUNITY INTERMEDIATE CARE,Third Party Payments,Revenue
Walsall Council,http://opendatacommunities.org/id/metropolitan-district-council/walsall,WC89-727,28/02/2018,Adult Social Care,CARE XY LIMITED,14/02/2018,484.68,73025-PROFESSIONAL SERVICES-PRIV CONTRACTOR & OTHER AGENCIES,COMMUNITY INTERMEDIATE CARE,Third Party Payments,Revenue
Walsall Council,http://opendatacommunities.org/id/metropolitan-district-council/walsall,WC89-728,28/02/2018,Adult Social Care,CARE XY LIMITED,14/02/2018,522.50,73025-PROFESSIONAL SERVICES-PRIV CONTRACTOR & OTHER AGENCIES,COMMUNITY INTERMEDIATE CARE,Third Party Payments,Revenue
Walsall Council,http://opendatacommunities.org/id/metropolitan-district-council/walsall,WC89-729,28/02/2018,Adult Social Care,CARE XY LIMITED,14/02/2018,"7,840.93",73025-PROFESSIONAL SERVICES-PRIV CONTRACTOR & OTHER AGENCIES,COMMUNITY INTERMEDIATE CARE,Third Party Payments,Revenue
Walsall Council,http://opendatacommunities.org/id/metropolitan-district-council/walsall,WC89-730,28/02/2018,Adult Social Care,CARE XY LIMITED,14/02/2018,"7,889.06",73025-PROFESSIONAL SERVICES-PRIV CONTRACTOR & OTHER AGENCIES,COMMUNITY INTERMEDIATE CARE,Third Party Payments,Revenue
Walsall Council,http://opendatacommunities.org/id/metropolitan-district-council/walsall,WC89-731,28/02/2018,Adult Social Care,CARE XY LIMITED,14/02/2018,"8,005.93",73025-PROFESSIONAL SERVICES-PRIV CONTRACTOR & OTHER AGENCIES,COMMUNITY INTERMEDIATE CARE,Third Party Payments,Revenue
Walsall Council,http://opendatacommunities.org/id/metropolitan-district-council/walsall,WC89-732,28/02/2018,Adult Social Care,CARE XY LIMITED,14/02/2018,"9,126.56",73025-PROFESSIONAL SERVICES-PRIV CONTRACTOR & OTHER AGENCIES,COMMUNITY INTERMEDIATE CARE,Third Party Payments,Revenue
Walsall Council,http://opendatacommunities.org/id/metropolitan-district-council/walsall,WC89-733,28/02/2018,Adult Social Care,CARE XY LIMITED,14/02/2018,"9,270.93",73025-PROFESSIONAL SERVICES-PRIV CONTRACTOR & OTHER AGENCIES,COMMUNITY INTERMEDIATE CARE,Third Party Payments,Revenue
Walsall Council,http://opendatacommunities.org/id/metropolitan-district-council/walsall,WC89-734,28/02/2018,Adult Social Care,CARE XY LIMITED,05/02/2018,"11,020.62",73025-PROFESSIONAL SERVICES-PRIV CONTRACTOR & OTHER AGENCIES,COMMUNITY INTERMEDIATE CARE,Third Party Payments,Revenue
Walsall Council,http://opendatacommunities.org/id/metropolitan-district-council/walsall,WC89-735,28/02/2018,Adult Social Care,CARETECH COMMUNITY SERVICE,23/02/2018,"4,007.28",73372-DOMICILIARY CARE,LD PACKAGE/PLACEMENT COSTS,Third Party Payments,Revenue
Walsall Council,http://opendatacommunities.org/id/metropolitan-district-council/walsall,WC89-736,28/02/2018,Adult Social Care,CAREVIEW SERVICES LTD,20/02/2018,"6,144.49",73373-RESIDENTIAL & NURSING CARE PLACEMENTS,LD PACKAGE/PLACEMENT COSTS,Third Party Payments,Revenue
Walsall Council,http://opendatacommunities.org/id/metropolitan-district-council/walsall,WC89-737,28/02/2018,Adult Social Care,CARING CARE LIMITED,15/02/2018,275.00,73025-PROFESSIONAL SERVICES-PRIV CONTRACTOR & OTHER AGENCIES,COMMUNITY INTERMEDIATE CARE,Third Party Payments,Revenue
Walsall Council,http://opendatacommunities.org/id/metropolitan-district-council/walsall,WC89-738,28/02/2018,Adult Social Care,CARING CARE LIMITED,15/02/2018,275.00,73025-PROFESSIONAL SERVICES-PRIV CONTRACTOR & OTHER AGENCIES,COMMUNITY INTERMEDIATE CARE,Third Party Payments,Revenue
Walsall Council,http://opendatacommunities.org/id/metropolitan-district-council/walsall,WC89-739,28/02/2018,Adult Social Care,CARING CARE LIMITED,19/02/2018,323.13,73025-PROFESSIONAL SERVICES-PRIV CONTRACTOR & OTHER AGENCIES,COMMUNITY INTERMEDIATE CARE,Third Party Payments,Revenue
Walsall Council,http://opendatacommunities.org/id/metropolitan-district-council/walsall,WC89-740,28/02/2018,Adult Social Care,CARING CARE LIMITED,14/02/2018,333.44,73025-PROFESSIONAL SERVICES-PRIV CONTRACTOR & OTHER AGENCIES,COMMUNITY INTERMEDIATE CARE,Third Party Payments,Revenue
Walsall Council,http://opendatacommunities.org/id/metropolitan-district-council/walsall,WC89-741,28/02/2018,Adult Social Care,CARING CARE LIMITED,19/02/2018,340.31,73025-PROFESSIONAL SERVICES-PRIV CONTRACTOR & OTHER AGENCIES,COMMUNITY INTERMEDIATE CARE,Third Party Payments,Revenue
Walsall Council,http://opendatacommunities.org/id/metropolitan-district-council/walsall,WC89-742,28/02/2018,Adult Social Care,CARING CARE LIMITED,14/02/2018,343.75,73025-PROFESSIONAL SERVICES-PRIV CONTRACTOR & OTHER AGENCIES,COMMUNITY INTERMEDIATE CARE,Third Party Payments,Revenue
Walsall Council,http://opendatacommunities.org/id/metropolitan-district-council/walsall,WC89-743,28/02/2018,Adult Social Care,CARING CARE LIMITED,14/02/2018,371.25,73025-PROFESSIONAL SERVICES-PRIV CONTRACTOR & OTHER AGENCIES,COMMUNITY INTERMEDIATE CARE,Third Party Payments,Revenue
Walsall Council,http://opendatacommunities.org/id/metropolitan-district-council/walsall,WC89-744,28/02/2018,Adult Social Care,CARING CARE LIMITED,19/02/2018,378.13,73025-PROFESSIONAL SERVICES-PRIV CONTRACTOR & OTHER AGENCIES,COMMUNITY INTERMEDIATE CARE,Third Party Payments,Revenue
Walsall Council,http://opendatacommunities.org/id/metropolitan-district-council/walsall,WC89-745,28/02/2018,Adult Social Care,CARING CARE LIMITED,14/02/2018,426.25,73025-PROFESSIONAL SERVICES-PRIV CONTRACTOR & OTHER AGENCIES,COMMUNITY INTERMEDIATE CARE,Third Party Payments,Revenue
Walsall Council,http://opendatacommunities.org/id/metropolitan-district-council/walsall,WC89-746,28/02/2018,Adult Social Care,CARING CARE LIMITED,19/02/2018,426.25,73025-PROFESSIONAL SERVICES-PRIV CONTRACTOR & OTHER AGENCIES,COMMUNITY INTERMEDIATE CARE,Third Party Payments,Revenue
Walsall Council,http://opendatacommunities.org/id/metropolitan-district-council/walsall,WC89-747,28/02/2018,Adult Social Care,CARING CARE LIMITED,15/02/2018,464.06,73025-PROFESSIONAL SERVICES-PRIV CONTRACTOR & OTHER AGENCIES,COMMUNITY INTERMEDIATE CARE,Third Party Payments,Revenue
Walsall Council,http://opendatacommunities.org/id/metropolitan-district-council/walsall,WC89-748,28/02/2018,Adult Social Care,CARING CARE LIMITED,14/02/2018,467.50,73025-PROFESSIONAL SERVICES-PRIV CONTRACTOR & OTHER AGENCIES,COMMUNITY INTERMEDIATE CARE,Third Party Payments,Revenue
Walsall Council,http://opendatacommunities.org/id/metropolitan-district-council/walsall,WC89-749,28/02/2018,Adult Social Care,CARING CARE LIMITED,19/02/2018,467.50,73025-PROFESSIONAL SERVICES-PRIV CONTRACTOR & OTHER AGENCIES,COMMUNITY INTERMEDIATE CARE,Third Party Payments,Revenue
Walsall Council,http://opendatacommunities.org/id/metropolitan-district-council/walsall,WC89-750,28/02/2018,Adult Social Care,CARING CARE LIMITED,19/02/2018,477.81,73025-PROFESSIONAL SERVICES-PRIV CONTRACTOR & OTHER AGENCIES,COMMUNITY INTERMEDIATE CARE,Third Party Payments,Revenue
Walsall Council,http://opendatacommunities.org/id/metropolitan-district-council/walsall,WC89-751,28/02/2018,Adult Social Care,CARING CARE LIMITED,14/02/2018,515.63,73025-PROFESSIONAL SERVICES-PRIV CONTRACTOR & OTHER AGENCIES,COMMUNITY INTERMEDIATE CARE,Third Party Payments,Revenue
Walsall Council,http://opendatacommunities.org/id/metropolitan-district-council/walsall,WC89-752,28/02/2018,Adult Social Care,CARING CARE LIMITED,19/02/2018,529.38,73025-PROFESSIONAL SERVICES-PRIV CONTRACTOR & OTHER AGENCIES,COMMUNITY INTERMEDIATE CARE,Third Party Payments,Revenue
Walsall Council,http://opendatacommunities.org/id/metropolitan-district-council/walsall,WC89-753,28/02/2018,Adult Social Care,CARING CARE LIMITED,13/02/2018,532.81,73025-PROFESSIONAL SERVICES-PRIV CONTRACTOR & OTHER AGENCIES,COMMUNITY INTERMEDIATE CARE,Third Party Payments,Revenue
Walsall Council,http://opendatacommunities.org/id/metropolitan-district-council/walsall,WC89-754,28/02/2018,Adult Social Care,CARING CARE LIMITED,19/02/2018,546.56,73025-PROFESSIONAL SERVICES-PRIV CONTRACTOR & OTHER AGENCIES,COMMUNITY INTERMEDIATE CARE,Third Party Payments,Revenue
Walsall Council,http://opendatacommunities.org/id/metropolitan-district-council/walsall,WC89-755,28/02/2018,Adult Social Care,CARING CARE LIMITED,14/02/2018,587.81,73025-PROFESSIONAL SERVICES-PRIV CONTRACTOR & OTHER AGENCIES,COMMUNITY INTERMEDIATE CARE,Third Party Payments,Revenue
Walsall Council,http://opendatacommunities.org/id/metropolitan-district-council/walsall,WC89-756,28/02/2018,Adult Social Care,CARING CARE LIMITED,19/02/2018,618.75,73025-PROFESSIONAL SERVICES-PRIV CONTRACTOR & OTHER AGENCIES,COMMUNITY INTERMEDIATE CARE,Third Party Payments,Revenue
Walsall Council,http://opendatacommunities.org/id/metropolitan-district-council/walsall,WC89-757,28/02/2018,Adult Social Care,CARING CARE LIMITED,14/02/2018,639.38,73025-PROFESSIONAL SERVICES-PRIV CONTRACTOR & OTHER AGENCIES,COMMUNITY INTERMEDIATE CARE,Third Party Payments,Revenue
Walsall Council,http://opendatacommunities.org/id/metropolitan-district-council/walsall,WC89-758,28/02/2018,Adult Social Care,CARING CARE LIMITED,19/02/2018,666.88,73025-PROFESSIONAL SERVICES-PRIV CONTRACTOR & OTHER AGENCIES,COMMUNITY INTERMEDIATE CARE,Third Party Payments,Revenue
